Authority,Department,Spending Area,Expense Type,Posting Date,Reference,Amount,Supplier
OXFORDSHIRE CC,CUSTOMER AND CULTURE,"MARKETING, COMMUNICATIONS & ENGAGEMENT","PUBLICITY, PROMOTIONS AND ADVERTISEMENT",28/12/2023,000009421124666,10.69,SNAP INC SNAP SNAP ADS
OXFORDSHIRE CC,CHILDREN'S & EDUCATION,THAME E&A HOME,"SUPPLIES, STATIONERY AND MATERIALS",28/12/2023,000009421124648,38.94,SP BEAUTY SCENT
OXFORDSHIRE CC,CHILDREN'S & EDUCATION,THAME E&A HOME,OTHER TRANSPORT ARRANGEMENTS,28/12/2023,000009421124652,3.8,WESTGATE OXFORD CAR PA
OXFORDSHIRE CC,CHILDREN'S & EDUCATION,THAME E&A HOME,VEHICLE FUEL,28/12/2023,000009421124650,59.58,SAINSBURYS PETROL
OXFORDSHIRE CC,ADULTS,CSS WANTAGE,MATERIALS,28/12/2023,000009421124628,3.26,AMZNMKTPLACE
OXFORDSHIRE CC,CHILDREN'S & EDUCATION,THAME E&A HOME,OTHER MISC INC,28/12/2023,000009421124668,10,"BOOTS,THAME"
OXFORDSHIRE CC,CHILDREN'S & EDUCATION,40 THE MOORS,MATERIALS,28/12/2023,000009421124696,73.95,WWW.ARGOS.CO.UK
OXFORDSHIRE CC,CHILDREN'S & EDUCATION,"	MALTFIELD HOUSE",FURNITURE,28/12/2023,000009421124678,29.99,AMZNMKTPLACE
OXFORDSHIRE CC,CHILDREN'S & EDUCATION,"	OCCG GRANT",FIXTURES & FITTINGS,28/12/2023,000009421124644,12,ASDA STORE 4442
OXFORDSHIRE CC,CHILDREN'S & EDUCATION,"	MALTFIELD HOUSE",FURNITURE,28/12/2023,000009421124682,43.94,VALUELIGHTS  LIGHTING
OXFORDSHIRE CC,CHILDREN'S & EDUCATION,"	MALTFIELD HOUSE",FURNITURE,28/12/2023,000009421124680,95,DUNELM SOFTFURNISHINGS
OXFORDSHIRE CC,CUSTOMER AND CULTURE,HARD FM,PREMISES REPAIRS,28/12/2023,000009421124632,46.39,TOOLSTATION LTD
OXFORDSHIRE CC,CHILDREN'S & EDUCATION,CHILDREN IN CARE NON-STAFFING - NORTH,PAYMENTS TO TRANSPORT OPERATORS,28/12/2023,000009421124634,24.24,TRAINLINE
OXFORDSHIRE CC,CHILDREN'S & EDUCATION,"	DISABILITIES TEAM-N",PAYMENTS TO TRANSPORT OPERATORS,28/12/2023,000009421124638,50.02,TRAINLINE
OXFORDSHIRE CC,CHILDREN'S & EDUCATION,WITNEY,CATERING PROVISIONS,28/12/2023,000009421124654,17.6,LIDL GB WITNEY
OXFORDSHIRE CC,CHILDREN'S & EDUCATION,EET SERVICE,CATERING PROVISIONS,28/12/2023,000009421124672,5.4,ASDA SUPERSTORE
OXFORDSHIRE CC,CHILDREN'S & EDUCATION,NTS UASC AGENCY,MATERIALS,28/12/2023,000009421124694,29.95,AMZNMKTPLACE
OXFORDSHIRE CC,ADULTS,CSS - BANBURY,VEHICLE FUEL,28/12/2023,000009421124624,84.6,TESCO PFS 3920
OXFORDSHIRE CC,ADULTS,CSS WITNEY,CATERING PROVISIONS,28/12/2023,000009421124692,14.78,SAINSBURYS S/MKTS
OXFORDSHIRE CC,ADULTS,CSS - BANBURY,VEHICLE FUEL,28/12/2023,000009421124622,1.22,TESCO PFS 3920
OXFORDSHIRE CC,CUSTOMER AND CULTURE,HARD FM,PREMISES REPAIRS,28/12/2023,000009421124630,17.4,TLC SOUTHERN LTD
OXFORDSHIRE CC,CHILDREN'S & EDUCATION,EET SERVICE,CATERING PROVISIONS,28/12/2023,000009421124674,8.28,ALDI STORES 775-142
OXFORDSHIRE CC,CHILDREN'S & EDUCATION,FSP NON-STAFFING - CENTRAL,PAYMENT TO GOVERNMENT DEPARTMENTS,28/12/2023,000009421124698,35,OXFORDSHIRE CC WEB1
OXFORDSHIRE CC,ADULTS,CSS - OXFORD,CATERING PROVISIONS,28/12/2023,000009421124642,82.2,ALDI STORES 775-142
OXFORDSHIRE CC,CHILDREN'S & EDUCATION,EET SERVICE,CATERING PROVISIONS,28/12/2023,000009421124670,7.2,TESCO STORES 2008
OXFORDSHIRE CC,ADULTS,CSS - OXFORD,DISABILITY AIDS AND EQUIPMENT,28/12/2023,000009421124658,29.98,AMZNMKTPLACE
OXFORDSHIRE CC,CHILDREN'S & EDUCATION,"	RESIDENTIAL STRATEGY",EDUCATIONAL AND VOCATIONAL TRAINING ,28/12/2023,000009421124646,66,PROTRAININGS
OXFORDSHIRE CC,ADULTS,CSS WANTAGE,MATERIALS,28/12/2023,000009421124626,7.95,AMZNMKTPLACE
OXFORDSHIRE CC,ADULTS,CSS - OXFORD,MATERIALS,28/12/2023,000009421124656,5.51,AMZNMKTPLACE
OXFORDSHIRE CC,CHILDREN'S & EDUCATION,EYNSHAM,CATERING PROVISIONS,28/12/2023,000009421124684,208.04,TESCO STORES 2008
OXFORDSHIRE CC,ADULTS,CSS BICESTER,CATERING PROVISIONS,28/12/2023,000009421124636,31.59,TESCO STORES 2162
OXFORDSHIRE CC,ADULTS,CSS - BANBURY,CATERING PROVISIONS,28/12/2023,000009421124700,51.04,SAINSBURYS.CO.UK
OXFORDSHIRE CC,CHILDREN'S & EDUCATION,THAME E&A HOME,CATERING PROVISIONS,28/12/2023,000009421124640,164.16,TESCO STORES 2038
OXFORDSHIRE CC,CHILDREN'S & EDUCATION,"	MALTFIELD HOUSE",CATERING PROVISIONS,28/12/2023,000009421124686,-1,TESCO STORES 2008
OXFORDSHIRE CC,CHILDREN'S & EDUCATION,"	OCCG GRANT",CATERING PROVISIONS,28/12/2023,000009421124688,-5,ASDA GEORGE COM LEEDS
OXFORDSHIRE CC,CHILDREN'S & EDUCATION,"	ALTERNATIVES TO CARE",MATERIALS,28/12/2023,000009421124660,88.2,AMZNMKTPLACE
OXFORDSHIRE CC,CHILDREN'S & EDUCATION,NTS UASC AGENCY,MATERIALS,27/12/2023,000009418783922,18.98,AMZNMKTPLACE
OXFORDSHIRE CC,CUSTOMER AND CULTURE,"MARKETING, COMMUNICATIONS & ENGAGEMENT","PUBLICITY, PROMOTIONS AND ADVERTISEMENT",27/12/2023,000009418783906,10.72,SNAP INC SNAP SNAP ADS
OXFORDSHIRE CC,ADULTS,CSS BICESTER,MATERIALS,27/12/2023,000009418783842,11.59,AMZNMKTPLACE
OXFORDSHIRE CC,CHILDREN'S & EDUCATION,NTS UASC AGENCY,OTHER EXPENSES,27/12/2023,000009418783968,15.29,AMZNMKTPLACE
OXFORDSHIRE CC,CHILDREN'S & EDUCATION,NTS UASC AGENCY,MATERIALS,27/12/2023,000009418783940,16,AMZNMKTPLACE
OXFORDSHIRE CC,CHILDREN'S & EDUCATION,DIDCOT MOVE-ON HOME,CATERING PROVISIONS,27/12/2023,000009418783926,21.5,SAINSBURYS S/MKTS
OXFORDSHIRE CC,CHILDREN'S & EDUCATION,NTS UASC AGENCY,MATERIALS,27/12/2023,000009418783934,120.34,AMZNMKTPLACE
OXFORDSHIRE CC,CHILDREN'S & EDUCATION,40 THE MOORS,MATERIALS,27/12/2023,000009418783954,10.85,AMZNMKTPLACE
OXFORDSHIRE CC,CUSTOMER AND CULTURE,BANBURY LIBRARY,"NEWSPAPERS, PERIODICALS AND PUBLICATIONS",27/12/2023,000009418783872,47.99,GUARDIAN NEWS & MEDIA
OXFORDSHIRE CC,CHILDREN'S & EDUCATION,"	ALTERNATIVES TO CARE",MATERIALS,27/12/2023,000009418783886,38.95,AMZNMKTPLACE
OXFORDSHIRE CC,CHILDREN'S & EDUCATION,THAME E&A HOME,ENTERTAINMENT EXPENSES,27/12/2023,000009418783864,71.85,EA DIGITICKETS CORAL R
OXFORDSHIRE CC,CHILDREN'S & EDUCATION,NTS UASC AGENCY,CATERING EQUIPMENT,27/12/2023,000009418783964,110,AMAZON.CO.UK D48PU7Z25
OXFORDSHIRE CC,CUSTOMER AND CULTURE,"MARKETING, COMMUNICATIONS & ENGAGEMENT","PUBLICITY, PROMOTIONS AND ADVERTISEMENT",26/12/2023,000009414053638,11.33,SNAP INC SNAP SNAP ADS
OXFORDSHIRE CC,CHILDREN'S & EDUCATION,EYNSHAM,MATERIALS,26/12/2023,000009414053716,7.99,TESCO SUBSCRIPTION
OXFORDSHIRE CC,CUSTOMER AND CULTURE,"MARKETING, COMMUNICATIONS & ENGAGEMENT","PUBLICITY, PROMOTIONS AND ADVERTISEMENT",26/12/2023,000009414053634,500,FACEBK  YK7LTX39Z2
OXFORDSHIRE CC,CUSTOMER AND CULTURE,"MARKETING, COMMUNICATIONS & ENGAGEMENT","PUBLICITY, PROMOTIONS AND ADVERTISEMENT",26/12/2023,000009414053630,167.44,ADOBE STOCK
OXFORDSHIRE CC,ADULTS,UASC 16&17,RESIDENTIAL ACTIVITIES,26/12/2023,000009414053240,22.99,THE GYM GROUP
OXFORDSHIRE CC,CUSTOMER AND CULTURE,"MARKETING, COMMUNICATIONS & ENGAGEMENT","PUBLICITY, PROMOTIONS AND ADVERTISEMENT",26/12/2023,000009414053626,12.53,SNAP INC SNAP SNAP ADS
OXFORDSHIRE CC,CHILDREN'S & EDUCATION,FAMILY SOLUTIONS PLUS NON-STAFF � SOUTH,MATERIALS,26/12/2023,000009414054384,-15,WWW.ARGOS.CO.UK
OXFORDSHIRE CC,CHILDREN'S & EDUCATION,THAME E&A HOME,CATERING,26/12/2023,000009414053178,144.57,PREZZO THAME
OXFORDSHIRE CC,CHILDREN'S & EDUCATION,"	ALTERNATIVES TO CARE",MATERIALS,26/12/2023,000009414053530,235.04,AMZNMKTPLACE
OXFORDSHIRE CC,CHILDREN'S & EDUCATION,DIDCOT MOVE-ON HOME,CLOTHING AND UNIFORMS,26/12/2023,000009414053146,14,SAINSBURYS S/MKTS
OXFORDSHIRE CC,CHILDREN'S & EDUCATION,DIDCOT MOVE-ON HOME,CATERING PROVISIONS,26/12/2023,000009414053140,20.73,SAINSBURYS S/MKTS
OXFORDSHIRE CC,CHILDREN'S & EDUCATION,"	ALTERNATIVES TO CARE",MATERIALS,26/12/2023,000009414053540,977.63,AMZNMKTPLACE
OXFORDSHIRE CC,CHILDREN'S & EDUCATION,"	LEAVING CARE CITY 2",OTHER EXPENSES,26/12/2023,000009414052884,129.85,AMZNMKTPLACE
OXFORDSHIRE CC,CHILDREN'S & EDUCATION,EYNSHAM,CATERING PROVISIONS,26/12/2023,000009414053074,3.5,CO-OPERATIVE FOOD
OXFORDSHIRE CC,CUSTOMER AND CULTURE,"MARKETING, COMMUNICATIONS & ENGAGEMENT","PUBLICITY, PROMOTIONS AND ADVERTISEMENT",26/12/2023,000009414053622,11.54,SNAP INC SNAP SNAP ADS
OXFORDSHIRE CC,CHILDREN'S & EDUCATION,EYNSHAM,CATERING PROVISIONS,26/12/2023,000009414053710,8.75,MAYFIELDEGGS
OXFORDSHIRE CC,CHILDREN'S & EDUCATION,NTS UASC AGENCY,FURNITURE,26/12/2023,000009414053954,112,DUNELM SOFTFURNISHINGS
OXFORDSHIRE CC,CHILDREN'S & EDUCATION,THAME E&A HOME,ENTERTAINMENT EXPENSES,26/12/2023,000009414053160,13.2,REBOUND REVOLUTION
OXFORDSHIRE CC,CHILDREN'S & EDUCATION,FIELDWORK UASC,HOSPITALITY EXPENSES,26/12/2023,000009414052770,7.2,THE BRITANNIA
OXFORDSHIRE CC,CHILDREN'S & EDUCATION,"	RESIDENTIAL STRATEGY",OTHER EXPENSES,26/12/2023,000009414053926,197,ASDA GEORGE COM LEEDS
OXFORDSHIRE CC,CHILDREN'S & EDUCATION,"	RESIDENTIAL STRATEGY",OTHER EXPENSES,26/12/2023,000009414053920,426,ASDA GEORGE COM LEEDS
OXFORDSHIRE CC,CHILDREN'S & EDUCATION,NTS UASC AGENCY,MATERIALS,26/12/2023,000009414053936,16.57,AMZNMKTPLACE
OXFORDSHIRE CC,CHILDREN'S & EDUCATION,NTS UASC AGENCY,MATERIALS,26/12/2023,000009414053932,16.57,AMZNMKTPLACE
OXFORDSHIRE CC,CHILDREN'S & EDUCATION,THAME E&A HOME,CATERING PROVISIONS,26/12/2023,000009414053742,11.1,SAINSBURYS SUPERMA
OXFORDSHIRE CC,CHILDREN'S & EDUCATION,WITNEY,CATERING PROVISIONS,26/12/2023,000009414053966,11.14,SAINSBURYS S/MKTS
OXFORDSHIRE CC,CHILDREN'S & EDUCATION,THAME E&A HOME,CATERING,26/12/2023,000009414052834,6,REBOUND REVOLUTION
OXFORDSHIRE CC,CHILDREN'S & EDUCATION,THAME E&A HOME,CATERING,26/12/2023,000009414052830,2.5,JUMP INC BICESTER
OXFORDSHIRE CC,CHILDREN'S & EDUCATION,NTS UASC AGENCY,MATERIALS,26/12/2023,000009414053910,3.89,AMZNMKTPLACE
OXFORDSHIRE CC,CHILDREN'S & EDUCATION,NTS UASC AGENCY,MATERIALS,26/12/2023,000009414053914,3.89,AMZNMKTPLACE
OXFORDSHIRE CC,RESOURCES,EYNSHAM,CATERING PROVISIONS,26/12/2023,000009414054412,10.65,CO-OPERATIVE FOOD
OXFORDSHIRE CC,CHILDREN'S & EDUCATION,WITNEY,CATERING PROVISIONS,26/12/2023,000009414053264,222.7,WM MORRISONS STORE PIC
OXFORDSHIRE CC,CHILDREN'S & EDUCATION,40 THE MOORS,CATERING PROVISIONS,26/12/2023,000009414053212,10.69,SAINSBURY'S S/MKT
OXFORDSHIRE CC,CHILDREN'S & EDUCATION,NTS UASC AGENCY,DOMESTIC SUPPLIES,26/12/2023,000009414054256,79.7,BOOTS UK ECOMM
OXFORDSHIRE CC,CHILDREN'S & EDUCATION,DIDCOT MOVE-ON HOME,CATERING PROVISIONS,26/12/2023,000009414054044,20,TESCO STORES 2413
OXFORDSHIRE CC,CUSTOMER AND CULTURE,ABINGDON LIBRARY,"NEWSPAPERS, PERIODICALS AND PUBLICATIONS",26/12/2023,000009414053694,55.99,GUARDIAN NEWS & MEDIA
OXFORDSHIRE CC,CHILDREN'S & EDUCATION,"	ALTERNATIVES TO CARE",MATERIALS,26/12/2023,000009414053522,309.75,AMZNMKTPLACE
OXFORDSHIRE CC,CHILDREN'S & EDUCATION,THAME E&A HOME,CATERING,26/12/2023,000009414052824,52.5,JUMP INC BICESTER
OXFORDSHIRE CC,CHILDREN'S & EDUCATION,40 THE MOORS,MATERIALS,26/12/2023,000009414054094,12.99,AMZNMKTPLACE
OXFORDSHIRE CC,CHILDREN'S & EDUCATION,THAME E&A HOME,DAY ACTIVITIES,26/12/2023,000009414053310,33,BUCKS & DOE HAIRDRESSE
OXFORDSHIRE CC,CUSTOMER AND CULTURE,CATERING MANAGEMENT SOFT FM,POSTAGE AND DELIVERY,26/12/2023,000009414054216,4.55,POST OFFICE COUNTER
OXFORDSHIRE CC,CHILDREN'S & EDUCATION,THAME E&A HOME,OTHER EXPENSES,26/12/2023,000009414053740,2.99,LONDIS
OXFORDSHIRE CC,CHILDREN'S & EDUCATION,THAME E&A HOME,CATERING,26/12/2023,000009414052840,7.5,SAINSBURYS S/MKTS
OXFORDSHIRE CC,CUSTOMER AND CULTURE,HARD FM,MATERIALS,26/12/2023,000009414053118,22.12,HALFORDS 0837
OXFORDSHIRE CC,CUSTOMER AND CULTURE,THAME LIBRARY,"NEWSPAPERS, PERIODICALS AND PUBLICATIONS",26/12/2023,000009414053804,7.3,SAINSBURYS S/MKTS
OXFORDSHIRE CC,CHILDREN'S & EDUCATION,40 THE MOORS,CATERING PROVISIONS,26/12/2023,000009414053040,302.08,SAINSBURYS.CO.UK
OXFORDSHIRE CC,CUSTOMER AND CULTURE,"MARKETING, COMMUNICATIONS & ENGAGEMENT","PUBLICITY, PROMOTIONS AND ADVERTISEMENT",26/12/2023,000009414053616,10.49,SNAP INC SNAP SNAP ADS
OXFORDSHIRE CC,ADULTS,CSS BICESTER,MATERIALS,26/12/2023,000009414052812,7.99,TESCO SUBSCRIPTION
OXFORDSHIRE CC,CHILDREN'S & EDUCATION,EDT,HIRE OF ACCOMMODATION AND FACILITIES,26/12/2023,000009414053340,107,MARRIOTT
OXFORDSHIRE CC,ENVIRONMENT AND PLACE,WASTE REDUCTION GEN,"PUBLICITY, PROMOTIONS AND ADVERTISEMENT",26/12/2023,000009414052984,125,FACEBK RA6R8VPB32
OXFORDSHIRE CC,CHILDREN'S & EDUCATION,DIDCOT MOVE-ON HOME,CLEANING MATERIALS,26/12/2023,000009414054036,34.04,SAINSBURYS SMKT
OXFORDSHIRE CC,CUSTOMER AND CULTURE,CENTRAL LIBRARY,"BOOKS, DVDS AND CDS",26/12/2023,000009414053676,3.79,AMZNMKTPLACE
OXFORDSHIRE CC,CHILDREN'S & EDUCATION,DIDCOT MOVE-ON HOME,CATERING PROVISIONS,26/12/2023,000009414054022,26.45,TESCO STORES 2413
OXFORDSHIRE CC,CHILDREN'S & EDUCATION,DIDCOT MOVE-ON HOME,DOMESTIC SUPPLIES,26/12/2023,000009414054030,59.75,TESCO STORES 2413
OXFORDSHIRE CC,CHILDREN'S & EDUCATION,DIDCOT MOVE-ON HOME,CATERING PROVISIONS,26/12/2023,000009414054016,22.48,B&M 514 - DICOT
OXFORDSHIRE CC,PUBLIC HEALTH,WITNEY,CATERING PROVISIONS,26/12/2023,000009414052700,3.5,TESCO-STORES 2499
OXFORDSHIRE CC,CHILDREN'S & EDUCATION,40 THE MOORS,RESIDENTIAL ACTIVITIES,26/12/2023,000009414054106,11.97,VUE CINEMAS
OXFORDSHIRE CC,CHILDREN'S & EDUCATION,THAME E&A HOME,DAY ACTIVITIES,26/12/2023,000009414053302,200,MAZE HAIR
OXFORDSHIRE CC,CHILDREN'S & EDUCATION,EET SERVICE,MATERIALS,26/12/2023,000009414053748,34.2,AMAZON.CO.UK IQ0YA3WV5
OXFORDSHIRE CC,CHILDREN'S & EDUCATION,"	LEAVING CARE CITY 1",CATERING,26/12/2023,000009414052950,37.6,FRANKIE & BENNYS 5389
OXFORDSHIRE CC,CHILDREN'S & EDUCATION,THAME E&A HOME,CLOTHING AND UNIFORMS,26/12/2023,000009414053736,23.4,PRIMARK 440
OXFORDSHIRE CC,CHILDREN'S & EDUCATION,"	LOOKED AFTER NORTH",OTHER TRANSPORT ARRANGEMENTS,26/12/2023,000009414053098,1.3,WARWICK DC PARKING
OXFORDSHIRE CC,CHILDREN'S & EDUCATION,EET SERVICE,CATERING PROVISIONS,26/12/2023,000009414053756,50.05,TESCO STORES 2008
OXFORDSHIRE CC,CHILDREN'S & EDUCATION,40 THE MOORS,RESIDENTIAL ACTIVITIES,26/12/2023,000009414054114,47.96,VUE ENTERTAINMENT LTD
OXFORDSHIRE CC,CHILDREN'S & EDUCATION,THAME E&A HOME,STATIONERY,26/12/2023,000009414053732,51.58,SMIGGLE
OXFORDSHIRE CC,CHILDREN'S & EDUCATION,NTS UASC AGENCY,CATERING EQUIPMENT,26/12/2023,000009414054230,110,AMAZON.CO.UK 862LX3BZ5
OXFORDSHIRE CC,CHILDREN'S & EDUCATION,CHILDREN IN CARE NON-STAFFING - SOUTH,VEHICLE FUEL,26/12/2023,000009414053958,23,ASDA PETROL-UPT 4203
OXFORDSHIRE CC,CUSTOMER AND CULTURE,HARD FM,PREMISES REPAIRS,26/12/2023,000009414053356,"1,416.00",EUROLOOS
OXFORDSHIRE CC,SOCIAL AND COMMUNITY SERVICES,CO-PRODUCTION TEAM,NON-STAFF SUBSISTENCE AND EXPENSES,26/12/2023,000009414053944,30,HIGH STREET VOUCHERS
OXFORDSHIRE CC,CHILDREN'S & EDUCATION,NTS UASC AGENCY,OTHER EXPENSES,26/12/2023,000009414054246,15.29,AMZNMKTPLACE
OXFORDSHIRE CC,CHILDREN'S & EDUCATION,FSP NON-STAFFING - CENTRAL,OTHER TRANSPORT ARRANGEMENTS,26/12/2023,000009414054178,41.4,WWW.GWR.COM
OXFORDSHIRE CC,ADULTS,INCOME TEAM,PAYMENT TO GOVERNMENT DEPARTMENTS,26/12/2023,000009414053028,1.5,FIND A WILL
OXFORDSHIRE CC,CHILDREN'S & EDUCATION,FSP NON-STAFFING - CENTRAL,OTHER TRANSPORT ARRANGEMENTS,26/12/2023,000009414054172,41.4,WWW.GWR.COM
OXFORDSHIRE CC,RESOURCES,OXFORD CITY TEAM,STAFF ADVERTISING - GENERAL,26/12/2023,000009414053056,690,GUARDIAN NEWS & MEDIA
OXFORDSHIRE CC,CHILDREN'S & EDUCATION,FAMILY SOLUTIONS PLUS NON-STAFF - NORTH,PAYMENTS TO TRANSPORT OPERATORS,26/12/2023,000009414054202,12.4,WWW.GWR.COM
OXFORDSHIRE CC,CHILDREN'S & EDUCATION,FAMILY SOLUTIONS PLUS NON-STAFF - NORTH,PAYMENTS TO TRANSPORT OPERATORS,26/12/2023,000009414054190,12.4,WWW.GWR.COM
OXFORDSHIRE CC,CHILDREN'S & EDUCATION,KINGFISHER,CLOTHING AND UNIFORMS,26/12/2023,000009414054342,150,SPORTS DIRECT
OXFORDSHIRE CC,ENVIRONMENT AND PLACE,OCCG GRANT,MATERIALS,26/12/2023,000009414053444,13.5,TIMPSON LTD
OXFORDSHIRE CC,CHILDREN'S & EDUCATION,FAMILY SOLUTIONS PLUS NON-STAFF - NORTH,TELEPHONE - EQUIPMENT,26/12/2023,000009414053996,10,GIFFGAFF
OXFORDSHIRE CC,ADULTS,INCOME TEAM,PAYMENT TO GOVERNMENT DEPARTMENTS,26/12/2023,000009414053024,11,OXFORDSHIRE CC WEB1
OXFORDSHIRE CC,CHILDREN'S & EDUCATION,CHILDREN IN CARE NON-STAFFING - CENTRL 1,OTHER TRANSPORT ARRANGEMENTS,26/12/2023,000009414052906,4.5,OXFORDBUS.CO.UK
OXFORDSHIRE CC,CHILDREN'S & EDUCATION,CHILDREN IN CARE NON-STAFFING - CENTRL 1,OTHER TRANSPORT ARRANGEMENTS,26/12/2023,000009414052902,4.5,OXFORDBUS.CO.UK
OXFORDSHIRE CC,CHILDREN'S & EDUCATION,CHILDREN IN CARE NON-STAFFING - CENTRL 1,PAYMENTS TO TRANSPORT OPERATORS,26/12/2023,000009414052914,16.19,TRAINLINE
OXFORDSHIRE CC,CHILDREN'S & EDUCATION,CHILDREN IN CARE NON-STAFFING - CENTRL 1,PAYMENTS TO TRANSPORT OPERATORS,26/12/2023,000009414052922,16.19,TRAINLINE
OXFORDSHIRE CC,CHILDREN'S & EDUCATION,FAMILY SOLUTIONS PLUS NON-STAFF � SOUTH,PAYMENT TO GOVERNMENT DEPARTMENTS,26/12/2023,000009414054048,22,OXFORDSHIRE CC WEB1
OXFORDSHIRE CC,ADULTS,CSS WANTAGE,VEHICLE FUEL,26/12/2023,000009414054328,12.5,SAINSBURYS PETROL
OXFORDSHIRE CC,ADULTS,INCOME TEAM,PAYMENT TO GOVERNMENT DEPARTMENTS,26/12/2023,000009414053012,11,OXFORDSHIRE CC WEB1
OXFORDSHIRE CC,CHILDREN'S & EDUCATION,"	ALTERNATIVES TO CARE",MATERIALS,26/12/2023,000009414053514,49.16,AMZNMKTPLACE
OXFORDSHIRE CC,CHILDREN'S & EDUCATION,EYNSHAM,CATERING PROVISIONS,26/12/2023,000009414054064,25.55,SAINSBURY'S S/MKT
OXFORDSHIRE CC,CHILDREN'S & EDUCATION,40 THE MOORS,CATERING,26/12/2023,000009414054122,20.46,HOME BARGAINS
OXFORDSHIRE CC,CHILDREN'S & EDUCATION,"	LEAVING CARE CITY 1",OTHER TRANSPORT ARRANGEMENTS,26/12/2023,000009414053102,2.2,UNION STREET CAR PARK
OXFORDSHIRE CC,CHILDREN'S & EDUCATION,"	LEAVING CARE NORTH",MATERIALS,26/12/2023,000009414053900,8.99,AMAZON PRIME D654A8A65
OXFORDSHIRE CC,CHILDREN'S & EDUCATION,40 THE MOORS,CATERING,26/12/2023,000009414054128,21.94,ALDI 77 775
OXFORDSHIRE CC,CHILDREN'S & EDUCATION,CHILDREN IN CARE NON-STAFFING - SOUTH,HIRE OF ACCOMMODATION AND FACILITIES,26/12/2023,000009414053128,658,PREMIER INN
OXFORDSHIRE CC,CHILDREN'S & EDUCATION,"	ALTERNATIVES TO CARE",MATERIALS,26/12/2023,000009414053472,59.97,AMZNMKTPLACE
OXFORDSHIRE CC,CHILDREN'S & EDUCATION,PAUSE PROGRAMME,CATERING,26/12/2023,000009414054424,10.18,MCDONALDS 8261032
OXFORDSHIRE CC,CHILDREN'S & EDUCATION,"	ALTERNATIVES TO CARE",MATERIALS,26/12/2023,000009414053480,56.7,AMZNMKTPLACE
OXFORDSHIRE CC,CHILDREN'S & EDUCATION,"	ALTERNATIVES TO CARE",MATERIALS,26/12/2023,000009414053504,43.84,AMZNMKTPLACE
OXFORDSHIRE CC,CHILDREN'S & EDUCATION,40 THE MOORS,MATERIALS,26/12/2023,000009414053588,139.95,MANOMANO
OXFORDSHIRE CC,CHILDREN'S & EDUCATION,"	ALTERNATIVES TO CARE",MATERIALS,26/12/2023,000009414053508,87.11,AMZNMKTPLACE
OXFORDSHIRE CC,CHILDREN'S & EDUCATION,"	ALTERNATIVES TO CARE",MATERIALS,26/12/2023,000009414053490,122.69,AMZNMKTPLACE
OXFORDSHIRE CC,CHILDREN'S & EDUCATION,"	ALTERNATIVES TO CARE",MATERIALS,26/12/2023,000009414053492,964.92,AMZNMKTPLACE
OXFORDSHIRE CC,CHILDREN'S & EDUCATION,"	ALTERNATIVES TO CARE",MATERIALS,26/12/2023,000009414053500,524.79,AMZNMKTPLACE
OXFORDSHIRE CC,CHILDREN'S & EDUCATION,THAME E&A HOME,CATERING,26/12/2023,000009414053396,15.32,MCDONALDS 296
OXFORDSHIRE CC,CHILDREN'S & EDUCATION,"	LOOKED AFTER NORTH",PAYMENTS TO TRANSPORT OPERATORS,26/12/2023,000009414052938,19.66,TRAINLINE
OXFORDSHIRE CC,CHILDREN'S & EDUCATION,KINGFISHER,MATERIALS,26/12/2023,000009414052752,15.68,AMAZON.CO.UK YJ2U87TM5
OXFORDSHIRE CC,CHILDREN'S & EDUCATION,THAME E&A HOME,MATERIALS,26/12/2023,000009414053390,25,THE RANGE
OXFORDSHIRE CC,ADULTS,CSS - ABINGDON,DRUGS AND MEDICAL SUPPLIES,26/12/2023,000009414054394,1.5,WELLBEING PHARMACY
OXFORDSHIRE CC,CHILDREN'S & EDUCATION,40 THE MOORS,CATERING PROVISIONS,26/12/2023,000009414053596,45.25,SAINSBURY'S S/MKT
OXFORDSHIRE CC,ADULTS,CSS WANTAGE,VEHICLE EQUIPMENT AND EXPENSES - OTHER,26/12/2023,000009414053566,25,SUMUP   MAC VALETING L
OXFORDSHIRE CC,CUSTOMER AND CULTURE,MUSEUMS COLLECTIONS,HARDWARE AND CROCKERY,26/12/2023,000009414054282,13.88,SCREWFIX DIR LTD
OXFORDSHIRE CC,ADULTS,CSS - BANBURY,CATERING PROVISIONS,26/12/2023,000009414052674,17.98,HOME BARGAINS BANBURY
OXFORDSHIRE CC,CUSTOMER AND CULTURE,MUSEUMS COLLECTIONS,MATERIALS,26/12/2023,000009414054292,8.35,TOOLSTATION LTD
OXFORDSHIRE CC,CHILDREN'S & EDUCATION,"	OCCG GRANT",CATERING PROVISIONS,26/12/2023,000009414053084,52.35,ALDI STORES 775-142
OXFORDSHIRE CC,CHILDREN'S & EDUCATION,"	LOOKED AFTER CITY 2",PAYMENTS TO TRANSPORT OPERATORS,26/12/2023,000009414053064,109.94,TRAINLINE
OXFORDSHIRE CC,ADULTS,CSS - OXFORD,DAY ACTIVITIES,26/12/2023,000009414052778,4,POUNDLAND LTD - 1586
OXFORDSHIRE CC,CHILDREN'S & EDUCATION,CHILDREN IN CARE NON-STAFFING - SOUTH,OTHER TRANSPORT ARRANGEMENTS,26/12/2023,000009414052944,20,NEALES TAXIS LTD
OXFORDSHIRE CC,CHILDREN'S & EDUCATION,NTS UASC AGENCY,EQUIPMENT,26/12/2023,000009414054058,201.55,AMZNMKTPLACE
OXFORDSHIRE CC,ADULTS,CSS WALLINGFORD,MATERIALS,26/12/2023,000009414052690,4.65,WAITROSE 675
OXFORDSHIRE CC,ADULTS,CSS WALLINGFORD,MATERIALS,26/12/2023,000009414052690,15.25,WAITROSE 675
OXFORDSHIRE CC,CHILDREN'S & EDUCATION,"	LEAVING CARE SOUTH",PAYMENT TO GOVERNMENT DEPARTMENTS,26/12/2023,000009414053278,82.5,HM PASSPORT OFFICE
OXFORDSHIRE CC,CHILDREN'S & EDUCATION,"	LAC PUPIL PREMIUM",EDUCATIONAL AND VOCATIONAL TRAINING ,26/12/2023,000009414054162,12,SQ  REED.CO.UK
OXFORDSHIRE CC,ADULTS,CSS WANTAGE,LAUNDRY AND DRY CLEANING,26/12/2023,000009414054316,25,SUMUP   ADVANCED CAR W
OXFORDSHIRE CC,ADULTS,CSS WANTAGE,VEHICLE EQUIPMENT AND EXPENSES - OTHER,26/12/2023,000009414053560,25,SUMUP   MAC VALETING L
OXFORDSHIRE CC,CUSTOMER AND CULTURE,HARD FM,PREMISES REPAIRS,26/12/2023,000009414052790,7.49,HALFORDS 0988
OXFORDSHIRE CC,ENVIRONMENT AND PLACE,PMO,POSTAGE AND DELIVERY,26/12/2023,000009414054008,16.45,ROYAL MAIL GROUP LTD
OXFORDSHIRE CC,ADULTS,CSS WANTAGE,VEHICLE EQUIPMENT AND EXPENSES - OTHER,26/12/2023,000009414053550,25,SUMUP   MAC VALETING L
OXFORDSHIRE CC,ADULTS,CSS - OXFORD,MATERIALS,26/12/2023,000009414052990,9.31,ALDI STORES 775-142
OXFORDSHIRE CC,CHILDREN'S & EDUCATION,EET SERVICE,CATERING PROVISIONS,26/12/2023,000009414053770,62,WM MORRISONS STORE
OXFORDSHIRE CC,ADULTS,CSS - OXFORD,CATERING PROVISIONS,26/12/2023,000009414053000,86.13,ALDI STORES 775-142
OXFORDSHIRE CC,CHILDREN'S & EDUCATION,"	LOOKED AFTER CITY 2",PAYMENTS TO TRANSPORT OPERATORS,26/12/2023,000009414053412,8.05,TRAINLINE
OXFORDSHIRE CC,PUBLIC HEALTH,ROW MAINT,EQUIPMENT,26/12/2023,000009414053366,849.6,PETER KINCH PLANT LIMI
OXFORDSHIRE CC,CUSTOMER AND CULTURE,THAME LIBRARY,"NEWSPAPERS, PERIODICALS AND PUBLICATIONS",26/12/2023,000009414053798,5.6,SAINSBURYS S/MKTS
OXFORDSHIRE CC,CHILDREN'S & EDUCATION,EET SERVICE,CATERING PROVISIONS,26/12/2023,000009414053762,31.06,ALDI 41 775
OXFORDSHIRE CC,CUSTOMER AND CULTURE,COMMUNITY PARTNERSHIP TEAM,CATERING PROVISIONS,26/12/2023,000009414052956,12.16,LIDL GB ABINGDON
OXFORDSHIRE CC,CUSTOMER AND CULTURE,HARD FM,PREMISES REPAIRS,26/12/2023,000009414052796,72.36,SCREWFIX DIR LTD
OXFORDSHIRE CC,CORPORATE CORE,,STATIONERY,26/12/2023,000009414053824,25.85,LYRECO UK LTD
OXFORDSHIRE CC,CORPORATE CORE,,STATIONERY,26/12/2023,000009414053868,4.18,LYRECO UK LTD
OXFORDSHIRE CC,CORPORATE CORE,,STATIONERY,26/12/2023,000009414053890,2.18,LYRECO UK LTD
OXFORDSHIRE CC,CORPORATE CORE,,STATIONERY,26/12/2023,000009414053862,47.5,LYRECO UK LTD
OXFORDSHIRE CC,CORPORATE CORE,,STATIONERY,26/12/2023,000009414053854,57.16,LYRECO UK LTD
OXFORDSHIRE CC,CORPORATE CORE,,STATIONERY,26/12/2023,000009414053836,142.57,LYRECO UK LTD
OXFORDSHIRE CC,CORPORATE CORE,,STATIONERY,26/12/2023,000009414053830,17.23,LYRECO UK LTD
OXFORDSHIRE CC,CORPORATE CORE,,STATIONERY,26/12/2023,000009414053818,13.84,LYRECO UK LTD
OXFORDSHIRE CC,CORPORATE CORE,,STATIONERY,26/12/2023,000009414053810,58.9,LYRECO UK LTD
OXFORDSHIRE CC,CORPORATE CORE,,STATIONERY,26/12/2023,000009414053874,72.98,LYRECO UK LTD
OXFORDSHIRE CC,CORPORATE CORE,,STATIONERY,26/12/2023,000009414053844,231.43,LYRECO UK LTD
OXFORDSHIRE CC,CORPORATE CORE,,STATIONERY,26/12/2023,000009414053878,98.14,LYRECO UK LTD
OXFORDSHIRE CC,CHILDREN'S & EDUCATION,UASC 16&17,RESIDENTIAL ACTIVITIES,26/12/2023,000009414053222,22.99,THE GYM GROUP
OXFORDSHIRE CC,CHILDREN'S & EDUCATION,THAME E&A HOME,CATERING PROVISIONS,26/12/2023,000009414052972,162.29,TESCO STORES 2038
OXFORDSHIRE CC,PUBLIC HEALTH,ROW MAINT,EQUIPMENT,26/12/2023,000009414053374,-228,WWW.LANDMARKTRADING.CO
OXFORDSHIRE CC,CHILDREN'S & EDUCATION,"	LOOKED AFTER CITY 2",OTHER TRANSPORT ARRANGEMENTS,26/12/2023,000009414053400,2,OXFORD BUS COMPANY
OXFORDSHIRE CC,CHILDREN'S & EDUCATION,"	LOOKED AFTER CITY 2",OTHER TRANSPORT ARRANGEMENTS,26/12/2023,000009414053406,2,OXFORD BUS COMPANY
OXFORDSHIRE CC,ADULTS,THAME E&A HOME,OTHER MISC INC,26/12/2023,000009414053546,-39.99,THE RANGE
OXFORDSHIRE CC,CHILDREN'S & EDUCATION,40 THE MOORS,MATERIALS,26/12/2023,000009414053046,-29.99,ROBERT DYAS 136
OXFORDSHIRE CC,CHILDREN'S & EDUCATION,NTS UASC AGENCY,CLEANING MATERIALS,26/12/2023,000009414054240,49.98,AMZNMKTPLACE
OXFORDSHIRE CC,CHILDREN'S & EDUCATION,CHILDREN IN CARE NON-STAFFING - CENTRL 1,PAYMENTS TO TRANSPORT OPERATORS,26/12/2023,000009414052862,-5,TRAINLINE
OXFORDSHIRE CC,CHILDREN'S & EDUCATION,PAUSE PROGRAMME,MATERIALS,26/12/2023,000009414053202,15,THEWORKS.CO.UK
OXFORDSHIRE CC,ENVIRONMENT AND PLACE,SCH&SOC CARE TRANSP,MATERIALS,26/12/2023,000009414053574,22.39,AMZNMKTPLACE
OXFORDSHIRE CC,ADULTS,CSS - BANBURY,CATERING PROVISIONS,26/12/2023,000009414054270,4.72,ALDI 10 775
OXFORDSHIRE CC,CHILDREN'S & EDUCATION,"	LEAVING CARE CITY 2",OTHER EXPENSES,26/12/2023,000009414052874,2.7,TFL UNPAID FARE
OXFORDSHIRE CC,CUSTOMER AND CULTURE,"MARKETING, COMMUNICATIONS & ENGAGEMENT","PUBLICITY, PROMOTIONS AND ADVERTISEMENT",22/12/2023,000009407589806,10.22,SNAP INC SNAP SNAP ADS
OXFORDSHIRE CC,ADULTS,CSS WITNEY,CATERING PROVISIONS,22/12/2023,000009407589780,35.7,MILK AND MORE (RECUR
OXFORDSHIRE CC,ENVIRONMENT AND PLACE,FLEET OPERATIONS,CATERING PROVISIONS,22/12/2023,000009407589542,10,MILK AND MORE (RECUR
OXFORDSHIRE CC,CUSTOMER AND CULTURE,MUSEUMS COLLECTIONS,CATERING PROVISIONS,22/12/2023,000009407589746,2.31,MILK AND MORE (RECUR
OXFORDSHIRE CC,CUSTOMER AND CULTURE,"MARKETING, COMMUNICATIONS & ENGAGEMENT","PUBLICITY, PROMOTIONS AND ADVERTISEMENT",22/12/2023,000009407589800,499.98,FACEBK  KWHCTWP9Z2
OXFORDSHIRE CC,CHILDREN'S & EDUCATION,DIDCOT MOVE-ON HOME,CATERING PROVISIONS,22/12/2023,000009407589988,3,TESCO STORES 5966
OXFORDSHIRE CC,ADULTS,COUNTY PRINT FINSHRS,MATERIALS,22/12/2023,000009407589344,41.58,AMZNMKTPLACE
OXFORDSHIRE CC,CHILDREN'S & EDUCATION,40 THE MOORS,CATERING PROVISIONS,22/12/2023,000009407589790,100,SAINSBURY'S S/MKT
OXFORDSHIRE CC,CHILDREN'S & EDUCATION,DIDCOT MOVE-ON HOME,MATERIALS,22/12/2023,000009407589984,19.98,GAME RETAIL
OXFORDSHIRE CC,CHILDREN'S & EDUCATION,EYNSHAM,CATERING PROVISIONS,22/12/2023,000009407590012,28.25,TESCO STORES 2008
OXFORDSHIRE CC,CUSTOMER AND CULTURE,BULLINGDON PRISON,PURCHASE OF IT EQUIPMENT,22/12/2023,000009407589832,35.58,AMZNMKTPLACE
OXFORDSHIRE CC,CHILDREN'S & EDUCATION,DIDCOT MOVE-ON HOME,CLOTHING AND UNIFORMS,22/12/2023,000009407589994,30,NEXT RETAIL LTD
OXFORDSHIRE CC,CHILDREN'S & EDUCATION,40 THE MOORS,CLOTHING AND UNIFORMS,22/12/2023,000009407590030,48.73,NIKE BICESTER 2051
OXFORDSHIRE CC,CHILDREN'S & EDUCATION,40 THE MOORS,MATERIALS,22/12/2023,000009407589786,24.99,WWW.ARGOS.CO.UK
OXFORDSHIRE CC,CHILDREN'S & EDUCATION,BANBURY CC,CATERING PROVISIONS,22/12/2023,000009407590054,4.35,SAINSBURYS S/MKTS
OXFORDSHIRE CC,CHILDREN'S & EDUCATION,THAME E&A HOME,TELEPHONE - EQUIPMENT,22/12/2023,000009407589674,20,GIFFGAFF
OXFORDSHIRE CC,CHILDREN'S & EDUCATION,40 THE MOORS,CATERING PROVISIONS,22/12/2023,000009407590040,14.49,TESCO STORES 4480
OXFORDSHIRE CC,CHILDREN'S & EDUCATION,CHILDREN IN CARE NON-STAFFING - CENTRL 2,PAYMENTS TO TRANSPORT OPERATORS,22/12/2023,000009407589434,8.86,TRAINLINE
OXFORDSHIRE CC,CUSTOMER AND CULTURE,BUSINESS INTELLECTUAL PROPERTY CENTRE,CATERING PROVISIONS,22/12/2023,000009407589724,12.5,SAINSBURYS S/MKTS
OXFORDSHIRE CC,CHILDREN'S & EDUCATION,40 THE MOORS,MATERIALS,22/12/2023,000009407589510,3.27,CARD FACTORY
OXFORDSHIRE CC,CHILDREN'S & EDUCATION,40 THE MOORS,CATERING PROVISIONS,22/12/2023,000009407589494,18.95,TESCO STORES 2788
OXFORDSHIRE CC,CHILDREN'S & EDUCATION,EET SERVICE,ENTERTAINMENT EXPENSES,22/12/2023,000009407589910,550,THE LIGHT CINEMAS
OXFORDSHIRE CC,ADULTS,COUNTY PRINT FINSHRS,MATERIALS,22/12/2023,000009407589340,14.99,AMZNMKTPLACE
OXFORDSHIRE CC,CHILDREN'S & EDUCATION,40 THE MOORS,CATERING PROVISIONS,22/12/2023,000009407589490,59.8,ICELAND
OXFORDSHIRE CC,CHILDREN'S & EDUCATION,FAMILY SOLUTIONS PLUS NON-STAFF - NORTH,PAYMENT TO GOVERNMENT DEPARTMENTS,22/12/2023,000009407590050,29.99,CHERWELL DC
OXFORDSHIRE CC,CHILDREN'S & EDUCATION,DIDCOT MOVE-ON HOME,CATERING PROVISIONS,22/12/2023,000009407589974,8.3,TESCO STORES
OXFORDSHIRE CC,CHILDREN'S & EDUCATION,40 THE MOORS,OTHER TRANSPORT ARRANGEMENTS,22/12/2023,000009407590034,20,STGCOACH/CTYLINK
OXFORDSHIRE CC,CHILDREN'S & EDUCATION,NTS UASC AGENCY,CLEANING MATERIALS,22/12/2023,000009407590008,132.5,HOMEBASE LTD
OXFORDSHIRE CC,ENVIRONMENT AND PLACE,OCCG GRANT,CATERING PROVISIONS,22/12/2023,000009407589712,119.47,B&M 514 - DICOT
OXFORDSHIRE CC,ADULTS,THAME E&A HOME,CATERING PROVISIONS,22/12/2023,000009407589772,12.44,SAINSBURYS SUPERMA
OXFORDSHIRE CC,CHILDREN'S & EDUCATION,"	MALTFIELD HOUSE",MATERIALS,22/12/2023,000009407589936,495.66,COSTCO WHOLESALE #114
OXFORDSHIRE CC,CHILDREN'S & EDUCATION,THAME E&A HOME,CATERING,22/12/2023,000009407589682,17.35,AYLESBURY WATERSIDE TH
OXFORDSHIRE CC,ADULTS,CSS WITNEY,PROFESSIONAL SUBSCRIPTIONS,22/12/2023,000009407589314,414,GOVNET EVENTS
OXFORDSHIRE CC,CHILDREN'S & EDUCATION,DIDCOT MOVE-ON HOME,CATERING PROVISIONS,22/12/2023,000009407589642,17.8,TESCO STORES 2120
OXFORDSHIRE CC,CHILDREN'S & EDUCATION,DIDCOT MOVE-ON HOME,CATERING PROVISIONS,22/12/2023,000009407589646,12.3,TESCO STORES 2120
OXFORDSHIRE CC,CUSTOMER AND CULTURE,WITNEY LIBRARY,CATERING,22/12/2023,000009407589584,1.65,CO-OP GROUP 070582
OXFORDSHIRE CC,CHILDREN'S & EDUCATION,40 THE MOORS,CATERING PROVISIONS,22/12/2023,000009407589572,147.18,SAINSBURY'S S/MKT
OXFORDSHIRE CC,CHILDREN'S & EDUCATION,DIDCOT MOVE-ON HOME,CLOTHING AND UNIFORMS,22/12/2023,000009407589650,10,RIVER ISLAND 219
OXFORDSHIRE CC,CHILDREN'S & EDUCATION,EYNSHAM,CATERING PROVISIONS,22/12/2023,000009407590016,196.54,TESCO STORES 2994
OXFORDSHIRE CC,CHILDREN'S & EDUCATION,FSP NON-STAFFING - CENTRAL,PAYMENTS TO TRANSPORT OPERATORS,22/12/2023,000009407590002,86.4,TRAINLINE
OXFORDSHIRE CC,CHILDREN'S & EDUCATION,40 THE MOORS,MATERIALS,22/12/2023,000009407589578,250,ARGOS KIDLINGTON INSID
OXFORDSHIRE CC,CHILDREN'S & EDUCATION,DIDCOT MOVE-ON HOME,MATERIALS,22/12/2023,000009407589638,20,PANDORA JEWELLERY UK L
OXFORDSHIRE CC,CHILDREN'S & EDUCATION,40 THE MOORS,CATERING PROVISIONS,22/12/2023,000009407589502,3,TESCO STORES 6292
OXFORDSHIRE CC,CHILDREN'S & EDUCATION,40 THE MOORS,CATERING PROVISIONS,22/12/2023,000009407589498,20,TESCO STORES 6292
OXFORDSHIRE CC,CHILDREN'S & EDUCATION,THE RIDGEWAY,CLOTHING AND UNIFORMS,22/12/2023,000009407589442,55,NEXT RETAIL LTD
OXFORDSHIRE CC,CHILDREN'S & EDUCATION,40 THE MOORS,OTHER EXPENSES,22/12/2023,000009407589506,29.7,BOOTS 0330
OXFORDSHIRE CC,CHILDREN'S & EDUCATION,FAMILY SOLUTIONS PLUS NON-STAFF � SOUTH,POSTAGE AND DELIVERY,22/12/2023,000009407589372,2.75,POST OFFICE COUNTER
OXFORDSHIRE CC,CHILDREN'S & EDUCATION,"	LEAVING CARE CITY 1",PAYMENTS TO TRANSPORT OPERATORS,22/12/2023,000009407589430,32.7,TRAINLINE
OXFORDSHIRE CC,CHILDREN'S & EDUCATION,40 THE MOORS,MATERIALS,22/12/2023,000009407589538,119.99,MUSIC MAGPIE
OXFORDSHIRE CC,CHILDREN'S & EDUCATION,DIDCOT MOVE-ON HOME,CATERING PROVISIONS,22/12/2023,000009407589564,18.02,MILLETS FARM SHOP
OXFORDSHIRE CC,CHILDREN'S & EDUCATION,"	MALTFIELD HOUSE",FURNITURE,22/12/2023,000009407589558,935.55,IKEA LTD 461 READING M
OXFORDSHIRE CC,CHILDREN'S & EDUCATION,40 THE MOORS,MATERIALS,22/12/2023,000009407589484,43.27,ROBERT DYAS 136
OXFORDSHIRE CC,CHILDREN'S & EDUCATION,40 THE MOORS,CATERING PROVISIONS,22/12/2023,000009407589516,4.85,SAINSBURYS S/MKTS
OXFORDSHIRE CC,CHILDREN'S & EDUCATION,40 THE MOORS,CATERING PROVISIONS,22/12/2023,000009407589514,5.5,SAINSBURYS S/MKTS
OXFORDSHIRE CC,CHILDREN'S & EDUCATION,40 THE MOORS,CATERING PROVISIONS,22/12/2023,000009407589478,29.57,TAHMID STORES
OXFORDSHIRE CC,CHILDREN'S & EDUCATION,FAMILY SOLUTIONS PLUS NON-STAFF - NORTH,PAYMENTS TO TRANSPORT OPERATORS,22/12/2023,000009407589958,13.13,TRAINLINE
OXFORDSHIRE CC,CHILDREN'S & EDUCATION,"	LEAVING CARE CITY 1",MATERIALS,22/12/2023,000009407589548,76.82,AMAZON.CO.UK ME32J3RR5
OXFORDSHIRE CC,ENVIRONMENT AND PLACE,MAINTENANCE STAFF,MATERIALS,22/12/2023,000009407589362,4.99,AMZNMKTPLACE
OXFORDSHIRE CC,CHILDREN'S & EDUCATION,EYNSHAM,CLOTHING AND UNIFORMS,22/12/2023,000009407589846,130.99,SIZE?
OXFORDSHIRE CC,CUSTOMER AND CULTURE,MUSEUMS COLLECTIONS,OTHER SERVICES,22/12/2023,000009407589756,67.91,AMZNMKTPLACE
OXFORDSHIRE CC,CHILDREN'S & EDUCATION,FAMILY SOLUTIONS PLUS NON-STAFF - NORTH,PAYMENTS TO TRANSPORT OPERATORS,22/12/2023,000009407589962,25.67,TRAINLINE
OXFORDSHIRE CC,CHILDREN'S & EDUCATION,"	LEAVING CARE CITY 2",MATERIALS,22/12/2023,000009407589694,278.97,AMZNMKTPLACE
OXFORDSHIRE CC,CHILDREN'S & EDUCATION,EYNSHAM,CLOTHING AND UNIFORMS,22/12/2023,000009407589840,157.5,JD SPORTS FASHION PLC
OXFORDSHIRE CC,CHILDREN'S & EDUCATION,ATV ADOPTION WOODLEY,HIRE OF ACCOMMODATION AND FACILITIES,22/12/2023,000009407589322,949.6,WOODLEY TOWN COUNCIL
OXFORDSHIRE CC,CHILDREN'S & EDUCATION,FAMILY SOLUTIONS PLUS NON-STAFF - NORTH,CATERING,22/12/2023,000009407589966,10,STARBUCKS APP
OXFORDSHIRE CC,RESOURCES,CSC PROGRAMME TEAM,PAYMENT TO GOVERNMENT DEPARTMENTS,22/12/2023,000009407589464,200,S00050050INY UKVI
OXFORDSHIRE CC,CHILDREN'S & EDUCATION,"	LEAVING CARE CITY 2",VEHICLE FUEL,22/12/2023,000009407589410,15,TESCO PAYAT PUMP 4156
OXFORDSHIRE CC,ADULTS,CSS WITNEY,CATERING PROVISIONS,22/12/2023,000009407590064,15.41,CO-OP GROUP 070582
OXFORDSHIRE CC,ADULTS,CSS WITNEY,MATERIALS,22/12/2023,000009407590060,2.75,POUNDLAND LTD - 1912
OXFORDSHIRE CC,CHILDREN'S & EDUCATION,CHILDREN IN CARE NON-STAFFING - CENTRL 1,OTHER TRANSPORT ARRANGEMENTS,22/12/2023,000009407589348,4.5,OXFORDBUS.CO.UK
OXFORDSHIRE CC,CHILDREN'S & EDUCATION,CHILDREN IN CARE NON-STAFFING - CENTRL 1,PAYMENTS TO TRANSPORT OPERATORS,22/12/2023,000009407589352,16.19,TRAINLINE
OXFORDSHIRE CC,CHILDREN'S & EDUCATION,"	MALTFIELD HOUSE",FURNITURE,22/12/2023,000009407589552,5,B&M 762 CALCOT
OXFORDSHIRE CC,CHILDREN'S & EDUCATION,"	MALTFIELD HOUSE",FURNITURE,22/12/2023,000009407589556,310.97,B&M 762 CALCOT
OXFORDSHIRE CC,CHILDREN'S & EDUCATION,CHILDREN IN CARE NON-STAFFING - NORTH,ENTERTAINMENT EXPENSES,22/12/2023,000009407589350,15.9,GRAVITEE GOLF
OXFORDSHIRE CC,CUSTOMER AND CULTURE,HARD FM,PREMISES REPAIRS,22/12/2023,000009407589334,83.98,SCREWFIX DIR LTD
OXFORDSHIRE CC,ADULTS,FPT SOUTH/VALE,HOSPITALITY EXPENSES,22/12/2023,000009407590128,27.98,EUROFLORIST UK LTD
OXFORDSHIRE CC,CHILDREN'S & EDUCATION,THAME E&A HOME,OTHER EXPENSES,22/12/2023,000009407589384,18.75,TESCO STORES 2038
OXFORDSHIRE CC,CUSTOMER AND CULTURE,CATERING MANAGEMENT SOFT FM,CATERING PROVISIONS,22/12/2023,000009407589330,51.28,ASDA SUPERSTORE
OXFORDSHIRE CC,CHILDREN'S & EDUCATION,THAME E&A HOME,MATERIALS,22/12/2023,000009407589400,9.18,THE RANGE
OXFORDSHIRE CC,CHILDREN'S & EDUCATION,THAME E&A HOME,OTHER EXPENSES,22/12/2023,000009407589380,24.53,B&M 426 - HS AYLESBURY
OXFORDSHIRE CC,CHILDREN'S & EDUCATION,MANAGEMENT RECHARGES,POSTAGE AND DELIVERY,22/12/2023,000009407589328,1.5,FEE2PAYONLINE
OXFORDSHIRE CC,CHILDREN'S & EDUCATION,"	DIRECTOR'S OFFICE",CATERING PROVISIONS,22/12/2023,000009407589656,58,MARKS&SPENCER PLC
OXFORDSHIRE CC,CHILDREN'S & EDUCATION,KINGFISHER,CATERING PROVISIONS,22/12/2023,000009407589332,100,TESCO GIFT CARD
OXFORDSHIRE CC,CUSTOMER AND CULTURE,THAME LIBRARY,CATERING PROVISIONS,22/12/2023,000009407589918,5.6,SAINSBURYS S/MKTS
OXFORDSHIRE CC,CORPORATE CORE,,STATIONERY,22/12/2023,000009407589944,14.63,LYRECO UK LTD
OXFORDSHIRE CC,CHILDREN'S & EDUCATION,NTS UASC AGENCY,MATERIALS,22/12/2023,000009407589952,27.62,AMZNMKTPLACE
OXFORDSHIRE CC,CHILDREN'S & EDUCATION,EET SERVICE,MATERIALS,22/12/2023,000009407589854,21.58,AMAZON.CO.UK D12AA1S95
OXFORDSHIRE CC,CHILDREN'S & EDUCATION,EET SERVICE,MATERIALS,22/12/2023,000009407589906,21.58,AMAZON.CO.UK 7H3Y02EK5
OXFORDSHIRE CC,CHILDREN'S & EDUCATION,EET SERVICE,MATERIALS,22/12/2023,000009407589858,21.58,AMAZON.CO.UK EM7RK7E25
OXFORDSHIRE CC,CHILDREN'S & EDUCATION,EET SERVICE,MATERIALS,22/12/2023,000009407589866,21.58,AMAZON.CO.UK IY9G46435
OXFORDSHIRE CC,CHILDREN'S & EDUCATION,EET SERVICE,MATERIALS,22/12/2023,000009407589890,21.58,AMAZON.CO.UK V32WM72R5
OXFORDSHIRE CC,CHILDREN'S & EDUCATION,EET SERVICE,MATERIALS,22/12/2023,000009407589874,21.58,AMAZON.CO.UK PC6AO1MU5
OXFORDSHIRE CC,CHILDREN'S & EDUCATION,EET SERVICE,MATERIALS,22/12/2023,000009407589862,21.58,AMAZON.CO.UK H683C1BV4
OXFORDSHIRE CC,CHILDREN'S & EDUCATION,EET SERVICE,MATERIALS,22/12/2023,000009407589882,21.58,AMAZON.CO.UK UO1BP7T75
OXFORDSHIRE CC,CHILDREN'S & EDUCATION,EET SERVICE,MATERIALS,22/12/2023,000009407589850,21.58,AMAZON.CO.UK AW6WZ6OU5
OXFORDSHIRE CC,CHILDREN'S & EDUCATION,EET SERVICE,MATERIALS,22/12/2023,000009407589870,21.58,AMAZON.CO.UK O688B25Y5
OXFORDSHIRE CC,CHILDREN'S & EDUCATION,EET SERVICE,MATERIALS,22/12/2023,000009407589878,21.58,AMAZON.CO.UK QM1KQ6IP5
OXFORDSHIRE CC,CHILDREN'S & EDUCATION,EET SERVICE,MATERIALS,22/12/2023,000009407589886,21.58,AMAZON.CO.UK VR0103Z85
OXFORDSHIRE CC,CHILDREN'S & EDUCATION,EET SERVICE,MATERIALS,22/12/2023,000009407589902,21.58,AMAZON.CO.UK YQ3PN3NU5
OXFORDSHIRE CC,CHILDREN'S & EDUCATION,EET SERVICE,MATERIALS,22/12/2023,000009407589896,9.96,AMAZON.CO.UK WI2VR6HD5
OXFORDSHIRE CC,ENVIRONMENT AND PLACE,MAINTENANCE STAFF,MATERIALS,22/12/2023,000009407589734,83,AMAZON.CO.UK O84654LF5
OXFORDSHIRE CC,CUSTOMER AND CULTURE,HARD FM,PREMISES REPAIRS,22/12/2023,000009407589336,118.27,VELUX COMPANY LTD
OXFORDSHIRE CC,CHILDREN'S & EDUCATION,"	LOOKED AFTER CITY 2",OTHER TRANSPORT ARRANGEMENTS,22/12/2023,000009407589686,2,OXFORD BUS COMPANY
OXFORDSHIRE CC,CUSTOMER AND CULTURE,HOLTON SITE,CATERING PROVISIONS,22/12/2023,000009407589426,-5,MILK AND MORE
OXFORDSHIRE CC,CHILDREN'S & EDUCATION,THE RIDGEWAY,CLOTHING AND UNIFORMS,22/12/2023,000009407589446,-55,NEXT RETAIL LTD
OXFORDSHIRE CC,PUBLIC HEALTH,LEAVING CARE CITY 1,OTHER EXPENSES,22/12/2023,000009407589318,281.41,AMZNMKTPLACE
OXFORDSHIRE CC,CHILDREN'S & EDUCATION,"	LOOKED AFTER CITY 2",MATERIALS,22/12/2023,000009407589528,15,THEWORKS.CO.UK
OXFORDSHIRE CC,CHILDREN'S & EDUCATION,PAUSE PROGRAMME,CATERING,22/12/2023,000009407590134,4.85,GREGGS
OXFORDSHIRE CC,CHILDREN'S & EDUCATION,PAUSE PROGRAMME,CATERING,22/12/2023,000009407589630,1.69,MCDONALDS
OXFORDSHIRE CC,CHILDREN'S & EDUCATION,PAUSE PROGRAMME,CATERING,22/12/2023,000009407589626,13.16,MCDONALDS
OXFORDSHIRE CC,ADULTS,CSS - OXFORD,CATERING PROVISIONS,22/12/2023,000009407589456,15.98,ALDI STORES 775-142
OXFORDSHIRE CC,ADULTS,CSS - OXFORD,CATERING PROVISIONS,22/12/2023,000009407589452,18.26,ALDI STORES 775-142
OXFORDSHIRE CC,ADULTS,CSS - OXFORD,CATERING PROVISIONS,22/12/2023,000009407589460,3.52,ALDI STORES 775-142
OXFORDSHIRE CC,ADULTS,CSS - OXFORD,CATERING PROVISIONS,22/12/2023,000009407589612,48.86,ALDI STORES 775-142
OXFORDSHIRE CC,CHILDREN'S & EDUCATION,THAME E&A HOME,CLOTHING AND UNIFORMS,22/12/2023,000009407589390,3.5,MATALAN ECOM
OXFORDSHIRE CC,ENVIRONMENT AND PLACE,MAINTENANCE STAFF,MATERIALS,21/12/2023,000009402913394,45.16,AMZNMKTPLACE
OXFORDSHIRE CC,CUSTOMER AND CULTURE,TREE MAINT OPS,EQUIPMENT,21/12/2023,000009402913780,384.39,AMZNMKTPLACE
OXFORDSHIRE CC,CUSTOMER AND CULTURE,"MARKETING, COMMUNICATIONS & ENGAGEMENT","PUBLICITY, PROMOTIONS AND ADVERTISEMENT",21/12/2023,000009402913570,10.66,SNAP INC SNAP SNAP ADS
OXFORDSHIRE CC,CHILDREN'S & EDUCATION,"	LOOKED AFTER NORTH",OTHER TRANSPORT ARRANGEMENTS,21/12/2023,000009402913176,8.9,M6 TOLL
OXFORDSHIRE CC,CHILDREN'S & EDUCATION,EYNSHAM,MATERIALS,21/12/2023,000009402913754,12.99,AMZN DIGITAL
OXFORDSHIRE CC,CHILDREN'S & EDUCATION,EYNSHAM,MATERIALS,21/12/2023,000009402913758,13.48,DECATHLON
OXFORDSHIRE CC,CHILDREN'S & EDUCATION,THAME E&A HOME,RESIDENTIAL ACTIVITIES,21/12/2023,000009402913826,12,RAYMOND GUBBAY LIMITED
OXFORDSHIRE CC,CHILDREN'S & EDUCATION,"	LEAVING CARE NORTH",MATERIALS,21/12/2023,000009402913670,43.98,AMZNMKTPLACE
OXFORDSHIRE CC,CHILDREN'S & EDUCATION,"	LEAVING CARE NORTH",MATERIALS,21/12/2023,000009402913674,188.49,AMZNMKTPLACE
OXFORDSHIRE CC,ENVIRONMENT AND PLACE,CTRYSIDE OPS STAFF,STAFF ADVERTISING - GENERAL,21/12/2023,000009402913666,150,WP-COUNTRYSIDE JOB
OXFORDSHIRE CC,ENVIRONMENT AND PLACE,CTRYSIDE OPS STAFF,STAFF ADVERTISING - GENERAL,21/12/2023,000009402913662,150,WP-COUNTRYSIDE JOB
OXFORDSHIRE CC,ADULTS,CSS BICESTER,CATERING PROVISIONS,21/12/2023,000009402913006,2.95,SAINSBURYS S/MKTS
OXFORDSHIRE CC,CHILDREN'S & EDUCATION,40 THE MOORS,MATERIALS,21/12/2023,000009402913132,1.99,CARD FACTORY
OXFORDSHIRE CC,CHILDREN'S & EDUCATION,FAMILY SOLUTIONS PLUS NON-STAFF - NORTH,PAYMENT TO GOVERNMENT DEPARTMENTS,21/12/2023,000009402913656,11,GEN REGISTER OFFICE
OXFORDSHIRE CC,RESOURCES,ICT OPERATIONS & MAI,PURCHASE OF IT EQUIPMENT,21/12/2023,000009402913770,449.18,YODECK.COM FLIPNODE
OXFORDSHIRE CC,CHILDREN'S & EDUCATION,WITNEY,CATERING PROVISIONS,21/12/2023,000009402913262,38.35,SAINSBURYS S/MKTS
OXFORDSHIRE CC,CHILDREN'S & EDUCATION,THAME E&A HOME,CATERING,21/12/2023,000009402913014,4.3,SAINSBURYS S/MKTS
OXFORDSHIRE CC,CHILDREN'S & EDUCATION,EET SERVICE,CATERING PROVISIONS,21/12/2023,000009402913628,60.5,SAINSBURYS S/MKT
OXFORDSHIRE CC,CHILDREN'S & EDUCATION,"	LEAVING CARE NORTH",HIRE OF ACCOMMODATION AND FACILITIES,21/12/2023,000009402913690,67.3,TRAVELODGE
OXFORDSHIRE CC,CHILDREN'S & EDUCATION,EET SERVICE,CATERING PROVISIONS,21/12/2023,000009402913622,110.23,SAINSBURYS S/MKT
OXFORDSHIRE CC,CHILDREN'S & EDUCATION,EYNSHAM,VEHICLE FUEL,21/12/2023,000009402913760,17.75,TESCO PFS 2488
OXFORDSHIRE CC,ADULTS,CSS - OXFORD,VEHICLE EQUIPMENT AND EXPENSES - OTHER,21/12/2023,000009402913384,67.37,LSW
OXFORDSHIRE CC,CUSTOMER AND CULTURE,MUSEUM CAFE,EQUIPMENT,21/12/2023,000009402913442,515,AO RETAIL LIMITED
OXFORDSHIRE CC,ENVIRONMENT AND PLACE,ROW MAINT,EQUIPMENT,21/12/2023,000009402913280,16.45,POST OFFICE COUNTER
OXFORDSHIRE CC,CHILDREN'S & EDUCATION,"	LEAVING CARE SOUTH",CLOTHING AND UNIFORMS,21/12/2023,000009402913272,84.22,SHEIN.COM
OXFORDSHIRE CC,CHILDREN'S & EDUCATION,40 THE MOORS,CATERING PROVISIONS,21/12/2023,000009402913190,58.05,CLR ALDENS FISHMARKET
OXFORDSHIRE CC,ADULTS,CSS BICESTER,MATERIALS,21/12/2023,000009402913054,12.49,AMZNMKTPLACE
OXFORDSHIRE CC,CHILDREN'S & EDUCATION,"	LOOKED AFTER CITY 2",PAYMENTS TO TRANSPORT OPERATORS,21/12/2023,000009402913320,132.46,TRAINLINE
OXFORDSHIRE CC,CHILDREN'S & EDUCATION,"	LOOKED AFTER CITY 2",CATERING PROVISIONS,21/12/2023,000009402913148,20,ASDA STORE 4442
OXFORDSHIRE CC,CHILDREN'S & EDUCATION,"	LOOKED AFTER NORTH",OTHER TRANSPORT ARRANGEMENTS,21/12/2023,000009402913180,8.9,M6 TOLL
OXFORDSHIRE CC,CHILDREN'S & EDUCATION,PAUSE PROGRAMME,OTHER TRANSPORT ARRANGEMENTS,21/12/2023,000009402913934,1.5,VALE OF WH PARKING FEE
OXFORDSHIRE CC,CHILDREN'S & EDUCATION,"	LOOKED AFTER CITY 2",CATERING PROVISIONS,21/12/2023,000009402913152,10.98,LIDL GB
OXFORDSHIRE CC,CHILDREN'S & EDUCATION,PAUSE PROGRAMME,CATERING,21/12/2023,000009402913930,13.38,MCDONALDS 8260155
OXFORDSHIRE CC,ENVIRONMENT AND PLACE,CTRYSIDE OPS STAFF,STAFF ADVERTISING - GENERAL,21/12/2023,000009402913660,237.6,WWW.HORTEJOBS.COM
OXFORDSHIRE CC,ADULTS,CSS WITNEY,MATERIALS,21/12/2023,000009402913472,64.95,AMZNMKTPLACE
OXFORDSHIRE CC,CHILDREN'S & EDUCATION,NTS UASC AGENCY,CLEANING MATERIALS,21/12/2023,000009402913786,9.22,SAVERS HEALTH & BEAUTY
OXFORDSHIRE CC,CUSTOMER AND CULTURE,HARD FM,PREMISES REPAIRS,21/12/2023,000009402912976,17.1,B & Q 1176
OXFORDSHIRE CC,CHILDREN'S & EDUCATION,THAME E&A HOME,MATERIALS,21/12/2023,000009402913224,16.18,ROBERT DYAS THAME
OXFORDSHIRE CC,CHILDREN'S & EDUCATION,40 THE MOORS,MATERIALS,21/12/2023,000009402913744,46.22,HOME BARGAINS
OXFORDSHIRE CC,CHILDREN'S & EDUCATION,THAME E&A HOME,CATERING PROVISIONS,21/12/2023,000009402913230,27,ASDA SUPERSTORE
OXFORDSHIRE CC,CHILDREN'S & EDUCATION,40 THE MOORS,CATERING,21/12/2023,000009402913746,111.36,BOOKER LTD - 38584104
OXFORDSHIRE CC,CHILDREN'S & EDUCATION,40 THE MOORS,CATERING PROVISIONS,21/12/2023,000009402913544,45.07,BOOKER LTD - 38584104
OXFORDSHIRE CC,CUSTOMER AND CULTURE,HARD FM,PREMISES REPAIRS,21/12/2023,000009402913836,19.99,SCREWFIX OXFORD COWLEY
OXFORDSHIRE CC,CHILDREN'S & EDUCATION,CHILDREN IN CARE NON-STAFFING - NORTH,PAYMENTS TO TRANSPORT OPERATORS,21/12/2023,000009402912990,13.13,TRAINLINE
OXFORDSHIRE CC,CHILDREN'S & EDUCATION,KINGFISHER,CATERING PROVISIONS,21/12/2023,000009402913858,100,ASDA STORES LTD
OXFORDSHIRE CC,CHILDREN'S & EDUCATION,WITNEY,CATERING PROVISIONS,21/12/2023,000009402913714,3.8,MARKS&SPENCER PLC SACA
OXFORDSHIRE CC,CHILDREN'S & EDUCATION,"	LEAVING CARE CITY 2",MATERIALS,21/12/2023,000009402913354,391.95,WWW.ARGOS.CO.UK
OXFORDSHIRE CC,CUSTOMER AND CULTURE,"MARKETING, COMMUNICATIONS & ENGAGEMENT","PUBLICITY, PROMOTIONS AND ADVERTISEMENT",21/12/2023,000009402913568,500,GOOGLE ADS4896546035
OXFORDSHIRE CC,CHILDREN'S & EDUCATION,WITNEY,CATERING PROVISIONS,21/12/2023,000009402913724,18.45,CO-OP GROUP 070582
OXFORDSHIRE CC,CUSTOMER AND CULTURE,OXFORDSHIRE MUSEUM,MATERIALS,21/12/2023,000009402913436,24.92,AMZNMKTPLACE
OXFORDSHIRE CC,CHILDREN'S & EDUCATION,WITNEY,MATERIALS,21/12/2023,000009402913720,7.95,POUNDLAND LTD - 1912
OXFORDSHIRE CC,CUSTOMER AND CULTURE,MUSIC UNALLOCABLE,CATERING PROVISIONS,21/12/2023,000009402913832,345,BUNNYS BAKERY
OXFORDSHIRE CC,CUSTOMER AND CULTURE,MUSIC UNALLOCABLE,CATERING PROVISIONS,21/12/2023,000009402913830,345,BUNNYS BAKERY
OXFORDSHIRE CC,CHILDREN'S & EDUCATION,FAMILY SOLUTIONS PLUS NON-STAFF - NORTH,PAYMENT TO GOVERNMENT DEPARTMENTS,21/12/2023,000009402913702,11,OXFORDSHIRE CC WEB1
OXFORDSHIRE CC,CUSTOMER AND CULTURE,SCHOOLS FM CATERING AREA 2,OTHER TRANSPORT ARRANGEMENTS,21/12/2023,000009402913298,4.3,RINGGO PARKING
OXFORDSHIRE CC,CUSTOMER AND CULTURE,OXFORDSHIRE MUSEUM,MATERIALS,21/12/2023,000009402913424,52.85,AMZNMKTPLACE
OXFORDSHIRE CC,CHILDREN'S & EDUCATION,THAME E&A HOME,OTHER EXPENSES,21/12/2023,000009402913026,25.15,SUPERDRUG STORES PLC
OXFORDSHIRE CC,CUSTOMER AND CULTURE,OXFORDSHIRE MUSEUM,MATERIALS,21/12/2023,000009402913430,75.96,AMZNMKTPLACE
OXFORDSHIRE CC,CHILDREN'S & EDUCATION,THAME E&A HOME,OTHER EXPENSES,21/12/2023,000009402913018,3.8,MARKS&SPENCER PLC SACA
OXFORDSHIRE CC,ADULTS,CSS - OXFORD,CATERING PROVISIONS,21/12/2023,000009402913388,374.75,TESCO STORES 2994
OXFORDSHIRE CC,CHILDREN'S & EDUCATION,CHILDREN IN CARE NON-STAFFING - NORTH,DAY ACTIVITIES,21/12/2023,000009402913000,18.26,HOLLYWOOD BOWL
OXFORDSHIRE CC,CHILDREN'S & EDUCATION,THAME E&A HOME,OTHER EXPENSES,21/12/2023,000009402913024,13.62,"BOOTS,AYLESBURY"
OXFORDSHIRE CC,CHILDREN'S & EDUCATION,FAMILY SOLUTIONS PLUS NON-STAFF - NORTH,PAYMENTS TO TRANSPORT OPERATORS,21/12/2023,000009402913706,13.13,TRAINLINE
OXFORDSHIRE CC,SOCIAL AND COMMUNITY SERVICES,CSS - ABINGDON,MATERIALS,21/12/2023,000009402912954,29.98,AMZNMKTPLACE
OXFORDSHIRE CC,CUSTOMER AND CULTURE,SCHOOLS FM CATERING AREA 2,CATERING PROVISIONS,21/12/2023,000009402913302,6,TESCO STORES 2994
OXFORDSHIRE CC,CUSTOMER AND CULTURE,SCHOOLS FM CATERING AREA 4,CATERING PROVISIONS,21/12/2023,000009402913252,8.1,SAINSBURYS S/MKTS
OXFORDSHIRE CC,CHILDREN'S & EDUCATION,CHILDREN IN CARE NON-STAFFING - NORTH,DAY ACTIVITIES,21/12/2023,000009402912996,7.5,ROCK UP WATFORD
OXFORDSHIRE CC,CUSTOMER AND CULTURE,HARD FM,PREMISES REPAIRS,21/12/2023,000009402912968,89.99,WWW.SCREWFIX.COM
OXFORDSHIRE CC,ADULTS,CSS WANTAGE,CATERING PROVISIONS,21/12/2023,000009402912936,6,WAITROSE 675
OXFORDSHIRE CC,ADULTS,CSS - ABINGDON,TECHNICAL AND PROFESSIONAL CONSULTANT F,21/12/2023,000009402913924,412.17,KOLLER ENGINEERING LIM
OXFORDSHIRE CC,CHILDREN'S & EDUCATION,CHILDREN IN CARE NON-STAFFING - CENTRL 1,PAYMENTS TO TRANSPORT OPERATORS,21/12/2023,000009402913034,72.67,BKG HOTEL AT BOOKING.C
OXFORDSHIRE CC,CUSTOMER AND CULTURE,HARD FM,PREMISES REPAIRS,21/12/2023,000009402912982,3.9,NCP BANBURY MARLBOROUG
OXFORDSHIRE CC,CORPORATE CORE,,STATIONERY,21/12/2023,000009402913648,56.96,LYRECO UK LTD
OXFORDSHIRE CC,CORPORATE CORE,,STATIONERY,21/12/2023,000009402913652,56.96,LYRECO UK LTD
OXFORDSHIRE CC,CHILDREN'S & EDUCATION,EET SERVICE,MATERIALS,21/12/2023,000009402913588,208.6,AMZNMKTPLACE
OXFORDSHIRE CC,CUSTOMER AND CULTURE,BUSINESS INTELLECTUAL PROPERTY CENTRE,CATERING PROVISIONS,21/12/2023,000009402913366,78.12,SAINSBURYS.CO.UK
OXFORDSHIRE CC,CHILDREN'S & EDUCATION,EET SERVICE,MATERIALS,21/12/2023,000009402913592,219.03,AMZNMKTPLACE
OXFORDSHIRE CC,CHILDREN'S & EDUCATION,"	LOOKED AFTER CITY 2",OTHER TRANSPORT ARRANGEMENTS,21/12/2023,000009402913318,2,OXFORD BUS COMPANY
OXFORDSHIRE CC,CHILDREN'S & EDUCATION,40 THE MOORS,MATERIALS,21/12/2023,000009402913750,-12.99,HOME BARGAINS
OXFORDSHIRE CC,CHILDREN'S & EDUCATION,THAME E&A HOME,CLOTHING AND UNIFORMS,21/12/2023,000009402913022,33.79,MATALAN ECOM
OXFORDSHIRE CC,CHILDREN'S & EDUCATION,EET SERVICE,MATERIALS,21/12/2023,000009402913606,15.09,AMZNMKTPLACE
OXFORDSHIRE CC,CHILDREN'S & EDUCATION,EET SERVICE,MATERIALS,21/12/2023,000009402913598,25.15,AMZNMKTPLACE
OXFORDSHIRE CC,CHILDREN'S & EDUCATION,EET SERVICE,MATERIALS,21/12/2023,000009402913608,25.15,AMZNMKTPLACE
OXFORDSHIRE CC,CHILDREN'S & EDUCATION,EET SERVICE,MATERIALS,21/12/2023,000009402913612,25.15,AMZNMKTPLACE
OXFORDSHIRE CC,CHILDREN'S & EDUCATION,EET SERVICE,MATERIALS,21/12/2023,000009402913618,18.88,AMZNMKTPLACE
OXFORDSHIRE CC,CUSTOMER AND CULTURE,MUSEUMS COLLECTIONS,OTHER SERVICES,21/12/2023,000009402913450,6.85,AMZNMKTPLACE
OXFORDSHIRE CC,RESOURCES,LEGAL SERVICES,LEGAL COSTS,21/12/2023,000009402913764,11,OXFORDSHIRE CC WEB1
OXFORDSHIRE CC,CUSTOMER AND CULTURE,MUSEUMS COLLECTIONS,OTHER SERVICES,21/12/2023,000009402913454,9.95,AMZNMKTPLACE
OXFORDSHIRE CC,ENVIRONMENT AND PLACE,NAT TRAILS GENERAL,VEHICLE FUEL,21/12/2023,000009402913324,69.81,MFG EYNSHAM
OXFORDSHIRE CC,ADULTS,CSS WALLINGFORD,MATERIALS,21/12/2023,000009402912918,33,AMZNMKTPLACE
OXFORDSHIRE CC,ADULTS,CSS WALLINGFORD,MATERIALS,21/12/2023,000009402912918,73.96,AMZNMKTPLACE
OXFORDSHIRE CC,ADULTS,CSS - OXFORD,CATERING PROVISIONS,21/12/2023,000009402912962,3.8,ALDI STORES 775-142
OXFORDSHIRE CC,ADULTS,CSS WITNEY,CATERING PROVISIONS,21/12/2023,000009402913814,23.13,ALDI 112 775
OXFORDSHIRE CC,CUSTOMER AND CULTURE,MUSEUMS COLLECTIONS,OTHER SERVICES,21/12/2023,000009402913446,25.7,MORPLAN.COM
OXFORDSHIRE CC,CHILDREN'S & EDUCATION,KINGFISHER,HIRE OF ACCOMMODATION AND FACILITIES,21/12/2023,000009402913856,178,PREMIER INN
OXFORDSHIRE CC,ADULTS,CSS - OXFORD,CATERING PROVISIONS,21/12/2023,000009402913222,42.1,ALDI STORES 775-142
OXFORDSHIRE CC,CHILDREN'S & EDUCATION,"	LEAVING CARE NORTH",CLOTHING AND UNIFORMS,21/12/2023,000009402913682,-40,NEXT DIRECTORY
OXFORDSHIRE CC,CHILDREN'S & EDUCATION,"	LEAVING CARE NORTH",CLOTHING AND UNIFORMS,21/12/2023,000009402913680,-18,NEXT DIRECTORY
OXFORDSHIRE CC,CHILDREN'S & EDUCATION,EET SERVICE,MATERIALS,20/12/2023,000009398193824,14.43,AMAZON.CO.UK 8193G1IX5
OXFORDSHIRE CC,CHILDREN'S & EDUCATION,EET SERVICE,MATERIALS,20/12/2023,000009398193848,25.15,AMZNMKTPLACE
OXFORDSHIRE CC,CHILDREN'S & EDUCATION,EET SERVICE,MATERIALS,20/12/2023,000009398193852,25.15,AMZNMKTPLACE
OXFORDSHIRE CC,CHILDREN'S & EDUCATION,EET SERVICE,MATERIALS,20/12/2023,000009398193842,25.15,AMZNMKTPLACE
OXFORDSHIRE CC,CUSTOMER AND CULTURE,"MARKETING, COMMUNICATIONS & ENGAGEMENT","PUBLICITY, PROMOTIONS AND ADVERTISEMENT",20/12/2023,000009398193212,10.55,SNAP INC SNAP SNAP ADS
OXFORDSHIRE CC,CHILDREN'S & EDUCATION,EET SERVICE,MATERIALS,20/12/2023,000009398193322,14.64,AMAZON.CO.UK GA83G9BW5
OXFORDSHIRE CC,CHILDREN'S & EDUCATION,EET SERVICE,MATERIALS,20/12/2023,000009398193344,21.75,AMAZON.CO.UK UQ7378975
OXFORDSHIRE CC,CHILDREN'S & EDUCATION,EET SERVICE,MATERIALS,20/12/2023,000009398193362,14.64,AMAZON.CO.UK 5A7748IZ5
OXFORDSHIRE CC,CHILDREN'S & EDUCATION,EYNSHAM,RESIDENTIAL ACTIVITIES,20/12/2023,000009398194368,38.25,SAINSBURYS S/MKTS
OXFORDSHIRE CC,CHILDREN'S & EDUCATION,EET SERVICE,MATERIALS,20/12/2023,000009398193686,21.36,AMAZON.CO.UK QQ2LW1WG5
OXFORDSHIRE CC,CHILDREN'S & EDUCATION,EET SERVICE,MATERIALS,20/12/2023,000009398193800,21.36,AMAZON.CO.UK 5T0E59155
OXFORDSHIRE CC,CHILDREN'S & EDUCATION,EET SERVICE,MATERIALS,20/12/2023,000009398193640,21.36,AMAZON.CO.UK JL1JP30C5
OXFORDSHIRE CC,CHILDREN'S & EDUCATION,EET SERVICE,MATERIALS,20/12/2023,000009398193682,21.36,AMAZON.CO.UK MQ1OB8G15
OXFORDSHIRE CC,CHILDREN'S & EDUCATION,EET SERVICE,MATERIALS,20/12/2023,000009398193646,21.36,AMAZON.CO.UK JL7W307G5
OXFORDSHIRE CC,CHILDREN'S & EDUCATION,EET SERVICE,MATERIALS,20/12/2023,000009398193624,21.36,AMAZON.CO.UK HV0HK95X5
OXFORDSHIRE CC,CHILDREN'S & EDUCATION,EET SERVICE,MATERIALS,20/12/2023,000009398193816,21.36,AMAZON.CO.UK 8N1FQ3UY5
OXFORDSHIRE CC,CUSTOMER AND CULTURE,COMMUNITY PARTNERSHIP TEAM,CATERING PROVISIONS,20/12/2023,000009398192352,9,SAINSBURYS S/MKTS
OXFORDSHIRE CC,CHILDREN'S & EDUCATION,EET SERVICE,CATERING PROVISIONS,20/12/2023,000009398193540,11.53,B&M 250 - WANTAGE
OXFORDSHIRE CC,CHILDREN'S & EDUCATION,EET SERVICE,MATERIALS,20/12/2023,000009398193828,25.15,AMZNMKTPLACE
OXFORDSHIRE CC,CHILDREN'S & EDUCATION,EET SERVICE,CATERING PROVISIONS,20/12/2023,000009398193546,27.27,HOME BARGAINS
OXFORDSHIRE CC,CHILDREN'S & EDUCATION,EET SERVICE,CATERING PROVISIONS,20/12/2023,000009398193860,119.31,SAINSBURYS S/MKT
OXFORDSHIRE CC,CHILDREN'S & EDUCATION,DIDCOT MOVE-ON HOME,CATERING PROVISIONS,20/12/2023,000009398192600,17.39,SAINSBURYS S/MKTS
OXFORDSHIRE CC,CHILDREN'S & EDUCATION,DIDCOT MOVE-ON HOME,DOMESTIC SUPPLIES,20/12/2023,000009398192594,2,SAINSBURYS S/MKTS
OXFORDSHIRE CC,CHILDREN'S & EDUCATION,EET SERVICE,MATERIALS,20/12/2023,000009398193728,21.36,AMAZON.CO.UK WJ52D8C35
OXFORDSHIRE CC,CHILDREN'S & EDUCATION,EET SERVICE,MATERIALS,20/12/2023,000009398193722,13.12,AMAZON.CO.UK TQ1XF8Y95
OXFORDSHIRE CC,CHILDREN'S & EDUCATION,EET SERVICE,MATERIALS,20/12/2023,000009398193696,7.32,AMAZON.CO.UK QT5U05NW5
OXFORDSHIRE CC,CHILDREN'S & EDUCATION,EET SERVICE,MATERIALS,20/12/2023,000009398193778,13.12,AMAZON.CO.UK 1W4XJ9NH5
OXFORDSHIRE CC,CHILDREN'S & EDUCATION,EET SERVICE,MATERIALS,20/12/2023,000009398193794,13.12,AMAZON.CO.UK 5F1LM85V5
OXFORDSHIRE CC,CHILDREN'S & EDUCATION,EET SERVICE,MATERIALS,20/12/2023,000009398193806,13.12,AMAZON.CO.UK 648181AG5
OXFORDSHIRE CC,CHILDREN'S & EDUCATION,EET SERVICE,MATERIALS,20/12/2023,000009398193758,13.12,AMAZON.CO.UK ZO0H02ZL5
OXFORDSHIRE CC,CHILDREN'S & EDUCATION,EET SERVICE,MATERIALS,20/12/2023,000009398193662,13.12,AMAZON.CO.UK LW86C2F75
OXFORDSHIRE CC,CHILDREN'S & EDUCATION,EET SERVICE,MATERIALS,20/12/2023,000009398193770,13.12,AMAZON.CO.UK 0M8IK32M5
OXFORDSHIRE CC,CUSTOMER AND CULTURE,BANBURY LIBRARY,"NEWSPAPERS, PERIODICALS AND PUBLICATIONS",20/12/2023,000009398192748,35.8,NEWSTEAM GROUP
OXFORDSHIRE CC,CHILDREN'S & EDUCATION,EET SERVICE,MATERIALS,20/12/2023,000009398193754,13.12,AMAZON.CO.UK YY94U7LM5
OXFORDSHIRE CC,CHILDREN'S & EDUCATION,EET SERVICE,MATERIALS,20/12/2023,000009398193740,21.36,AMAZON.CO.UK YB51X2G05
OXFORDSHIRE CC,CHILDREN'S & EDUCATION,EET SERVICE,MATERIALS,20/12/2023,000009398193766,13.12,AMAZON.CO.UK ZV8U70WF5
OXFORDSHIRE CC,CHILDREN'S & EDUCATION,EET SERVICE,MATERIALS,20/12/2023,000009398193618,13.12,AMAZON.CO.UK HU0OE5KF5
OXFORDSHIRE CC,CHILDREN'S & EDUCATION,EET SERVICE,MATERIALS,20/12/2023,000009398193836,51.3,AMZNMKTPLACE
OXFORDSHIRE CC,CHILDREN'S & EDUCATION,EET SERVICE,MATERIALS,20/12/2023,000009398193608,22.8,AMAZON.CO.UK HI3ZO2H25
OXFORDSHIRE CC,CHILDREN'S & EDUCATION,EYNSHAM,RESIDENTIAL ACTIVITIES,20/12/2023,000009398194358,55.36,READYSTEAD  READY STEA
OXFORDSHIRE CC,CHILDREN'S & EDUCATION,EET SERVICE,MATERIALS,20/12/2023,000009398193588,13.12,AMAZON.CO.UK DA3B93PL5
OXFORDSHIRE CC,ADULTS,CSS WITNEY,MATERIALS,20/12/2023,000009398191842,19.78,AMAZON.CO.UK U63GK4MK5
OXFORDSHIRE CC,CHILDREN'S & EDUCATION,EET SERVICE,MATERIALS,20/12/2023,000009398193632,13.12,AMAZON.CO.UK I40X13A25
OXFORDSHIRE CC,CHILDREN'S & EDUCATION,EET SERVICE,MATERIALS,20/12/2023,000009398193578,13.12,AMAZON.CO.UK CN83Z4Q85
OXFORDSHIRE CC,CHILDREN'S & EDUCATION,EET SERVICE,MATERIALS,20/12/2023,000009398193788,13.12,AMAZON.CO.UK 253UA0FM5
OXFORDSHIRE CC,CHILDREN'S & EDUCATION,EET SERVICE,MATERIALS,20/12/2023,000009398193734,13.12,AMAZON.CO.UK XW6D194K5
OXFORDSHIRE CC,CHILDREN'S & EDUCATION,EET SERVICE,MATERIALS,20/12/2023,000009398193726,21.36,AMAZON.CO.UK VY9KZ6325
OXFORDSHIRE CC,CHILDREN'S & EDUCATION,DIDCOT MOVE-ON HOME,CATERING PROVISIONS,20/12/2023,000009398194294,62.95,TK MAXX
OXFORDSHIRE CC,CHILDREN'S & EDUCATION,EET SERVICE,MATERIALS,20/12/2023,000009398193704,21.75,AMAZON.CO.UK QZ8ZW7UT5
OXFORDSHIRE CC,CHILDREN'S & EDUCATION,EET SERVICE,MATERIALS,20/12/2023,000009398193710,14.43,AMAZON.CO.UK SE18L9R55
OXFORDSHIRE CC,CHILDREN'S & EDUCATION,EET SERVICE,MATERIALS,20/12/2023,000009398193570,21.75,AMAZON.CO.UK BZ6LI5755
OXFORDSHIRE CC,PUBLIC HEALTH,WITNEY,CATERING PROVISIONS,20/12/2023,000009398191932,18.35,SAINSBURYS S/MKTS
OXFORDSHIRE CC,CHILDREN'S & EDUCATION,EET SERVICE,MATERIALS,20/12/2023,000009398193748,13.12,AMAZON.CO.UK YU00W1445
OXFORDSHIRE CC,CHILDREN'S & EDUCATION,"	LEAVING CARE NORTH",MATERIALS,20/12/2023,000009398194186,40,ARGOS BICESTER
OXFORDSHIRE CC,CHILDREN'S & EDUCATION,EET SERVICE,MATERIALS,20/12/2023,000009398193596,22.8,AMAZON.CO.UK EA8SN8LM5
OXFORDSHIRE CC,CHILDREN'S & EDUCATION,EET SERVICE,MATERIALS,20/12/2023,000009398193606,13.12,AMAZON.CO.UK EW9IY8SX5
OXFORDSHIRE CC,CHILDREN'S & EDUCATION,EET SERVICE,MATERIALS,20/12/2023,000009398193652,13.12,AMAZON.CO.UK KQ39D1W35
OXFORDSHIRE CC,ADULTS,COUNTY PRINT FINSHRS,MEDICAL AND COUNSELLING FEES,20/12/2023,000009398192806,175,MOTUS MEDICAL LTD
OXFORDSHIRE CC,CHILDREN'S & EDUCATION,DIDCOT MOVE-ON HOME,MATERIALS,20/12/2023,000009398194286,32.2,DIDCOT SPORTS DIRECT
OXFORDSHIRE CC,PUBLIC HEALTH,CHILDREN IN CARE NON-STAFFING - SOUTH,PAYMENTS TO TRANSPORT OPERATORS,20/12/2023,000009398191900,41.36,TRAINLINE
OXFORDSHIRE CC,CHILDREN'S & EDUCATION,"	LEAVING CARE CITY 2",HIRE OF ACCOMMODATION AND FACILITIES,20/12/2023,000009398192246,35.68,TRAVELODGE
OXFORDSHIRE CC,CHILDREN'S & EDUCATION,EET SERVICE,MATERIALS,20/12/2023,000009398193458,21.36,AMAZON.CO.UK 267ZH1GD5
OXFORDSHIRE CC,PUBLIC HEALTH,WITNEY,CATERING PROVISIONS,20/12/2023,000009398191930,9.91,LIDL GB WITNEY
OXFORDSHIRE CC,CHILDREN'S & EDUCATION,"	LEAVING CARE CITY 2",PAYMENTS TO TRANSPORT OPERATORS,20/12/2023,000009398192242,72.03,TRAINLINE
OXFORDSHIRE CC,CHILDREN'S & EDUCATION,CNTL ERLY HELP-BBLEY,MATERIALS,20/12/2023,000009398194756,216,AASVOGEL SKIP HIRE
OXFORDSHIRE CC,ADULTS,COUNTY PRINT FINSHRS,MATERIALS,20/12/2023,000009398192122,258,CURRYS ONLINE
OXFORDSHIRE CC,CHILDREN'S & EDUCATION,NTS UASC AGENCY,CLEANING MATERIALS,20/12/2023,000009398194560,125.85,TESCO STORES 2994
OXFORDSHIRE CC,ADULTS,CSS BICESTER,MATERIALS,20/12/2023,000009398194772,3.43,AMZNMKTPLACE
OXFORDSHIRE CC,CHILDREN'S & EDUCATION,"	LEAVING CARE CITY 2",CLOTHING AND UNIFORMS,20/12/2023,000009398194508,238.66,SHEIN.COM
OXFORDSHIRE CC,CUSTOMER AND CULTURE,MUSIC UNALLOCABLE,"SUPPLIES, STATIONERY AND MATERIALS",20/12/2023,000009398194544,14.32,THOMPSON - KALMUS
OXFORDSHIRE CC,ENVIRONMENT AND PLACE,MAINTENANCE STAFF,MATERIALS,20/12/2023,000009398193052,23.99,AMZNMKTPLACE
OXFORDSHIRE CC,PUBLIC HEALTH,CHILDREN IN CARE NON-STAFFING - SOUTH,PAYMENTS TO TRANSPORT OPERATORS,20/12/2023,000009398191886,17.92,TRAINLINE
OXFORDSHIRE CC,PUBLIC HEALTH,CHILDREN IN CARE NON-STAFFING - SOUTH,PAYMENTS TO TRANSPORT OPERATORS,20/12/2023,000009398191892,17.92,TRAINLINE
OXFORDSHIRE CC,PUBLIC HEALTH,CHILDREN IN CARE NON-STAFFING - SOUTH,PAYMENTS TO TRANSPORT OPERATORS,20/12/2023,000009398191908,17.92,TRAINLINE
OXFORDSHIRE CC,ADULTS,CSS WANTAGE,VEHICLE EQUIPMENT AND EXPENSES - OTHER,20/12/2023,000009398193116,33.36,AMZNMKTPLACE
OXFORDSHIRE CC,ENTERPRISEVC,,CAR LEASING - PRIVATE RENTALS,20/12/2023,000009398194096,101.98,ENTERPRISE RENT-A-CAR
OXFORDSHIRE CC,ENTERPRISEVC,,CAR LEASING - PRIVATE RENTALS,20/12/2023,000009398194092,150.96,ENTERPRISE RENT-A-CAR
OXFORDSHIRE CC,ENTERPRISEVC,,CAR LEASING - PRIVATE RENTALS,20/12/2023,000009398194084,206.38,ENTERPRISE RENT-A-CAR
OXFORDSHIRE CC,ENTERPRISEVC,,CAR LEASING - PRIVATE RENTALS,20/12/2023,000009398194078,41.98,ENTERPRISE RENT-A-CAR
OXFORDSHIRE CC,ENTERPRISEVC,,CAR LEASING - PRIVATE RENTALS,20/12/2023,000009398194072,155.59,ENTERPRISE RENT-A-CAR
OXFORDSHIRE CC,ENTERPRISEVC,,CAR LEASING - PRIVATE RENTALS,20/12/2023,000009398194066,107.95,ENTERPRISE RENT-A-CAR
OXFORDSHIRE CC,ENTERPRISEVC,,CAR LEASING - PRIVATE RENTALS,20/12/2023,000009398194060,113.95,ENTERPRISE RENT-A-CAR
OXFORDSHIRE CC,ENTERPRISEVC,,CAR LEASING - PRIVATE RENTALS,20/12/2023,000009398194050,283.32,ENTERPRISE RENT-A-CAR
OXFORDSHIRE CC,ENTERPRISEVC,,CAR LEASING - PRIVATE RENTALS,20/12/2023,000009398194042,177.36,ENTERPRISE RENT-A-CAR
OXFORDSHIRE CC,ENTERPRISEVC,,CAR LEASING - PRIVATE RENTALS,20/12/2023,000009398194036,245.23,ENTERPRISE RENT-A-CAR
OXFORDSHIRE CC,ENTERPRISEVC,,CAR LEASING - PRIVATE RENTALS,20/12/2023,000009398194030,77.98,ENTERPRISE RENT-A-CAR
OXFORDSHIRE CC,ENTERPRISEVC,,CAR LEASING - PRIVATE RENTALS,20/12/2023,000009398194018,65.98,ENTERPRISE RENT-A-CAR
OXFORDSHIRE CC,ENTERPRISEVC,,CAR LEASING - PRIVATE RENTALS,20/12/2023,000009398193998,122.08,ENTERPRISE RENT-A-CAR
OXFORDSHIRE CC,ENTERPRISEVC,,CAR LEASING - PRIVATE RENTALS,20/12/2023,000009398193990,235.02,ENTERPRISE RENT-A-CAR
OXFORDSHIRE CC,ENTERPRISEVC,,CAR LEASING - PRIVATE RENTALS,20/12/2023,000009398193982,83.44,ENTERPRISE RENT-A-CAR
OXFORDSHIRE CC,ENTERPRISEVC,,CAR LEASING - PRIVATE RENTALS,20/12/2023,000009398193976,74.75,ENTERPRISE RENT-A-CAR
OXFORDSHIRE CC,ENTERPRISEVC,,CAR LEASING - PRIVATE RENTALS,20/12/2023,000009398193972,74.75,ENTERPRISE RENT-A-CAR
OXFORDSHIRE CC,ENTERPRISEVC,,CAR LEASING - PRIVATE RENTALS,20/12/2023,000009398193962,119.95,ENTERPRISE RENT-A-CAR
OXFORDSHIRE CC,ENVIRONMENT AND PLACE,SCH&SOC CARE TRANSP,MATERIALS,20/12/2023,000009398193126,684,THE WINDMILL SPECIAL N
OXFORDSHIRE CC,CUSTOMER AND CULTURE,HARD FM,VEHICLES AND PLANT - REPAIRS AND MAIN,20/12/2023,000009398192574,64.8,2 COUSINS POWERED ACCE
OXFORDSHIRE CC,ENVIRONMENT AND PLACE,ROAD SAFETY STAFF,EDUCATIONAL AND VOCATIONAL TRAINING ,20/12/2023,000009398194260,60,CLR CIHT
OXFORDSHIRE CC,CHILDREN'S & EDUCATION,"	LEAVING CARE CITY 1",PAYMENTS TO TRANSPORT OPERATORS,20/12/2023,000009398194518,111.77,TRAINLINE
OXFORDSHIRE CC,ENVIRONMENT AND PLACE,NAT TRAILS GENERAL,TRAINING RELATED EXPENDITURE,20/12/2023,000009398194822,35,WWW.RAMBLERS.ORG.UK
OXFORDSHIRE CC,CHILDREN'S & EDUCATION,"	MALTFIELD HOUSE",CATERING,20/12/2023,000009398192582,3,SHELL DUCKLINGTON
OXFORDSHIRE CC,CHILDREN'S & EDUCATION,"	OCCG GRANT",OTHER EXPENSES,20/12/2023,000009398192536,18.9,ASDA STORE 4442
OXFORDSHIRE CC,CHILDREN'S & EDUCATION,THAME E&A HOME,STAFF SUBSISTENCE,20/12/2023,000009398192212,2.7,SIP CARS PARKS (1) LIM
OXFORDSHIRE CC,CHILDREN'S & EDUCATION,THAME E&A HOME,CATERING,20/12/2023,000009398192204,19,M & S SIMPLY FOOD
OXFORDSHIRE CC,ADULTS,CSS WALLINGFORD,CATERING PROVISIONS,20/12/2023,000009398191830,27.79,AMZNMKTPLACE
OXFORDSHIRE CC,ADULTS,CSS - ABINGDON,CATERING PROVISIONS,20/12/2023,000009398194574,200.87,SAVONA PROVISIONS LTD
OXFORDSHIRE CC,CHILDREN'S & EDUCATION,EET SERVICE,MATERIALS,20/12/2023,000009398193430,21.36,AMAZON.CO.UK RP5CA17X5
OXFORDSHIRE CC,CHILDREN'S & EDUCATION,THAME E&A HOME,CATERING PROVISIONS,20/12/2023,000009398192610,7.75,TESCO STORES 2008
OXFORDSHIRE CC,CUSTOMER AND CULTURE,"MARKETING, COMMUNICATIONS & ENGAGEMENT",SUBSCRIPTIONS,20/12/2023,000009398193206,24.98,LINKEDIN PRE 972476644
OXFORDSHIRE CC,CHILDREN'S & EDUCATION,"	DIRECTOR'S OFFICE",MATERIALS,20/12/2023,000009398193870,44,WWW.BLOOMANDWILD.COM
OXFORDSHIRE CC,CHILDREN'S & EDUCATION,CHILDREN IN CARE COUNCIL,STATIONERY,20/12/2023,000009398192276,3.49,RYMAN 1172
OXFORDSHIRE CC,CUSTOMER AND CULTURE,MUSIC UNALLOCABLE,"SUPPLIES, STATIONERY AND MATERIALS",20/12/2023,000009398194538,193.13,BOOSEY & HAWKES
OXFORDSHIRE CC,CHILDREN'S & EDUCATION,"	OCCG GRANT",CATERING,20/12/2023,000009398192530,2.85,LOVE COFFEE CO
OXFORDSHIRE CC,CHILDREN'S & EDUCATION,FAMILY SOLUTIONS PLUS NON-STAFF - NORTH,"SUPPLIES, STATIONERY AND MATERIALS",20/12/2023,000009398194530,472,SMITHS OF BLOXHAM
OXFORDSHIRE CC,CHILDREN'S & EDUCATION,40 THE MOORS,CATERING,20/12/2023,000009398194436,5,SAINSBURYS S/MKTS
OXFORDSHIRE CC,CHILDREN'S & EDUCATION,40 THE MOORS,MATERIALS,20/12/2023,000009398194432,5.61,SAINSBURYS S/MKTS
OXFORDSHIRE CC,CHILDREN'S & EDUCATION,THAME E&A HOME,CATERING,20/12/2023,000009398192198,6,WH SMITH JOHN RADCLIFF
OXFORDSHIRE CC,CHILDREN'S & EDUCATION,PAUSE PROGRAMME,CATERING,20/12/2023,000009398192738,19.28,BURGER KING
OXFORDSHIRE CC,ENVIRONMENT AND PLACE,ILEAD LOCAL FLOOD AUTHORITY,SUBSCRIPTIONS,20/12/2023,000009398192860,45,FLOS OXFORD
OXFORDSHIRE CC,CHILDREN'S & EDUCATION,40 THE MOORS,OTHER TRANSPORT ARRANGEMENTS,20/12/2023,000009398194416,2,STGCOACH/CTYLINK
OXFORDSHIRE CC,ADULTS,CSS WITNEY,CATERING PROVISIONS,20/12/2023,000009398192936,4,SAINSBURYS S/MKTS
OXFORDSHIRE CC,CHILDREN'S & EDUCATION,EET SERVICE,MATERIALS,20/12/2023,000009398193450,21.75,AMAZON.CO.UK 0D3I921F5
OXFORDSHIRE CC,CHILDREN'S & EDUCATION,EET SERVICE,MATERIALS,20/12/2023,000009398193382,21.36,AMAZON.CO.UK D84EG2G95
OXFORDSHIRE CC,CHILDREN'S & EDUCATION,"	OCCG GRANT",OTHER TRANSPORT ARRANGEMENTS,20/12/2023,000009398194122,4.5,STGCOACH/CTYLINK
OXFORDSHIRE CC,CHILDREN'S & EDUCATION,EET SERVICE,MATERIALS,20/12/2023,000009398193494,11.88,AMZNMKTPLACE
OXFORDSHIRE CC,CHILDREN'S & EDUCATION,EET SERVICE,MATERIALS,20/12/2023,000009398193468,21.75,AMAZON.CO.UK 708LK8DL5
OXFORDSHIRE CC,CHILDREN'S & EDUCATION,EET SERVICE,MATERIALS,20/12/2023,000009398193480,21.75,AMAZON.CO.UK 949B813O5
OXFORDSHIRE CC,CHILDREN'S & EDUCATION,EET SERVICE,MATERIALS,20/12/2023,000009398193434,21.75,AMAZON.CO.UK X57JZ8S15
OXFORDSHIRE CC,CUSTOMER AND CULTURE,HARD FM,PREMISES REPAIRS,20/12/2023,000009398192728,68.4,WICKES OXFORD
OXFORDSHIRE CC,CHILDREN'S & EDUCATION,QUALITY ASSURANCE SOUTH TEAM,PAYMENTS TO TRANSPORT OPERATORS,20/12/2023,000009398194666,192.07,TRAINLINE
OXFORDSHIRE CC,ADULTS,CSS WANTAGE,CATERING PROVISIONS,20/12/2023,000009398191974,82.06,SAINSBURYS S/MKTS
OXFORDSHIRE CC,CHILDREN'S & EDUCATION,EET SERVICE,MATERIALS,20/12/2023,000009398193374,305.01,AMZNMKTPLACE
OXFORDSHIRE CC,CHILDREN'S & EDUCATION,EET SERVICE,MATERIALS,20/12/2023,000009398193716,21.75,AMAZON.CO.UK SP7PQ3IH5
OXFORDSHIRE CC,CHILDREN'S & EDUCATION,EET SERVICE,MATERIALS,20/12/2023,000009398193674,21.75,AMAZON.CO.UK LX4VR9YW5
OXFORDSHIRE CC,ENVIRONMENT AND PLACE,TVERC,OTHER TRAINING COURSES AND QUALIFICATION,20/12/2023,000009398192144,25,EB  BIODIVERSITY NET G
OXFORDSHIRE CC,ENVIRONMENT AND PLACE,TVERC,OTHER TRAINING COURSES AND QUALIFICATION,20/12/2023,000009398192136,25,EB  BIODIVERSITY NET G
OXFORDSHIRE CC,CHILDREN'S & EDUCATION,40 THE MOORS,OTHER TRANSPORT ARRANGEMENTS,20/12/2023,000009398194422,2,STGCOACH/CTYLINK
OXFORDSHIRE CC,CHILDREN'S & EDUCATION,40 THE MOORS,OTHER TRANSPORT ARRANGEMENTS,20/12/2023,000009398194428,4.5,STGCOACH/CTYLINK
OXFORDSHIRE CC,CHILDREN'S & EDUCATION,EET SERVICE,MATERIALS,20/12/2023,000009398193502,23.76,AMZNMKTPLACE
OXFORDSHIRE CC,CUSTOMER AND CULTURE,SCHOOLS FM CATERING AREA 2,CATERING PROVISIONS,20/12/2023,000009398192830,3.7,SAINSBURYS S/MKTS
OXFORDSHIRE CC,CHILDREN'S & EDUCATION,EET SERVICE,MATERIALS,20/12/2023,000009398193476,21.75,AMAZON.CO.UK 8R7OZ29M5
OXFORDSHIRE CC,CHILDREN'S & EDUCATION,EET SERVICE,MATERIALS,20/12/2023,000009398193526,23.76,AMZNMKTPLACE
OXFORDSHIRE CC,CHILDREN'S & EDUCATION,EET SERVICE,MATERIALS,20/12/2023,000009398193518,23.76,AMZNMKTPLACE
OXFORDSHIRE CC,CHILDREN'S & EDUCATION,EET SERVICE,MATERIALS,20/12/2023,000009398193506,23.76,AMZNMKTPLACE
OXFORDSHIRE CC,CHILDREN'S & EDUCATION,EET SERVICE,MATERIALS,20/12/2023,000009398193514,23.76,AMZNMKTPLACE
OXFORDSHIRE CC,CHILDREN'S & EDUCATION,EET SERVICE,MATERIALS,20/12/2023,000009398193534,23.76,AMZNMKTPLACE
OXFORDSHIRE CC,CHILDREN'S & EDUCATION,EET SERVICE,MATERIALS,20/12/2023,000009398193488,28.89,AMZNMKTPLACE
OXFORDSHIRE CC,ADULTS,CSS - OXFORD,MATERIALS,20/12/2023,000009398193042,7.78,AMZNMKTPLACE
OXFORDSHIRE CC,CUSTOMER AND CULTURE,THAME LIBRARY,CATERING PROVISIONS,20/12/2023,000009398193898,5.6,SAINSBURYS SUPERMA
OXFORDSHIRE CC,ADULTS,CSS WANTAGE,MATERIALS,20/12/2023,000009398191946,13.35,AMZNMKTPLACE
OXFORDSHIRE CC,CUSTOMER AND CULTURE,COMMUNITY PARTNERSHIP TEAM,CATERING PROVISIONS,20/12/2023,000009398192348,108.14,TESCO STORES 2008
OXFORDSHIRE CC,CHILDREN'S & EDUCATION,EET SERVICE,MATERIALS,20/12/2023,000009398193404,21.75,AMAZON.CO.UK K728F3DL5
OXFORDSHIRE CC,CORPORATE CORE,,STATIONERY,20/12/2023,000009398193946,24.7,LYRECO UK LTD
OXFORDSHIRE CC,CORPORATE CORE,,STATIONERY,20/12/2023,000009398193926,25.01,LYRECO UK LTD
OXFORDSHIRE CC,CHILDREN'S & EDUCATION,EET SERVICE,MATERIALS,20/12/2023,000009398193396,21.36,AMAZON.CO.UK KR1IG71D5
OXFORDSHIRE CC,CHILDREN'S & EDUCATION,EET SERVICE,MATERIALS,20/12/2023,000009398193832,68.23,AMZNMKTPLACE
OXFORDSHIRE CC,CHILDREN'S & EDUCATION,EET SERVICE,MATERIALS,20/12/2023,000009398193464,21.75,AMAZON.CO.UK 5X4C43BA5
OXFORDSHIRE CC,CHILDREN'S & EDUCATION,EET SERVICE,MATERIALS,20/12/2023,000009398193410,21.36,AMAZON.CO.UK L145Q7SV5
OXFORDSHIRE CC,CHILDREN'S & EDUCATION,EET SERVICE,MATERIALS,20/12/2023,000009398193388,21.36,AMAZON.CO.UK G47UU9P65
OXFORDSHIRE CC,CHILDREN'S & EDUCATION,EYNSHAM,CATERING PROVISIONS,20/12/2023,000009398191918,171.95,TESCO STORES 2008
OXFORDSHIRE CC,CHILDREN'S & EDUCATION,EET SERVICE,MATERIALS,20/12/2023,000009398193418,21.36,AMAZON.CO.UK M04WB5Q85
OXFORDSHIRE CC,CHILDREN'S & EDUCATION,EET SERVICE,MATERIALS,20/12/2023,000009398193426,21.75,AMAZON.CO.UK OW26D0I95
OXFORDSHIRE CC,CHILDREN'S & EDUCATION,EET SERVICE,MATERIALS,20/12/2023,000009398193354,14.64,AMAZON.CO.UK 0O47D3BL5
OXFORDSHIRE CC,CHILDREN'S & EDUCATION,EET SERVICE,MATERIALS,20/12/2023,000009398193442,21.75,AMAZON.CO.UK ZW35O9M85
OXFORDSHIRE CC,CHILDREN'S & EDUCATION,EET SERVICE,MATERIALS,20/12/2023,000009398193348,14.64,AMAZON.CO.UK WZ8QK3I85
OXFORDSHIRE CC,CHILDREN'S & EDUCATION,EET SERVICE,MATERIALS,20/12/2023,000009398193334,14.64,AMAZON.CO.UK UD0CA10N5
OXFORDSHIRE CC,CHILDREN'S & EDUCATION,EET SERVICE,MATERIALS,20/12/2023,000009398193326,14.64,AMAZON.CO.UK SO8F34L35
OXFORDSHIRE CC,CHILDREN'S & EDUCATION,EET SERVICE,MATERIALS,20/12/2023,000009398193370,14.64,AMAZON.CO.UK 7P9EP4275
OXFORDSHIRE CC,CHILDREN'S & EDUCATION,EET SERVICE,MATERIALS,20/12/2023,000009398193316,14.64,AMAZON.CO.UK C13515F95
OXFORDSHIRE CC,CUSTOMER AND CULTURE,SCHOOLS FM CATERING AREA 4,MATERIALS,20/12/2023,000009398192688,-12,NISBETS LTD
OXFORDSHIRE CC,CUSTOMER AND CULTURE,CAMBRIDGE TERRACE,OTHER PREMISES RELATED COSTS,20/12/2023,000009398192842,-15.99,AMZNMKTPLACE
OXFORDSHIRE CC,CHILDREN'S & EDUCATION,UASC 16&17,HIRE OF ACCOMMODATION AND FACILITIES,20/12/2023,000009398192082,63,HI COLCHESTER RECE
OXFORDSHIRE CC,CHILDREN'S & EDUCATION,EET SERVICE,MATERIALS,20/12/2023,000009398193552,25.15,AMZNMKTPLACE
OXFORDSHIRE CC,CHILDREN'S & EDUCATION,EET SERVICE,MATERIALS,20/12/2023,000009398193554,25.15,AMZNMKTPLACE
OXFORDSHIRE CC,CHILDREN'S & EDUCATION,QUALITY ASSURANCE SOUTH TEAM,HIRE OF ACCOMMODATION AND FACILITIES,20/12/2023,000009398194660,57,PREMIER INN
OXFORDSHIRE CC,ADULTS,OXF. EMPLOYMENT SERV,CATERING PROVISIONS,20/12/2023,000009398192114,39.57,ALDI 77 775
OXFORDSHIRE CC,CUSTOMER AND CULTURE,SCHOOLS FM CATERING AREA 1,MATERIALS,20/12/2023,000009398194252,52.48,AMZNMKTPLACE
OXFORDSHIRE CC,PUBLIC HEALTH,CHILDREN IN CARE NON-STAFFING - SOUTH,HIRE OF ACCOMMODATION AND FACILITIES,20/12/2023,000009398191878,72.99,PREMIER INN
OXFORDSHIRE CC,CHILDREN'S & EDUCATION,EET SERVICE,MATERIALS,20/12/2023,000009398193562,68.23,AMZNMKTPLACE
OXFORDSHIRE CC,CHILDREN'S & EDUCATION,THAME E&A HOME,VEHICLE FUEL,20/12/2023,000009398192870,31.66,THAME BP SF CONNECT
OXFORDSHIRE CC,ADULTS,CSS - OXFORD,CATERING PROVISIONS,20/12/2023,000009398192158,14.77,ALDI STORES 775-142
OXFORDSHIRE CC,ADULTS,CSS - OXFORD,CATERING PROVISIONS,20/12/2023,000009398192166,25.29,ALDI STORES 775-142
OXFORDSHIRE CC,ADULTS,CSS - OXFORD,CATERING PROVISIONS,20/12/2023,000009398192368,44.8,ALDI STORES 775-142
OXFORDSHIRE CC,ADULTS,CSS - ABINGDON,CATERING PROVISIONS,20/12/2023,000009398194860,32.3,ALDI STORES
OXFORDSHIRE CC,ADULTS,CSS BICESTER,MATERIALS,19/12/2023,000009394203054,8.17,AMZNMKTPLACE
OXFORDSHIRE CC,CHILDREN'S & EDUCATION,EET SERVICE,MATERIALS,19/12/2023,000009394202568,68.24,AMZNMKTPLACE
OXFORDSHIRE CC,CHILDREN'S & EDUCATION,EET SERVICE,MATERIALS,19/12/2023,000009394202572,25.15,AMZNMKTPLACE
OXFORDSHIRE CC,CUSTOMER AND CULTURE,"MARKETING, COMMUNICATIONS & ENGAGEMENT","PUBLICITY, PROMOTIONS AND ADVERTISEMENT",19/12/2023,000009394202364,11.84,SNAP INC SNAP SNAP ADS
OXFORDSHIRE CC,CUSTOMER AND CULTURE,SCHOOLS FM CATERING AREA 1,MATERIALS,19/12/2023,000009394202748,35.96,AMZNMKTPLACE
OXFORDSHIRE CC,CHILDREN'S & EDUCATION,EYNSHAM,MATERIALS,19/12/2023,000009394202844,50,AMZN DIGITAL
OXFORDSHIRE CC,CHILDREN'S & EDUCATION,40 THE MOORS,HARDWARE AND CROCKERY,19/12/2023,000009394202332,8.56,B AND Q
OXFORDSHIRE CC,CHILDREN'S & EDUCATION,40 THE MOORS,CATERING PROVISIONS,19/12/2023,000009394202324,81.63,HOME BARGAINS
OXFORDSHIRE CC,CHILDREN'S & EDUCATION,EYNSHAM,VEHICLE FUEL,19/12/2023,000009394202848,2.6,TESCO PFS 2488
OXFORDSHIRE CC,CHILDREN'S & EDUCATION,EET SERVICE,MATERIALS,19/12/2023,000009394202548,25.15,AMZNMKTPLACE
OXFORDSHIRE CC,CHILDREN'S & EDUCATION,EET SERVICE,MATERIALS,19/12/2023,000009394202522,25.15,AMZNMKTPLACE
OXFORDSHIRE CC,CHILDREN'S & EDUCATION,EET SERVICE,MATERIALS,19/12/2023,000009394202528,60.65,AMZNMKTPLACE
OXFORDSHIRE CC,CHILDREN'S & EDUCATION,DIDCOT MOVE-ON HOME,CATERING PROVISIONS,19/12/2023,000009394202774,5,SAINSBURYS SMKT
OXFORDSHIRE CC,CHILDREN'S & EDUCATION,DIDCOT MOVE-ON HOME,CATERING PROVISIONS,19/12/2023,000009394202770,72.45,SAINSBURYS SMKT
OXFORDSHIRE CC,CHILDREN'S & EDUCATION,THAME E&A HOME,CATERING PROVISIONS,19/12/2023,000009394201762,21,ASDA STORE 4442
OXFORDSHIRE CC,CHILDREN'S & EDUCATION,EET SERVICE,MATERIALS,19/12/2023,000009394202558,25.15,AMZNMKTPLACE
OXFORDSHIRE CC,CHILDREN'S & EDUCATION,EET SERVICE,MATERIALS,19/12/2023,000009394202554,25.15,AMZNMKTPLACE
OXFORDSHIRE CC,CHILDREN'S & EDUCATION,"	LEAVING CARE CITY 2",OTHER TRANSPORT ARRANGEMENTS,19/12/2023,000009394201994,2,STGCOACH/CTYLINK
OXFORDSHIRE CC,CHILDREN'S & EDUCATION,"	LEAVING CARE CITY 1",OTHER TRANSPORT ARRANGEMENTS,19/12/2023,000009394201434,8.9,M6 TOLL
OXFORDSHIRE CC,CHILDREN'S & EDUCATION,EET SERVICE,MATERIALS,19/12/2023,000009394202564,25.15,AMZNMKTPLACE
OXFORDSHIRE CC,CHILDREN'S & EDUCATION,THAME E&A HOME,MATERIALS,19/12/2023,000009394201756,136.97,SPORTSDIRECT 218
OXFORDSHIRE CC,CHILDREN'S & EDUCATION,"	LEAVING CARE CITY 2",OTHER TRANSPORT ARRANGEMENTS,19/12/2023,000009394201988,2,STGCOACH/CTYLINK
OXFORDSHIRE CC,CHILDREN'S & EDUCATION,EET SERVICE,MATERIALS,19/12/2023,000009394202544,25.15,AMZNMKTPLACE
OXFORDSHIRE CC,CHILDREN'S & EDUCATION,40 THE MOORS,CATERING PROVISIONS,19/12/2023,000009394202422,111.57,SAINSBURY'S S/MKT
OXFORDSHIRE CC,CHILDREN'S & EDUCATION,THE RIDGEWAY,POSTAGE AND DELIVERY,19/12/2023,000009394201536,37.5,POST OFFICE COUNTER
OXFORDSHIRE CC,CHILDREN'S & EDUCATION,PAUSE PROGRAMME,CATERING,19/12/2023,000009394201902,7.05,COSTA COFFEE 43010890
OXFORDSHIRE CC,ADULTS,CSS WANTAGE,MATERIALS,19/12/2023,000009394202276,17.82,AMZNMKTPLACE
OXFORDSHIRE CC,CUSTOMER AND CULTURE,BUSINESS INTELLECTUAL PROPERTY CENTRE,MATERIALS,19/12/2023,000009394202028,30.02,AMZNMKTPLACE
OXFORDSHIRE CC,CHILDREN'S & EDUCATION,"	DISABILITIES TEAM-N",PAYMENTS TO TRANSPORT OPERATORS,19/12/2023,000009394201414,85.8,TRAINLINE
OXFORDSHIRE CC,CHILDREN'S & EDUCATION,NTS UASC AGENCY,MATERIALS,19/12/2023,000009394202918,26.81,AMZNMKTPLACE
OXFORDSHIRE CC,CHILDREN'S & EDUCATION,QUALITY ASSURANCE NORTH TEAM,PAYMENTS TO TRANSPORT OPERATORS,19/12/2023,000009394202974,22.61,TRAINLINE
OXFORDSHIRE CC,CHILDREN'S & EDUCATION,"	SEN/ICT EQUIPMENT",IT SOFTWARE,19/12/2023,000009394203068,12,THINKSMARTBOX.COM
OXFORDSHIRE CC,CUSTOMER AND CULTURE,SCHOOLS FM CATERING AREA 4,CATERING PROVISIONS,19/12/2023,000009394201394,14.38,BOOKER LTD - 38560104
OXFORDSHIRE CC,CHILDREN'S & EDUCATION,FAMILY SOLUTIONS PLUS NON-STAFF - NORTH,PAYMENTS TO TRANSPORT OPERATORS,19/12/2023,000009394202654,12.12,TRAINLINE
OXFORDSHIRE CC,CHILDREN'S & EDUCATION,PAUSE PROGRAMME,CATERING,19/12/2023,000009394201892,10.75,GREGGS PLC
OXFORDSHIRE CC,PUBLIC HEALTH,WITNEY,MATERIALS,19/12/2023,000009394201258,69.29,WITNEY SPORTS DIRECT
OXFORDSHIRE CC,CHILDREN'S & EDUCATION,"	LEAVING CARE CITY 1",CATERING,19/12/2023,000009394201430,7.75,COSTA COFFEE BLACKPOOL
OXFORDSHIRE CC,ENVIRONMENT AND PLACE,TVERC,OTHER TRAINING COURSES AND QUALIFICATION,19/12/2023,000009394201352,120,EB  LOCAL BIODIVERSITY
OXFORDSHIRE CC,CUSTOMER AND CULTURE,CENTRAL LIBRARY,"SUPPLIES, STATIONERY AND MATERIALS",19/12/2023,000009394202410,6.99,AMZNMKTPLACE
OXFORDSHIRE CC,CUSTOMER AND CULTURE,CATERING MANAGEMENT SOFT FM,CATERING PROVISIONS,19/12/2023,000009394201236,88.03,WM MORRISONS STORE
OXFORDSHIRE CC,CUSTOMER AND CULTURE,OXFORDSHIRE MUSEUM,MATERIALS,19/12/2023,000009394202194,20.7,WP-THE LIGHTBULB C
OXFORDSHIRE CC,PUBLIC HEALTH,WITNEY,CATERING PROVISIONS,19/12/2023,000009394201252,11,POUNDSTRETCHER - 0700
OXFORDSHIRE CC,CUSTOMER AND CULTURE,SCHOOLS FM CATERING AREA 2,CATERING PROVISIONS,19/12/2023,000009394201942,107.28,BOOKER LTD - 38584104
OXFORDSHIRE CC,CHILDREN'S & EDUCATION,"	LEAVING CARE NORTH",CATERING,19/12/2023,000009394202670,5.25,COSTA COFFEE 43011187
OXFORDSHIRE CC,CHILDREN'S & EDUCATION,EYNSHAM,MATERIALS,19/12/2023,000009394201626,68,SPORTSDIRECT.COM
OXFORDSHIRE CC,PUBLIC HEALTH,CHILDREN IN CARE NON-STAFFING - NORTH,HIRE OF ACCOMMODATION AND FACILITIES,19/12/2023,000009394201214,68.9,INSPIRALL LEIS BLTECHL
OXFORDSHIRE CC,CUSTOMER AND CULTURE,LIBRARY COLLECTIONS,"BOOKS, DVDS AND CDS",19/12/2023,000009394201694,163.61,OVERDRIVE DIST
OXFORDSHIRE CC,CUSTOMER AND CULTURE,LIBRARY COLLECTIONS,"BOOKS, DVDS AND CDS",19/12/2023,000009394201702,445.53,OVERDRIVE DIST
OXFORDSHIRE CC,CUSTOMER AND CULTURE,MUSEUMS COLLECTIONS,MATERIALS,19/12/2023,000009394203044,145.69,WWW.BREWERS.CO.UK
OXFORDSHIRE CC,CHILDREN'S & EDUCATION,PAUSE PROGRAMME,OTHER TRANSPORT ARRANGEMENTS,19/12/2023,000009394201908,3,CHERWELL
OXFORDSHIRE CC,CHILDREN'S & EDUCATION,"	MALTFIELD HOUSE",MATERIALS,19/12/2023,000009394202628,13,WWW.ARGOS.CO.UK
OXFORDSHIRE CC,CHILDREN'S & EDUCATION,"	LEAVING CARE CITY 1",OTHER TRANSPORT ARRANGEMENTS,19/12/2023,000009394201440,8.9,M6 TOLL
OXFORDSHIRE CC,CHILDREN'S & EDUCATION,"	LEAVING CARE CITY 2",PAYMENTS TO TRANSPORT OPERATORS,19/12/2023,000009394201984,73.4,GWR OXFORD TO
OXFORDSHIRE CC,CHILDREN'S & EDUCATION,CHILDREN IN CARE COUNCIL,STATIONERY,19/12/2023,000009394201452,154,WITNEY TROPHY CENT
OXFORDSHIRE CC,CUSTOMER AND CULTURE,SCHOOLS FM CATERING AREA 1,MATERIALS,19/12/2023,000009394202752,67.08,AMZNMKTPLACE
OXFORDSHIRE CC,ADULTS,CSS WANTAGE,CATERING PROVISIONS,19/12/2023,000009394201288,41.85,SAINSBURYS S/MKTS
OXFORDSHIRE CC,ADULTS,CSS WITNEY,CATERING PROVISIONS,19/12/2023,000009394201168,4.85,CO-OP GROUP 070582
OXFORDSHIRE CC,CHILDREN'S & EDUCATION,EET SERVICE,MATERIALS,19/12/2023,000009394202514,68.23,AMZNMKTPLACE
OXFORDSHIRE CC,ENVIRONMENT AND PLACE,WASTE REDUCTION GEN,OTHER TRAINING COURSES AND QUALIFICATION,19/12/2023,000009394201524,431.2,EXPO  COMMUNICATIONS C
OXFORDSHIRE CC,ADULTS,PAUSE PROGRAMME,CATERING PROVISIONS,19/12/2023,000009394201648,98.59,LIDL GB OXFORD
OXFORDSHIRE CC,ADULTS,PAUSE PROGRAMME,CATERING PROVISIONS,19/12/2023,000009394201648,84.38,LIDL GB OXFORD
OXFORDSHIRE CC,ADULTS,CSS WANTAGE,CATERING PROVISIONS,19/12/2023,000009394201282,23.94,HOME BARGAINS
OXFORDSHIRE CC,CHILDREN'S & EDUCATION,EET SERVICE,MATERIALS,19/12/2023,000009394202538,68.23,AMZNMKTPLACE
OXFORDSHIRE CC,CHILDREN'S & EDUCATION,EET SERVICE,MATERIALS,19/12/2023,000009394202510,68.23,AMZNMKTPLACE
OXFORDSHIRE CC,CUSTOMER AND CULTURE,SCHOOLS FM CATERING AREA 4,CATERING PROVISIONS,19/12/2023,000009394201406,56.6,SAINSBURYS S/MKTS
OXFORDSHIRE CC,CHILDREN'S & EDUCATION,EET SERVICE,MATERIALS,19/12/2023,000009394202476,68.23,AMZNMKTPLACE
OXFORDSHIRE CC,CHILDREN'S & EDUCATION,EET SERVICE,MATERIALS,19/12/2023,000009394202534,69.55,AMZNMKTPLACE
OXFORDSHIRE CC,CUSTOMER AND CULTURE,LEARNING & ACCESS,SUBSCRIPTIONS,19/12/2023,000009394202894,105,GROUP FOR ED IN MUSEUM
OXFORDSHIRE CC,CHILDREN'S & EDUCATION,EET SERVICE,MATERIALS,19/12/2023,000009394202518,68.23,AMZNMKTPLACE
OXFORDSHIRE CC,RESOURCES,LEGAL SERVICES,PROFESSIONAL SUBSCRIPTIONS,19/12/2023,000009394202184,367,CHARTERED INSTITUTE OF
OXFORDSHIRE CC,CHILDREN'S & EDUCATION,"DIDCOT CC, PARK ROAD",VEHICLE FUEL,19/12/2023,000009394202796,4.9,CO-OPERATIVE FUEL
OXFORDSHIRE CC,ADULTS,CSS WITNEY,CATERING PROVISIONS,19/12/2023,000009394201978,27.8,CO-OP GROUP 070582
OXFORDSHIRE CC,CHILDREN'S & EDUCATION,EET SERVICE,MATERIALS,19/12/2023,000009394202494,49.27,AMZNMKTPLACE
OXFORDSHIRE CC,PUBLIC HEALTH,CHILDREN IN CARE NON-STAFFING - SOUTH,PAYMENTS TO TRANSPORT OPERATORS,19/12/2023,000009394201210,68,WWW.GATWICKAIRPORT.COM
OXFORDSHIRE CC,CHILDREN'S & EDUCATION,EET SERVICE,MATERIALS,19/12/2023,000009394202506,68.23,AMZNMKTPLACE
OXFORDSHIRE CC,CUSTOMER AND CULTURE,SCHOOLS FM CATERING AREA 2,CATERING PROVISIONS,19/12/2023,000009394201946,12.58,SAINSBURYS S/MKTS
OXFORDSHIRE CC,CHILDREN'S & EDUCATION,EET SERVICE,MATERIALS,19/12/2023,000009394202490,53.06,AMZNMKTPLACE
OXFORDSHIRE CC,CHILDREN'S & EDUCATION,EET SERVICE,MATERIALS,19/12/2023,000009394202486,72.01,AMZNMKTPLACE
OXFORDSHIRE CC,CHILDREN'S & EDUCATION,EET SERVICE,MATERIALS,19/12/2023,000009394202472,26.4,AMZNMKTPLACE
OXFORDSHIRE CC,CUSTOMER AND CULTURE,SCHOOLS FM CATERING AREA 4,CATERING PROVISIONS,19/12/2023,000009394201400,10.3,SAINSBURY'S S/MKT
OXFORDSHIRE CC,ADULTS,CSS WALLINGFORD,MATERIALS,19/12/2023,000009394201158,20.1,WAITROSE 675
OXFORDSHIRE CC,ADULTS,CSS WANTAGE,CATERING PROVISIONS,19/12/2023,000009394201294,6.45,SAINSBURYS S/MKTS
OXFORDSHIRE CC,ADULTS,CSS WALLINGFORD,POSTAGE AND DELIVERY,19/12/2023,000009394201152,20,WAITROSE 675
OXFORDSHIRE CC,CHILDREN'S & EDUCATION,EET SERVICE,MATERIALS,19/12/2023,000009394202498,26.4,AMZNMKTPLACE
OXFORDSHIRE CC,PUBLIC HEALTH,CHILDREN IN CARE NON-STAFFING - SOUTH,PAYMENTS TO TRANSPORT OPERATORS,19/12/2023,000009394201224,137.98,EASYJET
OXFORDSHIRE CC,PUBLIC HEALTH,CHILDREN IN CARE NON-STAFFING - SOUTH,PAYMENTS TO TRANSPORT OPERATORS,19/12/2023,000009394201218,77.9,ET CAR HIRE
OXFORDSHIRE CC,PUBLIC HEALTH,CHILDREN IN CARE NON-STAFFING - SOUTH,PAYMENTS TO TRANSPORT OPERATORS,19/12/2023,000009394201230,144.35,EASYJET
OXFORDSHIRE CC,CHILDREN'S & EDUCATION,EET SERVICE,MATERIALS,19/12/2023,000009394202482,64.44,AMZNMKTPLACE
OXFORDSHIRE CC,CUSTOMER AND CULTURE,WALLINGFORD LIBRARY,CATERING PROVISIONS,19/12/2023,000009394202706,1.55,WAITROSE 675
OXFORDSHIRE CC,CHILDREN'S & EDUCATION,"	ALTERNATIVES TO CARE",MATERIALS,19/12/2023,000009394202208,9.99,AMZNMKTPLACE
OXFORDSHIRE CC,CUSTOMER AND CULTURE,SCHOOLS FM CATERING AREA 1,CATERING PROVISIONS,19/12/2023,000009394201838,52.54,WM MORRISONS STORE
OXFORDSHIRE CC,CUSTOMER AND CULTURE,THAME LIBRARY,CATERING PROVISIONS,19/12/2023,000009394202580,5.6,SAINSBURYS S/MKTS
OXFORDSHIRE CC,ADULTS,CSS WANTAGE,ENTERTAINMENT EXPENSES,19/12/2023,000009394202280,4.95,WWW.BETTER.ORG.UK
OXFORDSHIRE CC,CHILDREN'S & EDUCATION,FAMILY HELP NORTH,CATERING PROVISIONS,19/12/2023,000009394202662,12.15,WAITROSE 142
OXFORDSHIRE CC,ENVIRONMENT AND PLACE,NAT TRAILS GENERAL,CATERING PROVISIONS,19/12/2023,000009394201956,7.15,CO OPERATIVE FOOD
OXFORDSHIRE CC,CORPORATE CORE,,STATIONERY,19/12/2023,000009394202640,220.32,LYRECO UK LTD
OXFORDSHIRE CC,CORPORATE CORE,,STATIONERY,19/12/2023,000009394202648,36.36,LYRECO UK LTD
OXFORDSHIRE CC,ADULTS,CSS BICESTER,CATERING PROVISIONS,19/12/2023,000009394201364,128.62,TESCO STORES 2162
OXFORDSHIRE CC,ADULTS,CSS - ABINGDON,CATERING PROVISIONS,19/12/2023,000009394202928,28.25,TESCO STORES 2008
OXFORDSHIRE CC,CHILDREN'S & EDUCATION,THAME E&A HOME,CATERING PROVISIONS,19/12/2023,000009394201508,203.83,TESCO STORES 2038
OXFORDSHIRE CC,ENVIRONMENT AND PLACE,WASTE REDUCTION GEN,"PUBLICITY, PROMOTIONS AND ADVERTISEMENT",19/12/2023,000009394201518,63.74,FACEBK  M2EUTW38M2
OXFORDSHIRE CC,ADULTS,CSS - BANBURY,CATERING PROVISIONS,19/12/2023,000009394202908,75.46,SAINSBURYS.CO.UK
OXFORDSHIRE CC,CHILDREN'S & EDUCATION,PAUSE PROGRAMME,OTHER TRANSPORT ARRANGEMENTS,19/12/2023,000009394201900,1,CP PLUS - OXFORD HEALT
OXFORDSHIRE CC,ADULTS,CSS - BANBURY,MATERIALS,19/12/2023,000009394202682,-16.99,AMZNMKTPLACE
OXFORDSHIRE CC,CHILDREN'S & EDUCATION,PAUSE PROGRAMME,CATERING PROVISIONS,19/12/2023,000009394201794,0.15,LIDL GB OXFORD
OXFORDSHIRE CC,ADULTS,CSS - OXFORD,MATERIALS,19/12/2023,000009394201324,12.68,AMZNMKTPLACE
OXFORDSHIRE CC,CUSTOMER AND CULTURE,HARD FM,MATERIALS,19/12/2023,000009394201936,139.8,AMZNMKTPLACE
OXFORDSHIRE CC,ENVIRONMENT AND PLACE,MAINTENANCE STAFF,EQUIPMENT,19/12/2023,000009394201374,13.99,AMZNMKTPLACE
OXFORDSHIRE CC,CUSTOMER AND CULTURE,"MARKETING, COMMUNICATIONS & ENGAGEMENT","PUBLICITY, PROMOTIONS AND ADVERTISEMENT",18/12/2023,000009386732992,12.76,SNAP INC SNAP SNAP ADS
OXFORDSHIRE CC,CHILDREN'S & EDUCATION,WITNEY,IT SOFTWARE,18/12/2023,000009386733086,59.28,WWW.ILUV2EAT.CO.UK
OXFORDSHIRE CC,CHILDREN'S & EDUCATION,EYNSHAM,CATERING PROVISIONS,18/12/2023,000009386732796,4.95,CO-OPERATIVE FOOD
OXFORDSHIRE CC,CHILDREN'S & EDUCATION,WITNEY,MATERIALS,18/12/2023,000009386733088,1.98,CARD FACTORY
OXFORDSHIRE CC,CHILDREN'S & EDUCATION,THAME E&A HOME,OTHER TRANSPORT ARRANGEMENTS,18/12/2023,000009386732744,2,EDEN CENTRE
OXFORDSHIRE CC,CHILDREN'S & EDUCATION,THAME E&A HOME,CATERING,18/12/2023,000009386732746,7.3,GREGGS
OXFORDSHIRE CC,ENVIRONMENT AND PLACE,PARKING STAFF,MATERIALS,18/12/2023,000009386732712,9.99,AMZNMKTPLACE
OXFORDSHIRE CC,CHILDREN'S & EDUCATION,DIDCOT MOVE-ON HOME,CATERING PROVISIONS,18/12/2023,000009386733082,10.75,TESCO STORES 2413
OXFORDSHIRE CC,CHILDREN'S & EDUCATION,DIDCOT MOVE-ON HOME,DOMESTIC SUPPLIES,18/12/2023,000009386733084,20.55,TESCO STORES 2413
OXFORDSHIRE CC,CUSTOMER AND CULTURE,LEARNING & ACCESS,MATERIALS,18/12/2023,000009386733124,29.99,AMZNMKTPLACE
OXFORDSHIRE CC,ENVIRONMENT AND PLACE,SCH&SOC CARE TRANSP,MATERIALS,18/12/2023,000009386732972,8.99,AMAZON PRIME CI1O20PS5
OXFORDSHIRE CC,CHILDREN'S & EDUCATION,WITNEY,MATERIALS,18/12/2023,000009386732872,5.07,CARD FACTORY
OXFORDSHIRE CC,CUSTOMER AND CULTURE,"MARKETING, COMMUNICATIONS & ENGAGEMENT","PUBLICITY, PROMOTIONS AND ADVERTISEMENT",18/12/2023,000009386732990,11.8,SNAP INC SNAP SNAP ADS
OXFORDSHIRE CC,CUSTOMER AND CULTURE,"MARKETING, COMMUNICATIONS & ENGAGEMENT","PUBLICITY, PROMOTIONS AND ADVERTISEMENT",18/12/2023,000009386732988,500,FACEBK  8YYUTVK9Z2
OXFORDSHIRE CC,CUSTOMER AND CULTURE,LEARNING & ACCESS,MATERIALS,18/12/2023,000009386733126,19.85,AMZNMKTPLACE
OXFORDSHIRE CC,CHILDREN'S & EDUCATION,EYNSHAM,CATERING PROVISIONS,18/12/2023,000009386733008,8.75,MAYFIELDEGGS
OXFORDSHIRE CC,ADULTS,CSS - OXFORD,MATERIALS,18/12/2023,000009386732690,13.99,AMZNMKTPLACE
OXFORDSHIRE CC,CHILDREN'S & EDUCATION,EYNSHAM,CATERING PROVISIONS,18/12/2023,000009386732674,1.45,CO-OPERATIVE FOOD
OXFORDSHIRE CC,CHILDREN'S & EDUCATION,THAME E&A HOME,MATERIALS,18/12/2023,000009386732710,11.9,AMZNMKTPLACE
OXFORDSHIRE CC,CHILDREN'S & EDUCATION,THAME E&A HOME,ENTERTAINMENT EXPENSES,18/12/2023,000009386732862,11,RUSH HIGH WYCOMBE
OXFORDSHIRE CC,CHILDREN'S & EDUCATION,"	OCCG GRANT",CATERING PROVISIONS,18/12/2023,000009386732854,12.05,ASDA STORE 4442
OXFORDSHIRE CC,CHILDREN'S & EDUCATION,DIDCOT MOVE-ON HOME,CATERING PROVISIONS,18/12/2023,000009386733080,90.89,TESCO STORES 2413
OXFORDSHIRE CC,CHILDREN'S & EDUCATION,NTS UASC AGENCY,HARDWARE AND CROCKERY,18/12/2023,000009386733090,45.6,AMAZON.CO.UK 653RB6M95
OXFORDSHIRE CC,CHILDREN'S & EDUCATION,DIDCOT MOVE-ON HOME,DOMESTIC SUPPLIES,18/12/2023,000009386733078,20.25,TESCO STORES 2413
OXFORDSHIRE CC,CHILDREN'S & EDUCATION,DIDCOT MOVE-ON HOME,CATERING PROVISIONS,18/12/2023,000009386733074,22.93,B&M 514 - DICOT
OXFORDSHIRE CC,CHILDREN'S & EDUCATION,DIDCOT MOVE-ON HOME,CLEANING MATERIALS,18/12/2023,000009386733076,46.47,B&M 514 - DICOT
OXFORDSHIRE CC,CHILDREN'S & EDUCATION,WITNEY,CATERING PROVISIONS,18/12/2023,000009386732870,10.6,SAINSBURYS S/MKTS
OXFORDSHIRE CC,CHILDREN'S & EDUCATION,THAME E&A HOME,DAY ACTIVITIES,18/12/2023,000009386732878,99.5,RUSH HIGH WYCOMBE
OXFORDSHIRE CC,CHILDREN'S & EDUCATION,THAME E&A HOME,MATERIALS,18/12/2023,000009386732892,27.98,AMZNMKTPLACE
OXFORDSHIRE CC,CHILDREN'S & EDUCATION,NTS UASC AGENCY,MATERIALS,18/12/2023,000009386733054,17.55,AMZNMKTPLACE
OXFORDSHIRE CC,CHILDREN'S & EDUCATION,THE RIDGEWAY,STATIONERY,18/12/2023,000009386732748,30,SNAPPY SNAPS MARLOW
OXFORDSHIRE CC,CUSTOMER AND CULTURE,"MARKETING, COMMUNICATIONS & ENGAGEMENT","PUBLICITY, PROMOTIONS AND ADVERTISEMENT",18/12/2023,000009386732986,10.51,SNAP INC SNAP SNAP ADS
OXFORDSHIRE CC,CHILDREN'S & EDUCATION,EYNSHAM,OTHER COMMUNICATIONS,18/12/2023,000009386732670,10.99,NETFLIX.COM
OXFORDSHIRE CC,ADULTS,CSS WITNEY,MATERIALS,18/12/2023,000009386732968,4.11,AMAZON.CO.UK 224Q44RP5
OXFORDSHIRE CC,CHILDREN'S & EDUCATION,THAME E&A HOME,CLOTHING AND UNIFORMS,18/12/2023,000009386732708,32.37,FOOTASYLUM LIMITED
OXFORDSHIRE CC,CHILDREN'S & EDUCATION,DIDCOT MOVE-ON HOME,CATERING,18/12/2023,000009386733072,4,SLUG AND LETTUCE O
OXFORDSHIRE CC,CHILDREN'S & EDUCATION,THAME E&A HOME,CATERING PROVISIONS,18/12/2023,000009386732740,52.2,TESCO STORES 2038
OXFORDSHIRE CC,CHILDREN'S & EDUCATION,THAME E&A HOME,CATERING,18/12/2023,000009386732898,10.65,COSTA COFFEE 43011187
OXFORDSHIRE CC,CHILDREN'S & EDUCATION,THAME E&A HOME,CATERING PROVISIONS,18/12/2023,000009386732896,12,B&M 515 - ABINGDON
OXFORDSHIRE CC,CHILDREN'S & EDUCATION,DIDCOT MOVE-ON HOME,CATERING,18/12/2023,000009386732834,162,SLUG AND LETTUCE O
OXFORDSHIRE CC,CHILDREN'S & EDUCATION,THAME E&A HOME,MATERIALS,18/12/2023,000009386732742,21.98,THE RANGE
OXFORDSHIRE CC,CHILDREN'S & EDUCATION,40 THE MOORS,OTHER TRANSPORT ARRANGEMENTS,18/12/2023,000009386733100,3.2,STGCOACH/CTYLINK
OXFORDSHIRE CC,CHILDREN'S & EDUCATION,THAME E&A HOME,CATERING PROVISIONS,18/12/2023,000009386732900,2.4,WAITROSE 206
OXFORDSHIRE CC,PUBLIC HEALTH,WITNEY,CATERING PROVISIONS,18/12/2023,000009386732680,8,ASDA STORES 4920
OXFORDSHIRE CC,PUBLIC HEALTH,WITNEY,CATERING PROVISIONS,18/12/2023,000009386732678,15.79,ASDA STORES 4920
OXFORDSHIRE CC,PUBLIC HEALTH,WITNEY,CATERING PROVISIONS,18/12/2023,000009386732676,47,ASDA STORES 4920
OXFORDSHIRE CC,CHILDREN'S & EDUCATION,"	OCCG GRANT",MATERIALS,18/12/2023,000009386733168,9,TIMPSON LTD
OXFORDSHIRE CC,PUBLIC HEALTH,WITNEY,CATERING PROVISIONS,18/12/2023,000009386732682,32.5,ASDA STORES 4920
OXFORDSHIRE CC,CUSTOMER AND CULTURE,COMMUNITY PARTNERSHIP TEAM,PAYMENTS TO VOLUNTARY BODIES,18/12/2023,000009386732736,10.76,CANCER RESEARCH LTD
OXFORDSHIRE CC,CHILDREN'S & EDUCATION,THAME E&A HOME,MATERIALS,18/12/2023,000009386732890,23.89,AMZNMKTPLACE
OXFORDSHIRE CC,CHILDREN'S & EDUCATION,THAME E&A HOME,MATERIALS,18/12/2023,000009386732886,22.95,AMZNMKTPLACE
OXFORDSHIRE CC,CHILDREN'S & EDUCATION,FAMILY SOLUTIONS PLUS NON-STAFF � SOUTH,MATERIALS,18/12/2023,000009386733164,70,WWW.ARGOS.CO.UK
OXFORDSHIRE CC,CHILDREN'S & EDUCATION,DIDCOT MOVE-ON HOME,MATERIALS,18/12/2023,000009386732832,17.22,EBAY O 20-10927-93496
OXFORDSHIRE CC,CHILDREN'S & EDUCATION,FSP NON-STAFFING - CENTRAL,CATERING PROVISIONS,18/12/2023,000009386732760,16.29,SAINSBURYS S/MKTS
OXFORDSHIRE CC,CHILDREN'S & EDUCATION,FSP NON-STAFFING - CENTRAL,MATERIALS,18/12/2023,000009386733092,226.95,WWW.ARGOS.CO.UK
OXFORDSHIRE CC,RESOURCES,LEGAL SERVICES,STATIONERY,18/12/2023,000009386732952,45,AMZNMKTPLACE
OXFORDSHIRE CC,CHILDREN'S & EDUCATION,NTS UASC AGENCY,MATERIALS,18/12/2023,000009386733094,47.74,AMZNMKTPLACE
OXFORDSHIRE CC,CHILDREN'S & EDUCATION,"	LEAVING CARE NORTH",OTHER EXPENSES,18/12/2023,000009386733128,128.98,WF  UK4182529644
OXFORDSHIRE CC,CHILDREN'S & EDUCATION,40 THE MOORS,OTHER TRANSPORT ARRANGEMENTS,18/12/2023,000009386733102,4,STGCOACH/CTYLINK
OXFORDSHIRE CC,CHILDREN'S & EDUCATION,UASC 16&17,OTHER EXPENSES,18/12/2023,000009386732820,35.99,PUREGYM LIMITED
OXFORDSHIRE CC,ENVIRONMENT AND PLACE,TVERC,SUBSCRIPTIONS,18/12/2023,000009386732698,"1,068.00",HOO HOOTSUITE INC
OXFORDSHIRE CC,ADULTS,PAUSE PROGRAMME,CATERING PROVISIONS,18/12/2023,000009386732818,30.3,ASDA STORE 4442
OXFORDSHIRE CC,ADULTS,CSS WANTAGE,CATERING PROVISIONS,18/12/2023,000009386732668,62.75,LORD NELSON
OXFORDSHIRE CC,CHILDREN'S & EDUCATION,40 THE MOORS,CATERING PROVISIONS,18/12/2023,000009386733104,6.99,SUNDAES GELATO
OXFORDSHIRE CC,ADULTS,PAUSE PROGRAMME,POSTAGE AND DELIVERY,18/12/2023,000009386732816,11.15,POST OFFICE COUNTER
OXFORDSHIRE CC,CHILDREN'S & EDUCATION,"	FPT CITY",HOSPITALITY EXPENSES,18/12/2023,000009386733048,98.21,KINGS ARMS
OXFORDSHIRE CC,CHILDREN'S & EDUCATION,"	FPT CITY",HOSPITALITY EXPENSES,18/12/2023,000009386733050,500,KINGS ARMS
OXFORDSHIRE CC,CHILDREN'S & EDUCATION,DISABILITIES TEAM S,HIRE OF ACCOMMODATION AND FACILITIES,18/12/2023,000009386732714,50,BKG HOTEL AT BOOKING.C
OXFORDSHIRE CC,CHILDREN'S & EDUCATION,DIDCOT MOVE-ON HOME,CATERING PROVISIONS,18/12/2023,000009386732836,1.65,SAINSBURYS S/MKTS
OXFORDSHIRE CC,CHILDREN'S & EDUCATION,THAME E&A HOME,VEHICLE FUEL,18/12/2023,000009386732852,10,SHELL MARCHAM ROAD
OXFORDSHIRE CC,CHILDREN'S & EDUCATION,THAME E&A HOME,CATERING PROVISIONS,18/12/2023,000009386732848,3.9,TESCO STORES 2008
OXFORDSHIRE CC,CHILDREN'S & EDUCATION,"	MALTFIELD HOUSE",CATERING PROVISIONS,18/12/2023,000009386733032,3.4,CO-OPERATIVE FOOD
OXFORDSHIRE CC,CHILDREN'S & EDUCATION,NRPF & HOMELESSNESS,CLIENT LODGINGS AND ACCOMMODATION,18/12/2023,000009386732826,"1,291.18",BKG HOTEL AT BOOKING.C
OXFORDSHIRE CC,ENTERPRISEVC,,CAR LEASING - PRIVATE RENTALS,18/12/2023,000009386733046,"1,716.00",ENTERPRISE RENT-A-CAR
OXFORDSHIRE CC,ADULTS,COUNTY PRINT FINSHRS,VEHICLE EQUIPMENT AND EXPENSES - OTHER,18/12/2023,000009386732696,322.5,DVLA VEHICLE TAX
OXFORDSHIRE CC,ENVIRONMENT AND PLACE,NAT TRAILS GENERAL,"SUPPLIES, STATIONERY AND MATERIALS",18/12/2023,000009386732902,4.51,SAINSBURYS S/MKT
OXFORDSHIRE CC,CHILDREN'S & EDUCATION,PAUSE PROGRAMME,OTHER TRANSPORT ARRANGEMENTS,18/12/2023,000009386732884,4,REDBRIDGE PARK AND RID
OXFORDSHIRE CC,CHILDREN'S & EDUCATION,THAME E&A HOME,MATERIALS,18/12/2023,000009386732888,15,AMAZON.CO.UK KP21B0BO5
OXFORDSHIRE CC,ADULTS,CSS WITNEY,MATERIALS,18/12/2023,000009386732966,46,AMAZON.CO.UK NY8YC17V5
OXFORDSHIRE CC,CHILDREN'S & EDUCATION,THAME E&A HOME,CATERING PROVISIONS,18/12/2023,000009386732758,8.15,TESCO STORES 2008
OXFORDSHIRE CC,ADULTS,CSS BICESTER,MATERIALS,18/12/2023,000009386732722,17.99,AMZNMKTPLACE
OXFORDSHIRE CC,CHILDREN'S & EDUCATION,THAME E&A HOME,OTHER TRANSPORT ARRANGEMENTS,18/12/2023,000009386732850,1.5,VALE OF WH PARKING FEE
OXFORDSHIRE CC,CHILDREN'S & EDUCATION,EYNSHAM,PROFESSIONAL SUBSCRIPTIONS,18/12/2023,000009386732706,23.78,ONTOPUP.COM
OXFORDSHIRE CC,CHILDREN'S & EDUCATION,FSP NON-STAFFING - CENTRAL,OTHER TRANSPORT ARRANGEMENTS,18/12/2023,000009386733120,55.2,WWW.GWR.COM
OXFORDSHIRE CC,CHILDREN'S & EDUCATION,"	LEAVING CARE CITY 2",OTHER EXPENSES,18/12/2023,000009386733130,199.99,CURRYS ONLINE
OXFORDSHIRE CC,ADULTS,CSS WITNEY,CATERING PROVISIONS,18/12/2023,000009386732908,4.25,CO-OP GROUP 070582
OXFORDSHIRE CC,ADULTS,CSS WANTAGE,ENTERTAINMENT EXPENSES,18/12/2023,000009386732970,18.25,HOLLYWOOD BOWL
OXFORDSHIRE CC,ADULTS,CSS WANTAGE,CATERING PROVISIONS,18/12/2023,000009386732686,2.5,WAITROSE 675
OXFORDSHIRE CC,ADULTS,CSS - OXFORD,CATERING PROVISIONS,18/12/2023,000009386732756,70.55,ALDI STORES 775-142
OXFORDSHIRE CC,CHILDREN'S & EDUCATION,NRPF & HOMELESSNESS,PAYMENTS TO TRANSPORT OPERATORS,18/12/2023,000009386732956,"1,852.35",BKG HOTEL AT BOOKING.C
OXFORDSHIRE CC,CHILDREN'S & EDUCATION,THAME E&A HOME,CATERING PROVISIONS,18/12/2023,000009386732860,29.54,B&M 236 - COWLEY
OXFORDSHIRE CC,CUSTOMER AND CULTURE,HARD FM,PREMISES REPAIRS,18/12/2023,000009386732692,5,SAINSBURYS S/MKTS
OXFORDSHIRE CC,ADULTS,INCOME TEAM,PAYMENT TO GOVERNMENT DEPARTMENTS,18/12/2023,000009386732772,1.5,FIND A WILL
OXFORDSHIRE CC,CUSTOMER AND CULTURE,SCHOOLS FM CATERING AREA 1,CATERING PROVISIONS,18/12/2023,000009386733070,54.97,TESCO-STORES 2305
OXFORDSHIRE CC,CHILDREN'S & EDUCATION,CHILDREN IN CARE NON-STAFFING - CENTRL 2,PAYMENTS TO TRANSPORT OPERATORS,18/12/2023,000009386732718,70.76,TRAINLINE
OXFORDSHIRE CC,CUSTOMER AND CULTURE,THAME LIBRARY,CATERING PROVISIONS,18/12/2023,000009386733018,5.6,SAINSBURYS S/MKTS
OXFORDSHIRE CC,CUSTOMER AND CULTURE,SCHOOLS FM CATERING AREA 4,CATERING PROVISIONS,18/12/2023,000009386732866,28.4,SAINSBURYS S/MKTS
OXFORDSHIRE CC,RESOURCES,SCHOOLS FM CATERING AREA 2,CATERING PROVISIONS,18/12/2023,000009386733056,4,SAINSBURYS S/MKTS
OXFORDSHIRE CC,CHILDREN'S & EDUCATION,THAME E&A HOME,CATERING PROVISIONS,18/12/2023,000009386732738,210.09,TESCO STORES 2038
OXFORDSHIRE CC,CORPORATE CORE,,STATIONERY,18/12/2023,000009386733040,4.58,LYRECO UK LTD
OXFORDSHIRE CC,CORPORATE CORE,,STATIONERY,18/12/2023,000009386733038,31.37,LYRECO UK LTD
OXFORDSHIRE CC,CORPORATE CORE,,STATIONERY,18/12/2023,000009386733044,128.64,LYRECO UK LTD
OXFORDSHIRE CC,CORPORATE CORE,,STATIONERY,18/12/2023,000009386733034,11.14,LYRECO UK LTD
OXFORDSHIRE CC,CORPORATE CORE,,STATIONERY,18/12/2023,000009386733042,48.9,LYRECO UK LTD
OXFORDSHIRE CC,CORPORATE CORE,,STATIONERY,18/12/2023,000009386733036,375.17,LYRECO UK LTD
OXFORDSHIRE CC,CUSTOMER AND CULTURE,BOTLEY LIBRARY,"NEWSPAPERS, PERIODICALS AND PUBLICATIONS",18/12/2023,000009386732700,7,MARTIN MCCOLL
OXFORDSHIRE CC,CHILDREN'S & EDUCATION,EYNSHAM,CATERING PROVISIONS,18/12/2023,000009386732672,228.7,TESCO STORES 2008
OXFORDSHIRE CC,CHILDREN'S & EDUCATION,"	LEAVING CARE SOUTH",OTHER TRANSPORT ARRANGEMENTS,18/12/2023,000009386732784,92.3,OXFORDBUS.CO.UK
OXFORDSHIRE CC,CHILDREN'S & EDUCATION,40 THE MOORS,OTHER TRANSPORT ARRANGEMENTS,18/12/2023,000009386733098,3,OXFORD BUS COMPANY
OXFORDSHIRE CC,CHILDREN'S & EDUCATION,THAME E&A HOME,CATERING PROVISIONS,18/12/2023,000009386732876,0.3,SAINSBURYS SUPERMA
OXFORDSHIRE CC,CHILDREN'S & EDUCATION,UASC 16&17,PAYMENTS TO TRANSPORT OPERATORS,18/12/2023,000009386733132,-113.5,TRAINLINE
OXFORDSHIRE CC,CHILDREN'S & EDUCATION,"	LEAVING CARE NORTH",HIRE OF ACCOMMODATION AND FACILITIES,18/12/2023,000009386733062,146.9,HOLIDAY INNS
OXFORDSHIRE CC,CHILDREN'S & EDUCATION,40 THE MOORS,CATERING,18/12/2023,000009386733110,12.27,MCDONALDS
OXFORDSHIRE CC,CHILDREN'S & EDUCATION,PAUSE PROGRAMME,CATERING,18/12/2023,000009386733170,8.6,MCDONALDS
OXFORDSHIRE CC,CHILDREN'S & EDUCATION,"	DISABILITIES TEAM-C",OTHER TRANSPORT ARRANGEMENTS,18/12/2023,000009386732730,114.6,GOGREENT
OXFORDSHIRE CC,CHILDREN'S & EDUCATION,EYNSHAM,CATERING PROVISIONS,18/12/2023,000009386733114,5.07,ALDI 77 775
OXFORDSHIRE CC,CHILDREN'S & EDUCATION,CHILDREN IN CARE NON-STAFFING - SOUTH,HIRE OF ACCOMMODATION AND FACILITIES,18/12/2023,000009386732716,68,PREMIER INN
OXFORDSHIRE CC,ADULTS,CSS - ABINGDON,MATERIALS,18/12/2023,000009386732684,12.03,AMZNMKTPLACE
OXFORDSHIRE CC,ADULTS,CSS - OXFORD,CATERING PROVISIONS,18/12/2023,000009386732754,9.3,ALDI STORES 775-142
OXFORDSHIRE CC,ADULTS,CSS - OXFORD,CATERING PROVISIONS,18/12/2023,000009386732752,6.11,ALDI STORES 775-142
OXFORDSHIRE CC,CUSTOMER AND CULTURE,"MARKETING, COMMUNICATIONS & ENGAGEMENT","PUBLICITY, PROMOTIONS AND ADVERTISEMENT",15/12/2023,000009378478650,10.31,SNAP INC SNAP SNAP ADS
OXFORDSHIRE CC,ADULTS,CSS WITNEY,CATERING PROVISIONS,15/12/2023,000009378478596,71.4,MILK AND MORE (RECUR
OXFORDSHIRE CC,ENVIRONMENT AND PLACE,FLEET OPERATIONS,CATERING PROVISIONS,15/12/2023,000009378478222,30,MILK AND MORE (RECUR
OXFORDSHIRE CC,CUSTOMER AND CULTURE,MUSEUMS COLLECTIONS,CATERING PROVISIONS,15/12/2023,000009378478502,6.93,MILK AND MORE (RECUR
OXFORDSHIRE CC,CUSTOMER AND CULTURE,HOLTON SITE,CATERING PROVISIONS,15/12/2023,000009378478012,17.5,MILK AND MORE (RECUR
OXFORDSHIRE CC,CUSTOMER AND CULTURE,SAMUELSON HOUSE,CATERING PROVISIONS,15/12/2023,000009378478202,53.55,MILK AND MORE (RECUR
OXFORDSHIRE CC,ADULTS,THAME E&A HOME,CATERING EQUIPMENT,15/12/2023,000009378478570,12.98,T K MAXX
OXFORDSHIRE CC,CHILDREN'S & EDUCATION,40 THE MOORS,OTHER EXPENSES,15/12/2023,000009378478916,99,WWW.ARGOS.CO.UK
OXFORDSHIRE CC,PUBLIC HEALTH,WITNEY,CATERING PROVISIONS,15/12/2023,000009378477890,44.75,SAINSBURYS S/MKTS
OXFORDSHIRE CC,CHILDREN'S & EDUCATION,40 THE MOORS,OTHER TRANSPORT ARRANGEMENTS,15/12/2023,000009378478912,4,"THE ORACLE CAR PARK, R"
OXFORDSHIRE CC,PUBLIC HEALTH,WITNEY,CATERING PROVISIONS,15/12/2023,000009378477896,8.34,SAINSBURYS S/MKTS
OXFORDSHIRE CC,CHILDREN'S & EDUCATION,"	OCCG GRANT",DRUGS AND MEDICAL SUPPLIES,15/12/2023,000009378478148,8.2,HEADINGTON_PHARMACY_OX
OXFORDSHIRE CC,CHILDREN'S & EDUCATION,DIDCOT MOVE-ON HOME,CATERING PROVISIONS,15/12/2023,000009378478240,14,SAINSBURYS S/MKTS
OXFORDSHIRE CC,CHILDREN'S & EDUCATION,40 THE MOORS,OTHER EXPENSES,15/12/2023,000009378478908,39.99,GAME
OXFORDSHIRE CC,CHILDREN'S & EDUCATION,DIDCOT MOVE-ON HOME,CATERING PROVISIONS,15/12/2023,000009378478244,10.45,SAINSBURYS S/MKTS
OXFORDSHIRE CC,CUSTOMER AND CULTURE,TRANSPORT GENERAL,MATERIALS,15/12/2023,000009378478010,32.98,AMZNMKTPLACE
OXFORDSHIRE CC,CHILDREN'S & EDUCATION,EYNSHAM,MATERIALS,15/12/2023,000009378478732,26,WWW.ARGOS.CO.UK
OXFORDSHIRE CC,CHILDREN'S & EDUCATION,40 THE MOORS,CATERING,15/12/2023,000009378478894,25.67,SAINSBURYS S/MKTS
OXFORDSHIRE CC,CHILDREN'S & EDUCATION,EYNSHAM,CATERING PROVISIONS,15/12/2023,000009378478166,6,CO-OPERATIVE FOOD
OXFORDSHIRE CC,CUSTOMER AND CULTURE,MUSEUM CAFE,MATERIALS,15/12/2023,000009378478546,11.5,AMZNMKTPLACE
OXFORDSHIRE CC,CHILDREN'S & EDUCATION,EYNSHAM,CATERING PROVISIONS,15/12/2023,000009378478170,3.5,SPAR EYNSHAM
OXFORDSHIRE CC,CHILDREN'S & EDUCATION,THAME E&A HOME,MATERIALS,15/12/2023,000009378478368,16.78,AMZNMKTPLACE
OXFORDSHIRE CC,CHILDREN'S & EDUCATION,THAME E&A HOME,MATERIALS,15/12/2023,000009378478344,29.99,AMZNMKTPLACE
OXFORDSHIRE CC,CHILDREN'S & EDUCATION,THAME E&A HOME,MATERIALS,15/12/2023,000009378478362,38.97,AMZNMKTPLACE
OXFORDSHIRE CC,CHILDREN'S & EDUCATION,THAME E&A HOME,MATERIALS,15/12/2023,000009378478372,32.99,AMZNMKTPLACE
OXFORDSHIRE CC,CHILDREN'S & EDUCATION,THAME E&A HOME,MATERIALS,15/12/2023,000009378478348,15.99,AMZNMKTPLACE
OXFORDSHIRE CC,CUSTOMER AND CULTURE,MUSEUMS COLLECTIONS,MATERIALS,15/12/2023,000009378479048,4.95,AMAZON.CO.UK 603G96JS5
OXFORDSHIRE CC,CHILDREN'S & EDUCATION,"	OCCG GRANT",FIXTURES & FITTINGS,15/12/2023,000009378478146,117.9,ASDA STORE 4442
OXFORDSHIRE CC,CHILDREN'S & EDUCATION,"	LEAVING CARE CITY 2",CATERING PROVISIONS,15/12/2023,000009378478422,162.05,ASDA STORE 4442
OXFORDSHIRE CC,CUSTOMER AND CULTURE,REACTIVE MAINTENANCE,HARDWARE AND CROCKERY,15/12/2023,000009378478976,86.49,WWW.SCREWFIX.COM
OXFORDSHIRE CC,CUSTOMER AND CULTURE,HISTORY SERVICE,SUBSCRIPTIONS,15/12/2023,000009378478532,630,ARCHIVES AND RECORDS
OXFORDSHIRE CC,ADULTS,CSS WITNEY,MATERIALS,15/12/2023,000009378477866,16.44,AMAZON.CO.UK 919L220X5
OXFORDSHIRE CC,CHILDREN'S & EDUCATION,CHILDREN IN CARE NON-STAFFING - NORTH,PAYMENTS TO TRANSPORT OPERATORS,15/12/2023,000009378478962,82.94,TRAINLINE
OXFORDSHIRE CC,CHILDREN'S & EDUCATION,PAUSE PROGRAMME,CATERING PROVISIONS,15/12/2023,000009378479100,7.35,TESCO STORES 2994
OXFORDSHIRE CC,CUSTOMER AND CULTURE,OXFORDSHIRE MUSEUM,MATERIALS,15/12/2023,000009378478540,110.95,WWW.ARGOS.CO.UK
OXFORDSHIRE CC,CUSTOMER AND CULTURE,CH REFURB PROJECT,GENERAL REFUSE COLLECTION AND DISPOSAL,15/12/2023,000009378478408,462,M & M SKIP HIRE
OXFORDSHIRE CC,CUSTOMER AND CULTURE,SCHOOLS FM CATERING AREA 4,CLEANING MATERIALS,15/12/2023,000009378477980,203.96,NISBETS LTD
OXFORDSHIRE CC,CUSTOMER AND CULTURE,SCHOOLS FM CATERING AREA 4,CLEANING MATERIALS,15/12/2023,000009378477974,264,SP FALCONFOODSERVICE
OXFORDSHIRE CC,CHILDREN'S & EDUCATION,40 THE MOORS,VEHICLES AND PLANT - REPAIRS AND MAIN,15/12/2023,000009378478642,18,JANI S HAND CAR WASH
OXFORDSHIRE CC,CHILDREN'S & EDUCATION,STEP INTO TRAINING,"SUPPLIES, STATIONERY AND MATERIALS",15/12/2023,000009378478190,27,AMZNMKTPLACE
OXFORDSHIRE CC,ADULTS,CSS WALLINGFORD,OTHER EXPENSES,15/12/2023,000009378477876,100,ZETTLE_ DELTAVIOLIN
OXFORDSHIRE CC,CHILDREN'S & EDUCATION,THAME E&A HOME,MATERIALS,15/12/2023,000009378478364,13.86,AMZNMKTPLACE
OXFORDSHIRE CC,CHILDREN'S & EDUCATION,THAME E&A HOME,MATERIALS,15/12/2023,000009378478342,8.96,AMZNMKTPLACE
OXFORDSHIRE CC,ADULTS,CSS WITNEY,MATERIALS,15/12/2023,000009378478588,18.59,AMZNMKTPLACE
OXFORDSHIRE CC,CUSTOMER AND CULTURE,CAMBRIDGE TERRACE,OTHER PREMISES RELATED COSTS,15/12/2023,000009378478384,9,TIMPSON LTD
OXFORDSHIRE CC,ADULTS,CSS WANTAGE,HOSPITALITY EXPENSES,15/12/2023,000009378478602,241.68,LORD NELSON
OXFORDSHIRE CC,CHILDREN'S & EDUCATION,FAMILY SOLUTIONS PLUS NON-STAFF - NORTH,PAYMENTS TO TRANSPORT OPERATORS,15/12/2023,000009378478230,137.5,WWW.TAXICODE.COM
OXFORDSHIRE CC,CHILDREN'S & EDUCATION,STEP INTO TRAINING,MATERIALS,15/12/2023,000009378478184,9.95,AMZNMKTPLACE
OXFORDSHIRE CC,CHILDREN'S & EDUCATION,STEP INTO TRAINING,"SUPPLIES, STATIONERY AND MATERIALS",15/12/2023,000009378478180,27.49,AMZNMKTPLACE
OXFORDSHIRE CC,CHILDREN'S & EDUCATION,STEP INTO TRAINING,"SUPPLIES, STATIONERY AND MATERIALS",15/12/2023,000009378478178,9.9,AMZNMKTPLACE
OXFORDSHIRE CC,CUSTOMER AND CULTURE,REGISTRAR,"SUPPLIES, STATIONERY AND MATERIALS",15/12/2023,000009378478174,120,EB  OXFORD BEING READY
OXFORDSHIRE CC,CHILDREN'S & EDUCATION,FAMILY SOLUTIONS PLUS NON-STAFF � SOUTH,MATERIALS,15/12/2023,000009378478950,49.99,AMZNMKTPLACE
OXFORDSHIRE CC,CHILDREN'S & EDUCATION,NRPF & HOMELESSNESS,PAYMENTS TO TRANSPORT OPERATORS,15/12/2023,000009378478234,127,BKG HOTEL AT BOOKING.C
OXFORDSHIRE CC,CUSTOMER AND CULTURE,LEARNING & ACCESS,MATERIALS,15/12/2023,000009378478958,27.68,AMZNMKTPLACE
OXFORDSHIRE CC,CUSTOMER AND CULTURE,OXFORDSHIRE MUSEUM,MATERIALS,15/12/2023,000009378478538,53.95,WWW.ARGOS.CO.UK
OXFORDSHIRE CC,CUSTOMER AND CULTURE,CAMBRIDGE TERRACE,OTHER PREMISES RELATED COSTS,15/12/2023,000009378478388,2,CO-OPERATIVE FOOD
OXFORDSHIRE CC,CUSTOMER AND CULTURE,LEARNING & ACCESS,OTHER TRAINING COURSES AND QUALIFICATION,15/12/2023,000009378478954,145,TBL  GEM - GROUP FOR E
OXFORDSHIRE CC,ADULTS,CSS - BANBURY,MATERIALS,15/12/2023,000009378478752,11.43,AMAZON.CO.UK WJ9ZY6C85
OXFORDSHIRE CC,ADULTS,BUSINESS SUPPORT SERVICE,"BOOKS, DVDS AND CDS",15/12/2023,000009378478680,26.3,AMZNMKTPLACE
OXFORDSHIRE CC,ADULTS,BUSINESS SUPPORT SERVICE,"BOOKS, DVDS AND CDS",15/12/2023,000009378478690,26.3,AMZNMKTPLACE
OXFORDSHIRE CC,CHILDREN'S & EDUCATION,UASC POST 18,DRUGS AND MEDICAL SUPPLIES,15/12/2023,000009378478158,13.99,SUPERDRUG STORES PLC
OXFORDSHIRE CC,CHILDREN'S & EDUCATION,THAME E&A HOME,MATERIALS,15/12/2023,000009378478354,3.98,AMZNMKTPLACE
OXFORDSHIRE CC,CUSTOMER AND CULTURE,BICESTER LIBRARY,MATERIALS,15/12/2023,000009378478298,179.8,BICESTER LOCAL
OXFORDSHIRE CC,CHILDREN'S & EDUCATION,UASC POST 18,DRUGS AND MEDICAL SUPPLIES,15/12/2023,000009378478154,25.98,ROWLANDS PHARMACY
OXFORDSHIRE CC,CUSTOMER AND CULTURE,SCHOOLS FM CATERING AREA 2,CATERING PROVISIONS,15/12/2023,000009378478376,20.18,TESCO STORES 2994
OXFORDSHIRE CC,RESOURCES,LEGAL SERVICES,PHOTOCOPYING,15/12/2023,000009378478528,"4,072.80",ROYDS WITHY KING LLP
OXFORDSHIRE CC,CHILDREN'S & EDUCATION,EYNSHAM,CATERING PROVISIONS,15/12/2023,000009378478920,53.72,HOME BARGAINS
OXFORDSHIRE CC,CUSTOMER AND CULTURE,CATERING MANAGEMENT SOFT FM,CATERING PROVISIONS,15/12/2023,000009378478970,6.7,SAINSBURYS S/MKTS
OXFORDSHIRE CC,CHILDREN'S & EDUCATION,PAUSE PROGRAMME,CATERING,15/12/2023,000009378479104,7.75,COSTA COFFEE ABINGDON
OXFORDSHIRE CC,ADULTS,CSS WANTAGE,CATERING PROVISIONS,15/12/2023,000009378479064,77.62,SAINSBURYS S/MKTS
OXFORDSHIRE CC,ADULTS,CSS WANTAGE,CATERING PROVISIONS,15/12/2023,000009378477872,68.68,SAINSBURYS S/MKTS
OXFORDSHIRE CC,ADULTS,CSS BICESTER,MATERIALS,15/12/2023,000009378478002,4.99,AMZNMKTPLACE
OXFORDSHIRE CC,CHILDREN'S & EDUCATION,PAUSE PROGRAMME,OTHER TRANSPORT ARRANGEMENTS,15/12/2023,000009378479106,1.5,VALE OF WH PARKING FEE
OXFORDSHIRE CC,ENVIRONMENT AND PLACE,NAT TRAILS GENERAL,MATERIALS,15/12/2023,000009378478404,26.2,OXON FASTENING SYSTEMS
OXFORDSHIRE CC,ADULTS,CSS WITNEY,MATERIALS,15/12/2023,000009378478592,34,AMAZON.CO.UK CC9634YN5
OXFORDSHIRE CC,ADULTS,CSS - ABINGDON,MATERIALS,15/12/2023,000009378477902,3.59,AMZNMKTPLACE
OXFORDSHIRE CC,ADULTS,CSS BICESTER,MATERIALS,15/12/2023,000009378478006,8.97,AMZNMKTPLACE
OXFORDSHIRE CC,CUSTOMER AND CULTURE,HARD FM,PREMISES REPAIRS,15/12/2023,000009378477948,15.99,WWW.SCREWFIX.COM
OXFORDSHIRE CC,CUSTOMER AND CULTURE,SCHOOLS FM CATERING AREA 4,CATERING PROVISIONS,15/12/2023,000009378477976,16.3,WAITROSE 871
OXFORDSHIRE CC,ADULTS,CSS WITNEY,VEHICLE FUEL,15/12/2023,000009378479018,15,TESCO PFS 3418
OXFORDSHIRE CC,ADULTS,CSS WITNEY,CATERING PROVISIONS,15/12/2023,000009378479022,9.2,LIDL GB WITNEY
OXFORDSHIRE CC,CHILDREN'S & EDUCATION,40 THE MOORS,MATERIALS,15/12/2023,000009378478888,35.98,AMZNMKTPLACE
OXFORDSHIRE CC,CUSTOMER AND CULTURE,HEADINGTON LIBRARY,"NEWSPAPERS, PERIODICALS AND PUBLICATIONS",15/12/2023,000009378478428,93.6,NEWSTEAM GROUP
OXFORDSHIRE CC,CUSTOMER AND CULTURE,HARD FM,PREMISES REPAIRS,15/12/2023,000009378479026,50.06,WWW.NATIONALBOILERPART
OXFORDSHIRE CC,CHILDREN'S & EDUCATION,FAMILY SOLUTIONS PLUS NON-STAFF � SOUTH,PAYMENTS TO TRANSPORT OPERATORS,15/12/2023,000009378478850,84.06,TRAINLINE
OXFORDSHIRE CC,ADULTS,CSS - OXFORD,"SUPPLIES, STATIONERY AND MATERIALS",15/12/2023,000009378478490,31.43,AMZNMKTPLACE
OXFORDSHIRE CC,CHILDREN'S & EDUCATION,40 THE MOORS,OTHER TRANSPORT ARRANGEMENTS,15/12/2023,000009378478878,2,STGCOACH/CTYLINK
OXFORDSHIRE CC,ADULTS,INCOME TEAM,PAYMENT TO GOVERNMENT DEPARTMENTS,15/12/2023,000009378478074,1.5,FIND A WILL
OXFORDSHIRE CC,CHILDREN'S & EDUCATION,CHILDREN IN CARE NON-STAFFING - NORTH,PAYMENTS TO TRANSPORT OPERATORS,15/12/2023,000009378477984,83.14,TRAINLINE
OXFORDSHIRE CC,CORPORATE CORE,,STATIONERY,15/12/2023,000009378478742,66.43,LYRECO UK LTD
OXFORDSHIRE CC,CHILDREN'S & EDUCATION,EYNSHAM,CATERING PROVISIONS,15/12/2023,000009378477884,5.9,SPAR EYNSHAM
OXFORDSHIRE CC,CORPORATE CORE,,STATIONERY,15/12/2023,000009378478738,68.81,LYRECO UK LTD
OXFORDSHIRE CC,CUSTOMER AND CULTURE,CATERING MANAGEMENT SOFT FM,POSTAGE AND DELIVERY,15/12/2023,000009378478966,5.4,POST OFFICE COUNTER
OXFORDSHIRE CC,CUSTOMER AND CULTURE,HARD FM,PREMISES REPAIRS,15/12/2023,000009378477944,5.69,WWW.SCREWFIX.COM
OXFORDSHIRE CC,CHILDREN'S & EDUCATION,CHILDREN IN CARE NON-STAFFING - CENTRL 2,PAYMENTS TO TRANSPORT OPERATORS,15/12/2023,000009378477990,54,TRAINLINE
OXFORDSHIRE CC,CHILDREN'S & EDUCATION,40 THE MOORS,CATERING PROVISIONS,15/12/2023,000009378478880,20,TESCO STORES 2788
OXFORDSHIRE CC,CHILDREN'S & EDUCATION,40 THE MOORS,CATERING PROVISIONS,15/12/2023,000009378478884,3.92,TESCO STORES 2788
OXFORDSHIRE CC,RESOURCES,SCHOOLS FM CATERING AREA 2,CATERING PROVISIONS,15/12/2023,000009378478770,4.8,SAINSBURYS S/MKTS
OXFORDSHIRE CC,"COMMUNICATIONS, STRATEGY AND INSIGHT",L&D CORE PROGRAMME,CATERING PROVISIONS,15/12/2023,000009378478326,11.35,SAINSBURYS S/MKTS
OXFORDSHIRE CC,"COMMUNICATIONS, STRATEGY AND INSIGHT",L&D CORE PROGRAMME,CATERING PROVISIONS,15/12/2023,000009378478326,5.5,SAINSBURYS S/MKTS
OXFORDSHIRE CC,CUSTOMER AND CULTURE,WITNEY LIBRARY,CATERING,15/12/2023,000009378478264,1.65,CO-OP GROUP 070582
OXFORDSHIRE CC,CUSTOMER AND CULTURE,THAME LIBRARY,"NEWSPAPERS, PERIODICALS AND PUBLICATIONS",15/12/2023,000009378478718,5.6,SAINSBURYS S/MKTS
OXFORDSHIRE CC,CHILDREN'S & EDUCATION,40 THE MOORS,OTHER TRANSPORT ARRANGEMENTS,15/12/2023,000009378478874,2,STGCOACH/CTYLINK
OXFORDSHIRE CC,CHILDREN'S & EDUCATION,40 THE MOORS,OTHER TRANSPORT ARRANGEMENTS,15/12/2023,000009378478870,11.5,STGCOACH/CTYLINK
OXFORDSHIRE CC,CUSTOMER AND CULTURE,HARD FM,PREMISES REPAIRS,15/12/2023,000009378477956,204.73,SYDENHAMS LTD
OXFORDSHIRE CC,CHILDREN'S & EDUCATION,EET SERVICE,CATERING PROVISIONS,15/12/2023,000009378478702,117.1,ASDA GROCERIES ONLINE
OXFORDSHIRE CC,CUSTOMER AND CULTURE,BUSINESS INTELLECTUAL PROPERTY CENTRE,OTHER TRANSPORT ARRANGEMENTS,15/12/2023,000009378478442,3,OXFORD BUS COMPANY
OXFORDSHIRE CC,ADULTS,CSS WITNEY,VEHICLE FUEL,15/12/2023,000009378478420,-1,TESCO PFS 3418
OXFORDSHIRE CC,ADULTS,CSS WITNEY,CATERING PROVISIONS,15/12/2023,000009378478416,1,NYA TESCO
OXFORDSHIRE CC,ADULTS,CSS WITNEY,CATERING PROVISIONS,15/12/2023,000009378478414,1,NYA SHELL
OXFORDSHIRE CC,CHILDREN'S & EDUCATION,PD EQUIPMENT,DISABILITY AIDS AND EQUIPMENT,15/12/2023,000009378478606,-294.99,AMZNMKTPLACE
OXFORDSHIRE CC,ADULTS,CSS - BANBURY,MATERIALS,15/12/2023,000009378478754,-10.96,AMAZON.CO.UK
OXFORDSHIRE CC,CHILDREN'S & EDUCATION,EET SERVICE,CATERING PROVISIONS,15/12/2023,000009378478706,-1.5,ASDA GROCERIES ONLINE
OXFORDSHIRE CC,CHILDREN'S & EDUCATION,THAME E&A HOME,MATERIALS,15/12/2023,000009378478286,15,THEWORKS.CO.UK
OXFORDSHIRE CC,CHILDREN'S & EDUCATION,PAUSE PROGRAMME,LAUNDRY AND DRY CLEANING,15/12/2023,000009378479098,3.5,ME GROUP INTERNATIONAL
OXFORDSHIRE CC,CHILDREN'S & EDUCATION,KINGFISHER,EDUCATIONAL AND VOCATIONAL TRAINING ,15/12/2023,000009378477926,116.4,SJA SUPPLIES TRAINING
OXFORDSHIRE CC,ADULTS,CSS - OXFORD,CATERING PROVISIONS,15/12/2023,000009378478292,40,ALDI STORES 775-142
OXFORDSHIRE CC,CHILDREN'S & EDUCATION,NRPF & HOMELESSNESS,NON-STAFF SUBSISTENCE AND EXPENSES,15/12/2023,000009378478836,9.75,TRAVELODGE
OXFORDSHIRE CC,CHILDREN'S & EDUCATION,NRPF & HOMELESSNESS,CATERING,14/12/2023,000009372264948,28.5,JUST EAT
OXFORDSHIRE CC,CHILDREN'S & EDUCATION,THAME E&A HOME,CLOTHING AND UNIFORMS,14/12/2023,000009372264526,116.95,NIKE GBP
OXFORDSHIRE CC,CUSTOMER AND CULTURE,"MARKETING, COMMUNICATIONS & ENGAGEMENT","PUBLICITY, PROMOTIONS AND ADVERTISEMENT",14/12/2023,000009372265786,10.2,SNAP INC SNAP SNAP ADS
OXFORDSHIRE CC,CHILDREN'S & EDUCATION,BANBURY CC,MATERIALS,14/12/2023,000009372266552,-2.05,WWW.THEWORKS.CO.UK
OXFORDSHIRE CC,CHILDREN'S & EDUCATION,EET SERVICE,MATERIALS,14/12/2023,000009372266006,11.84,AMZNMKTPLACE
OXFORDSHIRE CC,CHILDREN'S & EDUCATION,THAME E&A HOME,ENTERTAINMENT EXPENSES,14/12/2023,000009372264532,219.8,ATGTICKETS.COM
OXFORDSHIRE CC,CHILDREN'S & EDUCATION,EET SERVICE,MATERIALS,14/12/2023,000009372266016,20.25,AMZNMKTPLACE
OXFORDSHIRE CC,CHILDREN'S & EDUCATION,EYNSHAM,MATERIALS,14/12/2023,000009372264344,32.84,AMZNMKTPLACE
OXFORDSHIRE CC,ADULTS,CSS - BANBURY,MATERIALS,14/12/2023,000009372266642,16.11,AMZNMKTPLACE
OXFORDSHIRE CC,CHILDREN'S & EDUCATION,"	OCCG GRANT",DRUGS AND MEDICAL SUPPLIES,14/12/2023,000009372264848,6.39,BOOTS THE CHEMIST
OXFORDSHIRE CC,RESOURCES,ICT OPERATIONS & MAI,IT SERVICES,14/12/2023,000009372266726,20.57,"GITHUB, INC."
OXFORDSHIRE CC,PUBLIC HEALTH,WITNEY,CATERING,14/12/2023,000009372264354,114.2,NANDOS GLASSHOUSE ST.
OXFORDSHIRE CC,CHILDREN'S & EDUCATION,DIDCOT MOVE-ON HOME,CATERING,14/12/2023,000009372265178,38.7,NANDOS.CO.UK
OXFORDSHIRE CC,CHILDREN'S & EDUCATION,40 THE MOORS,CATERING PROVISIONS,14/12/2023,000009372264880,13.75,TESCO STORES 2788
OXFORDSHIRE CC,CHILDREN'S & EDUCATION,WITNEY,CATERING PROVISIONS,14/12/2023,000009372265126,16.89,LIDL GB WITNEY
OXFORDSHIRE CC,CHILDREN'S & EDUCATION,THAME E&A HOME,CATERING PROVISIONS,14/12/2023,000009372265948,6.3,SAINSBURYS S/MKTS
OXFORDSHIRE CC,CHILDREN'S & EDUCATION,THAME E&A HOME,CATERING PROVISIONS,14/12/2023,000009372265942,6,SAINSBURYS S/MKTS
OXFORDSHIRE CC,CHILDREN'S & EDUCATION,THAME E&A HOME,CATERING PROVISIONS,14/12/2023,000009372264704,4,MARTIN MCCOLL
OXFORDSHIRE CC,CHILDREN'S & EDUCATION,NRPF & HOMELESSNESS,OTHER TRANSPORT ARRANGEMENTS,14/12/2023,000009372264942,31,ONWARD TRAVEL SOLUTION
OXFORDSHIRE CC,CHILDREN'S & EDUCATION,THAME E&A HOME,CATERING PROVISIONS,14/12/2023,000009372264722,16.05,SAINSBURYS S/MKTS
OXFORDSHIRE CC,ENVIRONMENT AND PLACE,TVERC,SUBSCRIPTIONS,14/12/2023,000009372264488,9.2,GSUITE_THAMESVALLEYERC
OXFORDSHIRE CC,CHILDREN'S & EDUCATION,NRPF & HOMELESSNESS,OTHER SERVICES,14/12/2023,000009372266424,153,BKG HOTEL AT BOOKING.C
OXFORDSHIRE CC,PUBLIC HEALTH,CHILDREN IN CARE NON-STAFFING - SOUTH,OTHER EXPENSES,14/12/2023,000009372264326,100,ASDA STORES LTD
OXFORDSHIRE CC,CHILDREN'S & EDUCATION,"	LEAVING CARE NORTH",MATERIALS,14/12/2023,000009372265052,8.99,AMAZON PRIME OY6DA7R05
OXFORDSHIRE CC,CHILDREN'S & EDUCATION,THAME E&A HOME,CATERING PROVISIONS,14/12/2023,000009372264700,28.8,COSTA THAME
OXFORDSHIRE CC,CHILDREN'S & EDUCATION,THAME E&A HOME,OTHER MISC INC,14/12/2023,000009372265938,5,"BOOTS,THAME"
OXFORDSHIRE CC,CHILDREN'S & EDUCATION,THAME E&A HOME,DRUGS AND MEDICAL SUPPLIES,14/12/2023,000009372264710,6.05,"BOOTS,THAME"
OXFORDSHIRE CC,CHILDREN'S & EDUCATION,THAME E&A HOME,CATERING PROVISIONS,14/12/2023,000009372265954,5.45,SAINSBURYS S/MKTS
OXFORDSHIRE CC,CHILDREN'S & EDUCATION,"	OCCG GRANT",ENTERTAINMENT EXPENSES,14/12/2023,000009372266876,32,BOB WILSON FUNFAIRS LI
OXFORDSHIRE CC,CHILDREN'S & EDUCATION,EYNSHAM,CATERING PROVISIONS,14/12/2023,000009372266378,9.96,HOME BARGAINS
OXFORDSHIRE CC,PUBLIC HEALTH,CHILDREN IN CARE NON-STAFFING - SOUTH,PAYMENTS TO TRANSPORT OPERATORS,14/12/2023,000009372264314,163.95,TRAINLINE
OXFORDSHIRE CC,CHILDREN'S & EDUCATION,THAME E&A HOME,DRUGS AND MEDICAL SUPPLIES,14/12/2023,000009372264718,14.25,"BOOTS,THAME"
OXFORDSHIRE CC,CUSTOMER AND CULTURE,MUSEUMS COLLECTIONS,MATERIALS,14/12/2023,000009372266774,20.93,SIMPLY BEARINGS
OXFORDSHIRE CC,CHILDREN'S & EDUCATION,"	MARLBOROUGH","BOOKS, DVDS AND CDS",14/12/2023,000009372266798,52.24,AMZNMKTPLACE
OXFORDSHIRE CC,ADULTS,CSS WITNEY,MATERIALS,14/12/2023,000009372265666,2.49,AMZNMKTPLACE
OXFORDSHIRE CC,CHILDREN'S & EDUCATION,EYNSHAM,MATERIALS,14/12/2023,000009372266368,5.28,DECATHLON
OXFORDSHIRE CC,ADULTS,CSS WITNEY,MATERIALS,14/12/2023,000009372265676,18.08,AMZNMKTPLACE
OXFORDSHIRE CC,CHILDREN'S & EDUCATION,PAUSE PROGRAMME,CATERING,14/12/2023,000009372265162,5.95,COSTA COFFEE 43010890
OXFORDSHIRE CC,CHILDREN'S & EDUCATION,EYNSHAM,CATERING EQUIPMENT,14/12/2023,000009372266044,23.06,AMZNMKTPLACE
OXFORDSHIRE CC,CHILDREN'S & EDUCATION,UASC POST 18,OTHER EXPENSES,14/12/2023,000009372266542,220,WWW.ARGOS.CO.UK
OXFORDSHIRE CC,CHILDREN'S & EDUCATION,EET SERVICE,MATERIALS,14/12/2023,000009372266000,286.02,AMZNMKTPLACE
OXFORDSHIRE CC,CHILDREN'S & EDUCATION,NTS UASC AGENCY,HARDWARE AND CROCKERY,14/12/2023,000009372266348,59.99,WWW.SCREWFIX.COM
OXFORDSHIRE CC,CHILDREN'S & EDUCATION,"	MALTFIELD HOUSE",CATERING PROVISIONS,14/12/2023,000009372266056,170.09,PATRICK STRAINGE BUTCH
OXFORDSHIRE CC,CHILDREN'S & EDUCATION,40 THE MOORS,CATERING PROVISIONS,14/12/2023,000009372264872,11.09,TESCO STORES 2788
OXFORDSHIRE CC,CHILDREN'S & EDUCATION,"	OCCG GRANT",CATERING,14/12/2023,000009372266894,222.42,RUDYS BIRMINGHAM
OXFORDSHIRE CC,CUSTOMER AND CULTURE,CENTRAL LIBRARY,MATERIALS,14/12/2023,000009372265582,3.99,EXTRA
OXFORDSHIRE CC,RESOURCES,LEGAL SERVICES,MATERIALS,14/12/2023,000009372265572,25.42,AMZNMKTPLACE
OXFORDSHIRE CC,CHILDREN'S & EDUCATION,DIDCOT MOVE-ON HOME,CATERING PROVISIONS,14/12/2023,000009372266318,29.13,SAINSBURYS S/MKTS
OXFORDSHIRE CC,CHILDREN'S & EDUCATION,DIDCOT MOVE-ON HOME,CATERING PROVISIONS,14/12/2023,000009372266310,4,SAINSBURYS S/MKTS
OXFORDSHIRE CC,CHILDREN'S & EDUCATION,SI EQUIPMENT,POSTAGE AND DELIVERY,14/12/2023,000009372265438,8.15,POST OFFICE COUNTER
OXFORDSHIRE CC,CHILDREN'S & EDUCATION,PAUSE PROGRAMME,CATERING,14/12/2023,000009372266928,13.1,COSTA COFFEE 43011690
OXFORDSHIRE CC,ADULTS,CSS WITNEY,MATERIALS,14/12/2023,000009372265670,7.89,AMZNMKTPLACE
OXFORDSHIRE CC,ADULTS,CSS WANTAGE,EQUIPMENT,14/12/2023,000009372264288,31.98,WWW.ARGOS.CO.UK
OXFORDSHIRE CC,CHILDREN'S & EDUCATION,CHILDREN IN CARE NON-STAFFING - SOUTH,CLOTHING AND UNIFORMS,14/12/2023,000009372264554,79.98,SPORTSDIRECT.COM
OXFORDSHIRE CC,ADULTS,CSS - ABINGDON,OTHER TRANSPORT ARRANGEMENTS,14/12/2023,000009372266570,5,OXPENS CAR PARK
OXFORDSHIRE CC,CHILDREN'S & EDUCATION,PAUSE PROGRAMME,VEHICLE FUEL,14/12/2023,000009372266918,3.1,DEN & DEN TRAVEL LTD
OXFORDSHIRE CC,CHILDREN'S & EDUCATION,PAUSE PROGRAMME,LAUNDRY AND DRY CLEANING,14/12/2023,000009372266914,3.5,ME GROUP INTERNATIONAL
OXFORDSHIRE CC,CHILDREN'S & EDUCATION,"	OCCG GRANT",CATERING,14/12/2023,000009372266250,29.6,HELENS BUFFETS
OXFORDSHIRE CC,CHILDREN'S & EDUCATION,ADULTS AT RISK,HIRE OF ACCOMMODATION AND FACILITIES,14/12/2023,000009372265292,250,BELL INN DUCKLINGTON
OXFORDSHIRE CC,CHILDREN'S & EDUCATION,PAUSE PROGRAMME,CATERING,14/12/2023,000009372265154,7.05,COSTA COFFEE 43010890
OXFORDSHIRE CC,ADULTS,PAUSE PROGRAMME,"SUPPLIES, STATIONERY AND MATERIALS",14/12/2023,000009372264840,23.59,VISTAPRINT
OXFORDSHIRE CC,CUSTOMER AND CULTURE,SCHOOLS FM CATERING AREA 1,CATERING PROVISIONS,14/12/2023,000009372265106,8.5,MARKS&SPENCER PLC SACA
OXFORDSHIRE CC,ADULTS,CSS BICESTER,MATERIALS,14/12/2023,000009372266786,15.38,AMZNMKTPLACE
OXFORDSHIRE CC,ADULTS,CSS - OXFORD,DISABILITY AIDS AND EQUIPMENT,14/12/2023,000009372265468,19.97,AMZNMKTPLACE
OXFORDSHIRE CC,CHILDREN'S & EDUCATION,40 THE MOORS,OTHER TRANSPORT ARRANGEMENTS,14/12/2023,000009372266466,2,STGCOACH/CTYLINK
OXFORDSHIRE CC,CHILDREN'S & EDUCATION,UASC 16&17,OTHER EXPENSES,14/12/2023,000009372266132,69.99,WWW.ARGOS.CO.UK
OXFORDSHIRE CC,CHILDREN'S & EDUCATION,"	LEAVING CARE CITY 2",PAYMENTS TO TRANSPORT OPERATORS,14/12/2023,000009372264568,66.22,TRAINLINE
OXFORDSHIRE CC,CHILDREN'S & EDUCATION,THAME E&A HOME,CATERING PROVISIONS,14/12/2023,000009372265272,119.13,T K MAXX
OXFORDSHIRE CC,ADULTS,CSS WITNEY,MATERIALS,14/12/2023,000009372265682,35.98,AMZNMKTPLACE
OXFORDSHIRE CC,CHILDREN'S & EDUCATION,CHILDREN IN CARE NON-STAFFING - CENTRL 1,PAYMENTS TO TRANSPORT OPERATORS,14/12/2023,000009372264564,75.4,TRAINLINE
OXFORDSHIRE CC,CHILDREN'S & EDUCATION,DIDCOT MOVE-ON HOME,PAYMENTS TO TRANSPORT OPERATORS,14/12/2023,000009372265188,63.6,GWR DIDCOT PKWY TO
OXFORDSHIRE CC,RESOURCES,MOTOR FLEET,MOTOR IF FEES,14/12/2023,000009372265926,10,WWW.MIB.ORG.UK
OXFORDSHIRE CC,ADULTS,CSS - ABINGDON,ENTERTAINMENT EXPENSES,14/12/2023,000009372264388,80.5,HOLLYWOOD BOWL
OXFORDSHIRE CC,ADULTS,CSS WITNEY,CATERING PROVISIONS,14/12/2023,000009372266274,21.25,CO-OP GROUP 070582
OXFORDSHIRE CC,ADULTS,CSS WANTAGE,DAY ACTIVITIES,14/12/2023,000009372264272,26,ZETTLE_ JANET LYNN FOO
OXFORDSHIRE CC,CHILDREN'S & EDUCATION,40 THE MOORS,OTHER TRANSPORT ARRANGEMENTS,14/12/2023,000009372266482,2,STGCOACH/CTYLINK
OXFORDSHIRE CC,CHILDREN'S & EDUCATION,40 THE MOORS,OTHER TRANSPORT ARRANGEMENTS,14/12/2023,000009372266476,13.5,STGCOACH/CTYLINK
OXFORDSHIRE CC,CHILDREN'S & EDUCATION,NTS UASC AGENCY,MATERIALS,14/12/2023,000009372266404,306,M & M SKIP HIRE
OXFORDSHIRE CC,CHILDREN'S & EDUCATION,"	OCCG GRANT",CATERING PROVISIONS,14/12/2023,000009372266888,4,WM MORRISONS STORE
OXFORDSHIRE CC,CHILDREN'S & EDUCATION,CHILDREN IN CARE NON-STAFFING - NORTH,OTHER EXPENSES,14/12/2023,000009372264454,50,VOUCHER EXPRESS
OXFORDSHIRE CC,CHILDREN'S & EDUCATION,0-5 STDS & PROGRESS,EDUCATIONAL AND VOCATIONAL TRAINING ,14/12/2023,000009372264864,5,KINDERLY
OXFORDSHIRE CC,CHILDREN'S & EDUCATION,FSP NON-STAFFING - CENTRAL,MATERIALS,14/12/2023,000009372266356,279,CURRYS ONLINE
OXFORDSHIRE CC,PUBLIC HEALTH,CHILDREN IN CARE NON-STAFFING - SOUTH,OTHER TRANSPORT ARRANGEMENTS,14/12/2023,000009372264322,10,NEALE'S TAXIS LIMI
OXFORDSHIRE CC,PUBLIC HEALTH,CHILDREN IN CARE NON-STAFFING - SOUTH,PAYMENTS TO TRANSPORT OPERATORS,14/12/2023,000009372264334,17.92,TRAINLINE
OXFORDSHIRE CC,CHILDREN'S & EDUCATION,EET SERVICE,EDUCATIONAL AND VOCATIONAL TRAINING ,14/12/2023,000009372265562,45,CONSTRUCTIONCERT
OXFORDSHIRE CC,CHILDREN'S & EDUCATION,WITNEY,PAYMENTS TO TRANSPORT OPERATORS,14/12/2023,000009372266234,43.6,TRAINLINE
OXFORDSHIRE CC,CHILDREN'S & EDUCATION,FAMILY SOLUTIONS PLUS NON-STAFF � SOUTH,MATERIALS,14/12/2023,000009372266300,408,AASVOGEL SKIP HIRE
OXFORDSHIRE CC,CORPORATE CORE,,STATIONERY,14/12/2023,000009372266092,178.51,LYRECO UK LTD
OXFORDSHIRE CC,CORPORATE CORE,,STATIONERY,14/12/2023,000009372266084,155.57,LYRECO UK LTD
OXFORDSHIRE CC,CORPORATE CORE,,STATIONERY,14/12/2023,000009372266066,86.16,LYRECO UK LTD
OXFORDSHIRE CC,CORPORATE CORE,,STATIONERY,14/12/2023,000009372266078,11.28,LYRECO UK LTD
OXFORDSHIRE CC,RESOURCES,INCOME TEAM,PAYMENT TO GOVERNMENT DEPARTMENTS,14/12/2023,000009372265308,115,WWW.MONEYCLAIM.GOV
OXFORDSHIRE CC,ADULTS,CSS - OXFORD,CATERING PROVISIONS,14/12/2023,000009372265062,53.15,TESCO STORES 2994
OXFORDSHIRE CC,CHILDREN'S & EDUCATION,CHILDREN IN CARE NON-STAFFING - CENTRL 1,OTHER TRANSPORT ARRANGEMENTS,14/12/2023,000009372264546,6,OXFORDBUS.CO.UK
OXFORDSHIRE CC,CHILDREN'S & EDUCATION,CHILDREN IN CARE NON-STAFFING - CENTRL 1,PAYMENTS TO TRANSPORT OPERATORS,14/12/2023,000009372264556,15.22,TRAINLINE
OXFORDSHIRE CC,RESOURCES,INCOME TEAM,PAYMENT TO GOVERNMENT DEPARTMENTS,14/12/2023,000009372265300,641.52,WWW.MONEYCLAIM.GOV
OXFORDSHIRE CC,CUSTOMER AND CULTURE,"MARKETING, COMMUNICATIONS & ENGAGEMENT","PUBLICITY, PROMOTIONS AND ADVERTISEMENT",14/12/2023,000009372265778,10.37,SNAP INC SNAP SNAP ADS
OXFORDSHIRE CC,CUSTOMER AND CULTURE,COMMUNITY PARTNERSHIP TEAM,CATERING PROVISIONS,14/12/2023,000009372264686,17.25,TESCO STORES 2413
OXFORDSHIRE CC,CHILDREN'S & EDUCATION,40 THE MOORS,MATERIALS,14/12/2023,000009372266430,42.41,AMZNMKTPLACE
OXFORDSHIRE CC,CHILDREN'S & EDUCATION,"	SEN/ICT EQUIPMENT",IT SERVICES,14/12/2023,000009372264816,49.92,GOTO TECHNOLOGIES UK L
OXFORDSHIRE CC,ENVIRONMENT AND PLACE,CTRYSIDE OPS STAFF,EQUIPMENT,14/12/2023,000009372266110,46,AMZNMKTPLACE
OXFORDSHIRE CC,CUSTOMER AND CULTURE,ABINGDON LIBRARY,MATERIALS,14/12/2023,000009372265886,1,POUNDLAND LTD - 1366
OXFORDSHIRE CC,RESOURCES,ICT OPERATIONS & MAI,PAYMENTS TO TRANSPORT OPERATORS,14/12/2023,000009372266528,-49.8,WWW.GWR.COM
OXFORDSHIRE CC,CHILDREN'S & EDUCATION,CHILDREN IN CARE NON-STAFFING - CENTRL 1,PAYMENTS TO TRANSPORT OPERATORS,14/12/2023,000009372264574,-61.5,TRAINLINE
OXFORDSHIRE CC,ADULTS,CSS - BANBURY,MATERIALS,14/12/2023,000009372266652,-19.96,AMZNMKTPLACE
OXFORDSHIRE CC,CUSTOMER AND CULTURE,HARD FM,PREMISES REPAIRS,14/12/2023,000009372264988,-200,ENTERPRISE RENT-A-CAR
OXFORDSHIRE CC,CHILDREN'S & EDUCATION,THAME E&A HOME,CLOTHING AND UNIFORMS,14/12/2023,000009372265044,22,PRIMARK 647
OXFORDSHIRE CC,ADULTS,CSS - ABINGDON,CATERING PROVISIONS,14/12/2023,000009372266866,13.85,ALDI STORES
OXFORDSHIRE CC,CHILDREN'S & EDUCATION,MANAGEMENT,CATERING,14/12/2023,000009372265518,135.69,DOMINO S PIZZA
OXFORDSHIRE CC,ADULTS,CSS WITNEY,MATERIALS,14/12/2023,000009372265686,15.99,AMZNMKTPLACE
OXFORDSHIRE CC,PUBLIC HEALTH,WITNEY,MATERIALS,14/12/2023,000009372264360,7.77,AMZNMKTPLACE
OXFORDSHIRE CC,ENVIRONMENT AND PLACE,FLEET OPERATIONS,MANAGEMENT CONSULTANT FEES,14/12/2023,000009372264920,159,TVLICENSING.CO.UK
OXFORDSHIRE CC,CHILDREN'S & EDUCATION,NRPF & HOMELESSNESS,PAYMENTS TO TRANSPORT OPERATORS,14/12/2023,000009372265824,"2,456.24",WWW.TRAVELUP.CO.UK
OXFORDSHIRE CC,ADULTS,CSS - OXFORD,CATERING PROVISIONS,14/12/2023,000009372264750,51.39,ALDI STORES 775-142
OXFORDSHIRE CC,CHILDREN'S & EDUCATION,QUALITY ASSURANCE CITY TEAM,HIRE OF ACCOMMODATION AND FACILITIES,14/12/2023,000009372266666,53.99,PREMIER INN
OXFORDSHIRE CC,ADULTS,CSS - OXFORD,MATERIALS,14/12/2023,000009372264732,17.45,ALDI STORES 775-142
OXFORDSHIRE CC,ADULTS,CSS - OXFORD,CATERING PROVISIONS,14/12/2023,000009372265032,34.85,ALDI STORES 775-142
OXFORDSHIRE CC,ADULTS,CSS - OXFORD,CATERING PROVISIONS,14/12/2023,000009372264740,41.85,ALDI STORES 775-142
OXFORDSHIRE CC,CHILDREN'S & EDUCATION,EET SERVICE,MATERIALS,13/12/2023,000009366574438,22.44,AMZNMKTPLACE
OXFORDSHIRE CC,ADULTS,CSS - BANBURY,MATERIALS,13/12/2023,000009366575046,4.63,AMAZON.CO.UK 6P3WM9CC5
OXFORDSHIRE CC,ADULTS,CSS - BANBURY,MATERIALS,13/12/2023,000009366575044,10.96,AMAZON.CO.UK 064Y99EQ5
OXFORDSHIRE CC,CHILDREN'S & EDUCATION,EET SERVICE,MATERIALS,13/12/2023,000009366574428,14.1,AMZNMKTPLACE
OXFORDSHIRE CC,CHILDREN'S & EDUCATION,EET SERVICE,MATERIALS,13/12/2023,000009366574434,14.1,AMZNMKTPLACE
OXFORDSHIRE CC,CHILDREN'S & EDUCATION,EET SERVICE,MATERIALS,13/12/2023,000009366574220,286.02,AMZNMKTPLACE
OXFORDSHIRE CC,ADULTS,CSS - BANBURY,MATERIALS,13/12/2023,000009366575020,16.99,AMZNMKTPLACE
OXFORDSHIRE CC,CHILDREN'S & EDUCATION,EET SERVICE,MATERIALS,13/12/2023,000009366574152,20.25,AMZNMKTPLACE
OXFORDSHIRE CC,CHILDREN'S & EDUCATION,EET SERVICE,MATERIALS,13/12/2023,000009366574362,14.1,AMZNMKTPLACE
OXFORDSHIRE CC,CHILDREN'S & EDUCATION,EET SERVICE,MATERIALS,13/12/2023,000009366574404,14.1,AMZNMKTPLACE
OXFORDSHIRE CC,CHILDREN'S & EDUCATION,EET SERVICE,MATERIALS,13/12/2023,000009366574386,14.54,AMZNMKTPLACE
OXFORDSHIRE CC,CHILDREN'S & EDUCATION,WITNEY,CATERING PROVISIONS,13/12/2023,000009366574668,13.57,SAINSBURYS S/MKTS
OXFORDSHIRE CC,CHILDREN'S & EDUCATION,EET SERVICE,MATERIALS,13/12/2023,000009366574408,14.54,AMZNMKTPLACE
OXFORDSHIRE CC,CUSTOMER AND CULTURE,CENTRAL LIBRARY,MATERIALS,13/12/2023,000009366574754,52.45,AMZNMKTPLACE
OXFORDSHIRE CC,CHILDREN'S & EDUCATION,EET SERVICE,MATERIALS,13/12/2023,000009366574382,14.1,AMZNMKTPLACE
OXFORDSHIRE CC,CHILDREN'S & EDUCATION,THAME E&A HOME,ENTERTAINMENT EXPENSES,13/12/2023,000009366573336,5.98,HOLLYWOOD BOWL
OXFORDSHIRE CC,CHILDREN'S & EDUCATION,EET SERVICE,MATERIALS,13/12/2023,000009366574412,14.54,AMZNMKTPLACE
OXFORDSHIRE CC,CHILDREN'S & EDUCATION,EET SERVICE,MATERIALS,13/12/2023,000009366574346,14.1,AMZNMKTPLACE
OXFORDSHIRE CC,CHILDREN'S & EDUCATION,EET SERVICE,MATERIALS,13/12/2023,000009366574396,14.54,AMZNMKTPLACE
OXFORDSHIRE CC,CHILDREN'S & EDUCATION,EET SERVICE,MATERIALS,13/12/2023,000009366574422,14.1,AMZNMKTPLACE
OXFORDSHIRE CC,CHILDREN'S & EDUCATION,FAMILY HELP NORTH,HIRE OF ACCOMMODATION AND FACILITIES,13/12/2023,000009366574706,80,BKG HOTEL AT BOOKING.C
OXFORDSHIRE CC,CHILDREN'S & EDUCATION,THAME E&A HOME,CATERING,13/12/2023,000009366573380,20.14,SUBWAY 39501 COWLEY RO
OXFORDSHIRE CC,CHILDREN'S & EDUCATION,"	SEN/ICT EQUIPMENT",PURCHASE OF IT EQUIPMENT,13/12/2023,000009366575102,27.99,AMZNMKTPLACE
OXFORDSHIRE CC,CHILDREN'S & EDUCATION,EET SERVICE,MATERIALS,13/12/2023,000009366574356,14.54,AMZNMKTPLACE
OXFORDSHIRE CC,CHILDREN'S & EDUCATION,EYNSHAM,MATERIALS,13/12/2023,000009366574078,6.79,AMZNMKTPLACE
OXFORDSHIRE CC,CHILDREN'S & EDUCATION,EYNSHAM,MATERIALS,13/12/2023,000009366574074,7.99,AMZNMKTPLACE
OXFORDSHIRE CC,CHILDREN'S & EDUCATION,EET SERVICE,MATERIALS,13/12/2023,000009366574318,25.15,AMZNMKTPLACE
OXFORDSHIRE CC,CHILDREN'S & EDUCATION,EET SERVICE,MATERIALS,13/12/2023,000009366574342,14.1,AMZNMKTPLACE
OXFORDSHIRE CC,CHILDREN'S & EDUCATION,EET SERVICE,MATERIALS,13/12/2023,000009366574416,14.54,AMZNMKTPLACE
OXFORDSHIRE CC,CHILDREN'S & EDUCATION,EET SERVICE,MATERIALS,13/12/2023,000009366574306,25.15,AMZNMKTPLACE
OXFORDSHIRE CC,CHILDREN'S & EDUCATION,EET SERVICE,MATERIALS,13/12/2023,000009366574366,14.1,AMZNMKTPLACE
OXFORDSHIRE CC,CHILDREN'S & EDUCATION,EET SERVICE,MATERIALS,13/12/2023,000009366574286,25.15,AMZNMKTPLACE
OXFORDSHIRE CC,CHILDREN'S & EDUCATION,QUALITY ASSURANCE NORTH TEAM,PAYMENTS TO TRANSPORT OPERATORS,13/12/2023,000009366575050,22.61,TRAINLINE
OXFORDSHIRE CC,CHILDREN'S & EDUCATION,EET SERVICE,MATERIALS,13/12/2023,000009366574328,25.15,AMZNMKTPLACE
OXFORDSHIRE CC,CHILDREN'S & EDUCATION,EET SERVICE,MATERIALS,13/12/2023,000009366574392,14.54,AMZNMKTPLACE
OXFORDSHIRE CC,CHILDREN'S & EDUCATION,EET SERVICE,MATERIALS,13/12/2023,000009366574370,14.54,AMZNMKTPLACE
OXFORDSHIRE CC,CHILDREN'S & EDUCATION,EET SERVICE,MATERIALS,13/12/2023,000009366574376,14.54,AMZNMKTPLACE
OXFORDSHIRE CC,CHILDREN'S & EDUCATION,EET SERVICE,MATERIALS,13/12/2023,000009366574330,25.15,AMZNMKTPLACE
OXFORDSHIRE CC,CHILDREN'S & EDUCATION,40 THE MOORS,OTHER EXPENSES,13/12/2023,000009366574808,21,BUZZ GYM
OXFORDSHIRE CC,ADULTS,CSS WANTAGE,EQUIPMENT,13/12/2023,000009366572574,38.99,AMZNMKTPLACE
OXFORDSHIRE CC,ADULTS,CSS WITNEY,MATERIALS,13/12/2023,000009366573834,27.98,AMZNMKTPLACE
OXFORDSHIRE CC,CHILDREN'S & EDUCATION,EET SERVICE,MATERIALS,13/12/2023,000009366574326,25.15,AMZNMKTPLACE
OXFORDSHIRE CC,CHILDREN'S & EDUCATION,THAME E&A HOME,ENTERTAINMENT EXPENSES,13/12/2023,000009366573440,17.2,WWW.BETTER.ORG.UK
OXFORDSHIRE CC,CHILDREN'S & EDUCATION,EET SERVICE,MATERIALS,13/12/2023,000009366574290,25.15,AMZNMKTPLACE
OXFORDSHIRE CC,CHILDREN'S & EDUCATION,EYNSHAM,CATERING PROVISIONS,13/12/2023,000009366572656,8,CO-OPERATIVE FOOD
OXFORDSHIRE CC,CUSTOMER AND CULTURE,SCHOOLS FM CATERING AREA 4,MATERIALS,13/12/2023,000009366573388,62.2,NISBETS LTD
OXFORDSHIRE CC,CHILDREN'S & EDUCATION,EET SERVICE,MATERIALS,13/12/2023,000009366574336,21.36,AMZNMKTPLACE
OXFORDSHIRE CC,ADULTS,PAUSE PROGRAMME,CATERING PROVISIONS,13/12/2023,000009366573074,8,WAITROSE 211
OXFORDSHIRE CC,CHILDREN'S & EDUCATION,WITNEY,CATERING PROVISIONS,13/12/2023,000009366574698,5.74,SAINSBURYS S/MKTS
OXFORDSHIRE CC,CHILDREN'S & EDUCATION,EET SERVICE,MATERIALS,13/12/2023,000009366574296,25.15,AMZNMKTPLACE
OXFORDSHIRE CC,CHILDREN'S & EDUCATION,"	OCCG GRANT",FIXTURES & FITTINGS,13/12/2023,000009366573086,9.09,SCREWFIX DIR LTD
OXFORDSHIRE CC,CHILDREN'S & EDUCATION,MANAGEMENT,OTHER EXPENSES,13/12/2023,000009366573718,47,INTERFLORA BRITISH UNI
OXFORDSHIRE CC,CHILDREN'S & EDUCATION,SEND CASEWORK TEAM,ADMIN FURNITURE,13/12/2023,000009366573868,"1,003.20",SIMPLY ERGONOMIC LIMIT
OXFORDSHIRE CC,CHILDREN'S & EDUCATION,CHILDREN IN CARE NON-STAFFING - CENTRL 2,OTHER TRANSPORT ARRANGEMENTS,13/12/2023,000009366574904,6,OXFORDBUS.CO.UK
OXFORDSHIRE CC,CHILDREN'S & EDUCATION,EET SERVICE,MATERIALS,13/12/2023,000009366574352,19.8,AMZNMKTPLACE
OXFORDSHIRE CC,CHILDREN'S & EDUCATION,EET SERVICE,MATERIALS,13/12/2023,000009366574256,22.44,AMZNMKTPLACE
OXFORDSHIRE CC,CHILDREN'S & EDUCATION,"	LAC PUPIL PREMIUM",EDUCATIONAL AND VOCATIONAL TRAINING ,13/12/2023,000009366574836,131,ACTIVATE LEARNING -CC
OXFORDSHIRE CC,CHILDREN'S & EDUCATION,EET SERVICE,MATERIALS,13/12/2023,000009366574300,22.44,AMZNMKTPLACE
OXFORDSHIRE CC,CHILDREN'S & EDUCATION,"	LAC PUPIL PREMIUM",EDUCATIONAL AND VOCATIONAL TRAINING ,13/12/2023,000009366574832,260,ACTIVATE LEARNING -CC
OXFORDSHIRE CC,CHILDREN'S & EDUCATION,DIDCOT MOVE-ON HOME,CATERING PROVISIONS,13/12/2023,000009366573256,3.35,SAINSBURYS S/MKTS
OXFORDSHIRE CC,CHILDREN'S & EDUCATION,VULNERABLE LEARNERS,SUBSCRIPTIONS,13/12/2023,000009366573122,290,EARLY EDUCATION
OXFORDSHIRE CC,CHILDREN'S & EDUCATION,"	OCCG GRANT",ENTERTAINMENT EXPENSES,13/12/2023,000009366575186,115.5,TICKETS 100436546
OXFORDSHIRE CC,CHILDREN'S & EDUCATION,FAMILY SOLUTIONS PLUS NON-STAFF - NORTH,CATERING PROVISIONS,13/12/2023,000009366574912,71.1,SAINSBURYS S/MKTS
OXFORDSHIRE CC,ADULTS,CSS - BANBURY,MATERIALS,13/12/2023,000009366575016,40,SECRET GARDEN (FLOWERS
OXFORDSHIRE CC,CHILDREN'S & EDUCATION,THAME E&A HOME,OTHER TRANSPORT ARRANGEMENTS,13/12/2023,000009366575058,4.8,WESTGATE OXFORD CAR PA
OXFORDSHIRE CC,PUBLIC HEALTH,WITNEY,MATERIALS,13/12/2023,000009366572676,12.95,AMZNMKTPLACE
OXFORDSHIRE CC,CHILDREN'S & EDUCATION,40 THE MOORS,FIXTURES & FITTINGS,13/12/2023,000009366574780,369.62,B & Q 1062
OXFORDSHIRE CC,ADULTS,CSS - BANBURY,CATERING PROVISIONS,13/12/2023,000009366574942,104.35,TESCO STORES 2064
OXFORDSHIRE CC,CHILDREN'S & EDUCATION,CHILDREN IN CARE NON-STAFFING - CENTRL 2,PAYMENTS TO TRANSPORT OPERATORS,13/12/2023,000009366572810,15.07,TRAINLINE
OXFORDSHIRE CC,ADULTS,CSS BICESTER,MATERIALS,13/12/2023,000009366572848,8.62,AMAZON.CO.UK IQ5OL9EU5
OXFORDSHIRE CC,CHILDREN'S & EDUCATION,"	OCCG GRANT",CLEANING MATERIALS,13/12/2023,000009366573092,149.99,WWW.SCREWFIX.COM
OXFORDSHIRE CC,CHILDREN'S & EDUCATION,40 THE MOORS,FURNITURE,13/12/2023,000009366574784,126.9,THE RANGE
OXFORDSHIRE CC,CUSTOMER AND CULTURE,HARD FM,EDUCATIONAL AND VOCATIONAL TRAINING ,13/12/2023,000009366573472,"2,069.59",BYWATER TRAINING LTD
OXFORDSHIRE CC,CHILDREN'S & EDUCATION,THAME E&A HOME,CATERING,13/12/2023,000009366575062,21.2,PYD TOMMI'S OXFORD
OXFORDSHIRE CC,CHILDREN'S & EDUCATION,THAME E&A HOME,CATERING PROVISIONS,13/12/2023,000009366573510,2,MARTIN MCCOLL
OXFORDSHIRE CC,PUBLIC HEALTH,WITNEY,MATERIALS,13/12/2023,000009366572672,1.49,CARD FACTORY
OXFORDSHIRE CC,ADULTS,CSS - BANBURY,ENTERTAINMENT EXPENSES,13/12/2023,000009366575010,10.4,SPICEBALL LEISURE CENT
OXFORDSHIRE CC,CHILDREN'S & EDUCATION,"	LEAVING CARE SOUTH",ENTERTAINMENT EXPENSES,13/12/2023,000009366572804,24.35,SNAKES AND LADDERS
OXFORDSHIRE CC,CHILDREN'S & EDUCATION,FSP NON-STAFFING - CENTRAL,OTHER TRANSPORT ARRANGEMENTS,13/12/2023,000009366574058,198,SMART AIRPORT TRANSFER
OXFORDSHIRE CC,ADULTS,BUSINESS SUPPORT SERVICE,POSTAGE AND DELIVERY,13/12/2023,000009366574748,9.2,PARCELFORCE WL
OXFORDSHIRE CC,CHILDREN'S & EDUCATION,CHILDREN IN CARE NON-STAFFING - CENTRL 1,MATERIALS,13/12/2023,000009366572818,105.94,WWW.ARGOS.CO.UK
OXFORDSHIRE CC,ADULTS,CSS WANTAGE,MATERIALS,13/12/2023,000009366573846,79.99,AMZNMKTPLACE
OXFORDSHIRE CC,CHILDREN'S & EDUCATION,EYNSHAM,CATERING,13/12/2023,000009366572652,4.9,TESCO PFS 2488
OXFORDSHIRE CC,ADULTS,CSS WANTAGE,CATERING PROVISIONS,13/12/2023,000009366573852,12.68,AMZNMKTPLACE
OXFORDSHIRE CC,ADULTS,CSS WANTAGE,ENTERTAINMENT EXPENSES,13/12/2023,000009366573858,14.6,HOLLYWOOD BOWL
OXFORDSHIRE CC,ADULTS,CSS WITNEY,CATERING PROVISIONS,13/12/2023,000009366573576,63.38,HOME BARGAINS
OXFORDSHIRE CC,CUSTOMER AND CULTURE,BUSINESS INTELLECTUAL PROPERTY CENTRE,"SUPPLIES, STATIONERY AND MATERIALS",13/12/2023,000009366573628,150,EB  STARTUP SHOW THE U
OXFORDSHIRE CC,CHILDREN'S & EDUCATION,KINGFISHER,CATERING PROVISIONS,13/12/2023,000009366572682,100,CS MORRISONS GIFT CARD
OXFORDSHIRE CC,RESOURCES,INCOME TEAM,PAYMENT TO GOVERNMENT DEPARTMENTS,13/12/2023,000009366573516,455,WWW.MONEYCLAIM.GOV
OXFORDSHIRE CC,ADULTS,CSS WALLINGFORD,MATERIALS,13/12/2023,000009366572594,10,AMZNMKTPLACE
OXFORDSHIRE CC,CHILDREN'S & EDUCATION,FSP NON-STAFFING - CENTRAL,PAYMENTS TO TRANSPORT OPERATORS,13/12/2023,000009366574062,422.96,WIZZ AIR
OXFORDSHIRE CC,CHILDREN'S & EDUCATION,EET SERVICE,MATERIALS,13/12/2023,000009366574310,20.71,AMZNMKTPLACE
OXFORDSHIRE CC,ADULTS,CSS - ABINGDON,CATERING PROVISIONS,13/12/2023,000009366575178,5.4,TESCO STORES 2008
OXFORDSHIRE CC,CUSTOMER AND CULTURE,CAMBRIDGE TERRACE,OTHER PREMISES RELATED COSTS,13/12/2023,000009366573490,4.95,CO-OPERATIVE FOOD
OXFORDSHIRE CC,CHILDREN'S & EDUCATION,FAMILY SOLUTIONS PLUS NON-STAFF � SOUTH,PAYMENT TO GOVERNMENT DEPARTMENTS,13/12/2023,000009366574874,58.5,HM PASSPORT OFFICE
OXFORDSHIRE CC,CHILDREN'S & EDUCATION,NRPF & HOMELESSNESS,HIRE OF ACCOMMODATION AND FACILITIES,13/12/2023,000009366574712,98.67,TRAVELODGE
OXFORDSHIRE CC,ENVIRONMENT AND PLACE,FLEET OPERATIONS,ROAD FUND LICENCES AND MOTS,13/12/2023,000009366573216,322.5,DVLA VEHICLE TAX
OXFORDSHIRE CC,ENVIRONMENT AND PLACE,FLEET OPERATIONS,ROAD FUND LICENCES AND MOTS,13/12/2023,000009366573212,322.5,DVLA VEHICLE TAX
OXFORDSHIRE CC,CHILDREN'S & EDUCATION,EYNSHAM,MATERIALS,13/12/2023,000009366574480,16.5,AMZNMKTPLACE
OXFORDSHIRE CC,ADULTS,CSS WANTAGE,"SUPPLIES, STATIONERY AND MATERIALS",13/12/2023,000009366575112,5.16,HOME BARGAINS
OXFORDSHIRE CC,CHILDREN'S & EDUCATION,EET SERVICE,MATERIALS,13/12/2023,000009366574322,21.58,AMZNMKTPLACE
OXFORDSHIRE CC,CHILDREN'S & EDUCATION,"	OCCG GRANT",BIRTHDAY ALLOWANCE,13/12/2023,000009366573100,18,SPORTSDIRECT 218
OXFORDSHIRE CC,CHILDREN'S & EDUCATION,"	LEAVING CARE CITY 1",OTHER TRANSPORT ARRANGEMENTS,13/12/2023,000009366572750,92.62,TRAINLINE
OXFORDSHIRE CC,CUSTOMER AND CULTURE,TRANSPORT GENERAL,ROAD FUND LICENCES AND MOTS,13/12/2023,000009366572856,322.5,DVLA VEHICLE TAX
OXFORDSHIRE CC,CUSTOMER AND CULTURE,LEARNING & ACCESS,MATERIALS,13/12/2023,000009366574886,73.98,AMZNMKTPLACE
OXFORDSHIRE CC,CUSTOMER AND CULTURE,SCHOOLS FM CATERING AREA 2,CATERING PROVISIONS,13/12/2023,000009366573484,4.95,SAINSBURYS S/MKTS
OXFORDSHIRE CC,CHILDREN'S & EDUCATION,"	LEAVING CARE CITY 1",OTHER PREMISES RELATED COSTS,13/12/2023,000009366572822,300,SOHA.CO.UK
OXFORDSHIRE CC,CUSTOMER AND CULTURE,"MARKETING, COMMUNICATIONS & ENGAGEMENT",IT SOFTWARE,13/12/2023,000009366573982,700.5,MAILCHIMP
OXFORDSHIRE CC,ADULTS,CSS WANTAGE,CATERING PROVISIONS,13/12/2023,000009366572584,13.22,SAINSBURYS S/MKTS
OXFORDSHIRE CC,CUSTOMER AND CULTURE,HARD FM,PREMISES REPAIRS,13/12/2023,000009366572736,22.99,WWW.SCREWFIX.COM
OXFORDSHIRE CC,ADULTS,CSS WITNEY,VEHICLE FUEL,13/12/2023,000009366573572,7.2,TESCO PFS 3418
OXFORDSHIRE CC,CHILDREN'S & EDUCATION,SEND CASEWORK TEAM,ADMIN FURNITURE,13/12/2023,000009366573864,164.94,SIMPLY ERGONOMIC LIMIT
OXFORDSHIRE CC,PUBLIC HEALTH,WITNEY,MATERIALS,13/12/2023,000009366572666,14.99,AMZNMKTPLACE
OXFORDSHIRE CC,CHILDREN'S & EDUCATION,EET SERVICE,MATERIALS,13/12/2023,000009366574274,26.4,AMZNMKTPLACE
OXFORDSHIRE CC,CUSTOMER AND CULTURE,UNION STREET FFS,MATERIALS,13/12/2023,000009366575196,16.98,AMZNMKTPLACE
OXFORDSHIRE CC,ADULTS,CSS WALLINGFORD,CATERING PROVISIONS,13/12/2023,000009366572600,15.9,WAITROSE 675
OXFORDSHIRE CC,CUSTOMER AND CULTURE,SCHOOLS FM CATERING AREA 1,CATERING PROVISIONS,13/12/2023,000009366574674,9.75,CO-OPERATIVE FOOD
OXFORDSHIRE CC,CUSTOMER AND CULTURE,UNION STREET FFS,MATERIALS,13/12/2023,000009366575202,20.97,AMZNMKTPLACE
OXFORDSHIRE CC,CHILDREN'S & EDUCATION,EET SERVICE,MATERIALS,13/12/2023,000009366574314,15.73,AMZNMKTPLACE
OXFORDSHIRE CC,CORPORATE CORE,,STATIONERY,13/12/2023,000009366574500,30.32,LYRECO UK LTD
OXFORDSHIRE CC,CORPORATE CORE,,STATIONERY,13/12/2023,000009366574518,21.6,LYRECO UK LTD
OXFORDSHIRE CC,CORPORATE CORE,,STATIONERY,13/12/2023,000009366574508,29.04,LYRECO UK LTD
OXFORDSHIRE CC,CORPORATE CORE,,STATIONERY,13/12/2023,000009366574520,156.31,LYRECO UK LTD
OXFORDSHIRE CC,CORPORATE CORE,,STATIONERY,13/12/2023,000009366574528,46.79,LYRECO UK LTD
OXFORDSHIRE CC,CORPORATE CORE,,STATIONERY,13/12/2023,000009366574494,18.05,LYRECO UK LTD
OXFORDSHIRE CC,CORPORATE CORE,,STATIONERY,13/12/2023,000009366574486,24.89,LYRECO UK LTD
OXFORDSHIRE CC,CHILDREN'S & EDUCATION,CHILDREN IN CARE NON-STAFFING - CENTRL 1,PAYMENTS TO TRANSPORT OPERATORS,13/12/2023,000009366572814,53.79,TRAINLINE
OXFORDSHIRE CC,CUSTOMER AND CULTURE,THAME LIBRARY,CATERING PROVISIONS,13/12/2023,000009366574464,5.6,SAINSBURYS S/MKTS
OXFORDSHIRE CC,ENTERPRISEVC,,CAR LEASING - PRIVATE RENTALS,13/12/2023,000009366574632,812.78,ENTERPRISE RENT-A-CAR
OXFORDSHIRE CC,ENTERPRISEVC,,CAR LEASING - PRIVATE RENTALS,13/12/2023,000009366574630,39.49,ENTERPRISE RENT-A-CAR
OXFORDSHIRE CC,ENTERPRISEVC,,CAR LEASING - PRIVATE RENTALS,13/12/2023,000009366574626,104.08,ENTERPRISE RENT-A-CAR
OXFORDSHIRE CC,ENTERPRISEVC,,CAR LEASING - PRIVATE RENTALS,13/12/2023,000009366574620,160.13,ENTERPRISE RENT-A-CAR
OXFORDSHIRE CC,ENTERPRISEVC,,CAR LEASING - PRIVATE RENTALS,13/12/2023,000009366574614,70.9,ENTERPRISE RENT-A-CAR
OXFORDSHIRE CC,ENTERPRISEVC,,CAR LEASING - PRIVATE RENTALS,13/12/2023,000009366574608,77.98,ENTERPRISE RENT-A-CAR
OXFORDSHIRE CC,ENTERPRISEVC,,CAR LEASING - PRIVATE RENTALS,13/12/2023,000009366574600,77.98,ENTERPRISE RENT-A-CAR
OXFORDSHIRE CC,ENTERPRISEVC,,CAR LEASING - PRIVATE RENTALS,13/12/2023,000009366574592,203.59,ENTERPRISE RENT-A-CAR
OXFORDSHIRE CC,ENTERPRISEVC,,CAR LEASING - PRIVATE RENTALS,13/12/2023,000009366574584,77.35,ENTERPRISE RENT-A-CAR
OXFORDSHIRE CC,ENTERPRISEVC,,CAR LEASING - PRIVATE RENTALS,13/12/2023,000009366574582,113.5,ENTERPRISE RENT-A-CAR
OXFORDSHIRE CC,ENTERPRISEVC,,CAR LEASING - PRIVATE RENTALS,13/12/2023,000009366574576,53,ENTERPRISE RENT-A-CAR
OXFORDSHIRE CC,ENTERPRISEVC,,CAR LEASING - PRIVATE RENTALS,13/12/2023,000009366574572,53,ENTERPRISE RENT-A-CAR
OXFORDSHIRE CC,ENTERPRISEVC,,CAR LEASING - PRIVATE RENTALS,13/12/2023,000009366574568,86.18,ENTERPRISE RENT-A-CAR
OXFORDSHIRE CC,ENTERPRISEVC,,CAR LEASING - PRIVATE RENTALS,13/12/2023,000009366574560,176.38,ENTERPRISE RENT-A-CAR
OXFORDSHIRE CC,ENTERPRISEVC,,CAR LEASING - PRIVATE RENTALS,13/12/2023,000009366574556,195.46,ENTERPRISE RENT-A-CAR
OXFORDSHIRE CC,ENTERPRISEVC,,CAR LEASING - PRIVATE RENTALS,13/12/2023,000009366574544,45.1,ENTERPRISE RENT-A-CAR
OXFORDSHIRE CC,CHILDREN'S & EDUCATION,EET SERVICE,MATERIALS,13/12/2023,000009366574228,26.4,AMZNMKTPLACE
OXFORDSHIRE CC,CHILDREN'S & EDUCATION,EET SERVICE,MATERIALS,13/12/2023,000009366574246,50.32,AMZNMKTPLACE
OXFORDSHIRE CC,ADULTS,CSS - BANBURY,CATERING PROVISIONS,13/12/2023,000009366574938,27.34,TESCO STORES 2064
OXFORDSHIRE CC,CHILDREN'S & EDUCATION,EET SERVICE,MATERIALS,13/12/2023,000009366574250,44.4,AMZNMKTPLACE
OXFORDSHIRE CC,CHILDREN'S & EDUCATION,EET SERVICE,MATERIALS,13/12/2023,000009366574268,22.44,AMZNMKTPLACE
OXFORDSHIRE CC,ADULTS,CSS - BANBURY,CATERING PROVISIONS,13/12/2023,000009366574930,6.8,TESCO STORES 2064
OXFORDSHIRE CC,CHILDREN'S & EDUCATION,EET SERVICE,MATERIALS,13/12/2023,000009366574224,26.4,AMZNMKTPLACE
OXFORDSHIRE CC,CHILDREN'S & EDUCATION,EET SERVICE,MATERIALS,13/12/2023,000009366574260,22.44,AMZNMKTPLACE
OXFORDSHIRE CC,ADULTS,CSS BICESTER,CATERING PROVISIONS,13/12/2023,000009366572784,167.73,TESCO STORES 2162
OXFORDSHIRE CC,CHILDREN'S & EDUCATION,EET SERVICE,MATERIALS,13/12/2023,000009366574278,50.32,AMZNMKTPLACE
OXFORDSHIRE CC,CHILDREN'S & EDUCATION,EET SERVICE,MATERIALS,13/12/2023,000009366574204,21.36,AMZNMKTPLACE
OXFORDSHIRE CC,CHILDREN'S & EDUCATION,EYNSHAM,CATERING PROVISIONS,13/12/2023,000009366572644,171.81,TESCO STORES 2008
OXFORDSHIRE CC,CUSTOMER AND CULTURE,COMMUNITY PARTNERSHIP TEAM,CATERING PROVISIONS,13/12/2023,000009366572924,123.84,TESCO STORES 2008
OXFORDSHIRE CC,CHILDREN'S & EDUCATION,40 THE MOORS,CATERING,13/12/2023,000009366573990,137.5,SAINSBURYS.CO.UK
OXFORDSHIRE CC,CHILDREN'S & EDUCATION,EET SERVICE,MATERIALS,13/12/2023,000009366574178,21.36,AMZNMKTPLACE
OXFORDSHIRE CC,CHILDREN'S & EDUCATION,EET SERVICE,MATERIALS,13/12/2023,000009366574172,29.04,AMZNMKTPLACE
OXFORDSHIRE CC,CHILDREN'S & EDUCATION,EET SERVICE,MATERIALS,13/12/2023,000009366574184,21.58,AMZNMKTPLACE
OXFORDSHIRE CC,CHILDREN'S & EDUCATION,EET SERVICE,MATERIALS,13/12/2023,000009366574238,187.74,AMZNMKTPLACE
OXFORDSHIRE CC,CHILDREN'S & EDUCATION,EET SERVICE,MATERIALS,13/12/2023,000009366574198,26.39,AMZNMKTPLACE
OXFORDSHIRE CC,CHILDREN'S & EDUCATION,EET SERVICE,MATERIALS,13/12/2023,000009366574134,21.36,AMZNMKTPLACE
OXFORDSHIRE CC,CHILDREN'S & EDUCATION,EET SERVICE,MATERIALS,13/12/2023,000009366574234,26.39,AMZNMKTPLACE
OXFORDSHIRE CC,CHILDREN'S & EDUCATION,EET SERVICE,MATERIALS,13/12/2023,000009366574282,21.36,AMZNMKTPLACE
OXFORDSHIRE CC,CHILDREN'S & EDUCATION,EET SERVICE,MATERIALS,13/12/2023,000009366574146,21.58,AMZNMKTPLACE
OXFORDSHIRE CC,CHILDREN'S & EDUCATION,EET SERVICE,MATERIALS,13/12/2023,000009366574242,29.04,AMZNMKTPLACE
OXFORDSHIRE CC,CHILDREN'S & EDUCATION,EET SERVICE,MATERIALS,13/12/2023,000009366574128,21.36,AMZNMKTPLACE
OXFORDSHIRE CC,CHILDREN'S & EDUCATION,EET SERVICE,MATERIALS,13/12/2023,000009366574264,21.58,AMZNMKTPLACE
OXFORDSHIRE CC,CHILDREN'S & EDUCATION,EET SERVICE,MATERIALS,13/12/2023,000009366574140,29.04,AMZNMKTPLACE
OXFORDSHIRE CC,CHILDREN'S & EDUCATION,EET SERVICE,MATERIALS,13/12/2023,000009366574214,21.36,AMZNMKTPLACE
OXFORDSHIRE CC,CHILDREN'S & EDUCATION,EET SERVICE,MATERIALS,13/12/2023,000009366574188,21.58,AMZNMKTPLACE
OXFORDSHIRE CC,CHILDREN'S & EDUCATION,EET SERVICE,MATERIALS,13/12/2023,000009366574166,29.04,AMZNMKTPLACE
OXFORDSHIRE CC,CHILDREN'S & EDUCATION,EET SERVICE,MATERIALS,13/12/2023,000009366574194,21.58,AMZNMKTPLACE
OXFORDSHIRE CC,CHILDREN'S & EDUCATION,EET SERVICE,MATERIALS,13/12/2023,000009366574208,21.58,AMZNMKTPLACE
OXFORDSHIRE CC,ADULTS,CSS - BANBURY,MATERIALS,13/12/2023,000009366575034,14.99,AMZNMKTPLACE
OXFORDSHIRE CC,CUSTOMER AND CULTURE,HOLTON SITE,CATERING PROVISIONS,13/12/2023,000009366572862,-6.25,MILK AND MORE
OXFORDSHIRE CC,CORPORATE CORE,,STATIONERY,13/12/2023,000009366574534,-33.66,LYRECO UK LTD
OXFORDSHIRE CC,ENVIRONMENT AND PLACE,NAT TRAILS GENERAL,CATERING PROVISIONS,13/12/2023,000009366573526,1,CO OPERATIVE FOOD
OXFORDSHIRE CC,CUSTOMER AND CULTURE,CENTRAL LIBRARY,MATERIALS,13/12/2023,000009366574760,9.72,AMZNMKTPLACE
OXFORDSHIRE CC,CHILDREN'S & EDUCATION,THAME E&A HOME,MATERIALS,13/12/2023,000009366573292,12.99,SPORTSDIRECT 218
OXFORDSHIRE CC,CHILDREN'S & EDUCATION,WITNEY,ENTERTAINMENT EXPENSES,13/12/2023,000009366573404,21.75,TM  TICKETMASTERUK
OXFORDSHIRE CC,CUSTOMER AND CULTURE,UNION STREET FFS,MATERIALS,13/12/2023,000009366575206,7.76,AMZNMKTPLACE
OXFORDSHIRE CC,CHILDREN'S & EDUCATION,THAME E&A HOME,CATERING,13/12/2023,000009366573298,15.76,MCDONALDS
OXFORDSHIRE CC,ADULTS,CSS - OXFORD,CATERING PROVISIONS,13/12/2023,000009366572778,41.05,ALDI STORES 775-142
OXFORDSHIRE CC,CUSTOMER AND CULTURE,SCHOOLS FM CATERING AREA 4,CATERING PROVISIONS,13/12/2023,000009366573384,12.1,ALDI STORES
OXFORDSHIRE CC,ADULTS,CSS - OXFORD,CATERING PROVISIONS,13/12/2023,000009366572952,21.99,ALDI STORES 775-142
OXFORDSHIRE CC,ADULTS,CSS - ABINGDON,CATERING PROVISIONS,13/12/2023,000009366575172,18.34,ALDI STORES
OXFORDSHIRE CC,ADULTS,CSS - OXFORD,CATERING PROVISIONS,13/12/2023,000009366572772,0.65,ALDI STORES 775-142
OXFORDSHIRE CC,CHILDREN'S & EDUCATION,THAME E&A HOME,MATERIALS,12/12/2023,000009361817516,15.79,AMZNMKTPLACE
OXFORDSHIRE CC,CUSTOMER AND CULTURE,"MARKETING, COMMUNICATIONS & ENGAGEMENT","PUBLICITY, PROMOTIONS AND ADVERTISEMENT",12/12/2023,000009361817954,10.97,SNAP INC SNAP SNAP ADS
OXFORDSHIRE CC,CHILDREN'S & EDUCATION,"	OCCG GRANT",MATERIALS,12/12/2023,000009361818420,19.99,ARGOS BANBURY INSI
OXFORDSHIRE CC,CHILDREN'S & EDUCATION,EYNSHAM,EQUIPMENT,12/12/2023,000009361817234,7.47,SPAR EYNSHAM
OXFORDSHIRE CC,CUSTOMER AND CULTURE,"MARKETING, COMMUNICATIONS & ENGAGEMENT","PUBLICITY, PROMOTIONS AND ADVERTISEMENT",12/12/2023,000009361817950,500,FACEBK  J4NAHWX8Z2
OXFORDSHIRE CC,RESOURCES,EYNSHAM,CATERING PROVISIONS,12/12/2023,000009361818630,11.85,CO-OPERATIVE FOOD
OXFORDSHIRE CC,CHILDREN'S & EDUCATION,CHILDREN IN CARE NON-STAFFING - CENTRL 2,OTHER TRANSPORT ARRANGEMENTS,12/12/2023,000009361818438,6,OXFORDBUS.CO.UK
OXFORDSHIRE CC,CHILDREN'S & EDUCATION,THAME E&A HOME,CATERING,12/12/2023,000009361817358,4.9,COSTA TEMPLARS
OXFORDSHIRE CC,CUSTOMER AND CULTURE,LIBRARY COLLECTIONS,"BOOKS, DVDS AND CDS",12/12/2023,000009361817246,298.67,OVERDRIVE DIST
OXFORDSHIRE CC,CUSTOMER AND CULTURE,LIBRARY COLLECTIONS,"BOOKS, DVDS AND CDS",12/12/2023,000009361817254,534.68,OVERDRIVE DIST
OXFORDSHIRE CC,ADULTS,PAUSE PROGRAMME,OTHER TRANSPORT ARRANGEMENTS,12/12/2023,000009361817202,2,OXFORDBUS.CO.UK
OXFORDSHIRE CC,ADULTS,PAUSE PROGRAMME,OTHER TRANSPORT ARRANGEMENTS,12/12/2023,000009361817196,2,OXFORDBUS.CO.UK
OXFORDSHIRE CC,CHILDREN'S & EDUCATION,"	MARLBOROUGH",PURCHASE OF IT EQUIPMENT,12/12/2023,000009361818556,9.99,AMZNMKTPLACE
OXFORDSHIRE CC,CUSTOMER AND CULTURE,RFID PROJECT,GENERAL REFUSE COLLECTION AND DISPOSAL,12/12/2023,000009361818228,438,M & M SKIP HIRE
OXFORDSHIRE CC,CHILDREN'S & EDUCATION,DIDCOT MOVE-ON HOME,CATERING PROVISIONS,12/12/2023,000009361817328,6.44,SAINSBURYS S/MKTS
OXFORDSHIRE CC,CUSTOMER AND CULTURE,DIDOCT LIBRARY,PURCHASE OF IT EQUIPMENT,12/12/2023,000009361817456,9.69,AMZNMKTPLACE
OXFORDSHIRE CC,ADULTS,PAUSE PROGRAMME,CATERING PROVISIONS,12/12/2023,000009361817206,9.16,DELTEYS
OXFORDSHIRE CC,CHILDREN'S & EDUCATION,"	LEAVING CARE SOUTH",OTHER PREMISES RELATED COSTS,12/12/2023,000009361816976,242.61,SOHA.CO.UK
OXFORDSHIRE CC,CHILDREN'S & EDUCATION,"	RESIDENTIAL STRATEGY",CATERING PROVISIONS,12/12/2023,000009361818062,14.5,MARKS&SPENCER PLC
OXFORDSHIRE CC,CHILDREN'S & EDUCATION,FAMILY SOLUTIONS PLUS NON-STAFF - NORTH,PAYMENT TO GOVERNMENT DEPARTMENTS,12/12/2023,000009361818178,11,GEN REGISTER OFFICE
OXFORDSHIRE CC,CHILDREN'S & EDUCATION,PAUSE PROGRAMME,CATERING PROVISIONS,12/12/2023,000009361818664,1.69,B&M 514 - DICOT
OXFORDSHIRE CC,CHILDREN'S & EDUCATION,PAUSE PROGRAMME,CATERING PROVISIONS,12/12/2023,000009361818658,19.75,TESCO STORES 2008
OXFORDSHIRE CC,CHILDREN'S & EDUCATION,WITNEY,PAYMENTS TO TRANSPORT OPERATORS,12/12/2023,000009361818242,132.5,WWW.GWR.COM
OXFORDSHIRE CC,RESOURCES,INCOME TEAM,PAYMENT TO GOVERNMENT DEPARTMENTS,12/12/2023,000009361817572,455,WWW.MONEYCLAIM.GOV
OXFORDSHIRE CC,ADULTS,CSS WITNEY,CATERING PROVISIONS,12/12/2023,000009361817612,4.15,SAINSBURYS S/MKTS
OXFORDSHIRE CC,CHILDREN'S & EDUCATION,UASC 16&17,CATERING,12/12/2023,000009361817224,13.15,CO-OPERATIVE FOOD
OXFORDSHIRE CC,CUSTOMER AND CULTURE,HARD FM,VEHICLE - HIRE CHARGES,12/12/2023,000009361817320,252,2 COUSINS POWERED ACCE
OXFORDSHIRE CC,CUSTOMER AND CULTURE,HARD FM,VEHICLE - HIRE CHARGES,12/12/2023,000009361817314,471,2 COUSINS POWERED ACCE
OXFORDSHIRE CC,ADULTS,INCOME TEAM,PAYMENT TO GOVERNMENT DEPARTMENTS,12/12/2023,000009361817148,1.5,FIND A WILL
OXFORDSHIRE CC,ADULTS,FPT SOUTH/VALE,FURNITURE,12/12/2023,000009361818650,129.99,SMYTHS TOYS
OXFORDSHIRE CC,ADULTS,PAUSE PROGRAMME,CATERING PROVISIONS,12/12/2023,000009361817214,24,ICELAND FOODS
OXFORDSHIRE CC,CHILDREN'S & EDUCATION,PAUSE PROGRAMME,CATERING,12/12/2023,000009361817522,7.55,TAYLORS WOODSTOCK ROAD
OXFORDSHIRE CC,ENVIRONMENT AND PLACE,THE RIDGEWAY,CATERING,12/12/2023,000009361817580,8,DAISYCHAIN CAFE AND BI
OXFORDSHIRE CC,ADULTS,CSS WANTAGE,CATERING PROVISIONS,12/12/2023,000009361818562,9.6,TESCO STORES 5429
OXFORDSHIRE CC,ENVIRONMENT AND PLACE,THE RIDGEWAY,CATERING,12/12/2023,000009361817576,2.75,DAISYCHAIN CAFE AND BI
OXFORDSHIRE CC,ADULTS,PAUSE PROGRAMME,CATERING PROVISIONS,12/12/2023,000009361817218,19.65,TESCO STORES 2994
OXFORDSHIRE CC,CHILDREN'S & EDUCATION,THAME E&A HOME,MATERIALS,12/12/2023,000009361817504,2.95,AMAZON.CO.UK 7W57A4D35
OXFORDSHIRE CC,ADULTS,PAUSE PROGRAMME,CATERING PROVISIONS,12/12/2023,000009361817220,69.83,LIDL GB OXFORD
OXFORDSHIRE CC,ADULTS,PAUSE PROGRAMME,CATERING PROVISIONS,12/12/2023,000009361817220,3.64,LIDL GB OXFORD
OXFORDSHIRE CC,CHILDREN'S & EDUCATION,FAMILY SOLUTIONS PLUS NON-STAFF - NORTH,PAYMENTS TO TRANSPORT OPERATORS,12/12/2023,000009361818182,16.8,TRAINLINE
OXFORDSHIRE CC,ADULTS,CSS WANTAGE,MATERIALS,12/12/2023,000009361817822,62.96,AMZNMKTPLACE
OXFORDSHIRE CC,ADULTS,INCOME TEAM,PAYMENT TO GOVERNMENT DEPARTMENTS,12/12/2023,000009361817140,1.5,FIND A WILL
OXFORDSHIRE CC,ENVIRONMENT AND PLACE,FLEET COSTS,VEHICLE - HIRE CHARGES,12/12/2023,000009361816952,85.99,AMZNMKTPLACE
OXFORDSHIRE CC,CHILDREN'S & EDUCATION,40 THE MOORS,MATERIALS,12/12/2023,000009361817960,10.66,ARGOS KIDLINGTON INSID
OXFORDSHIRE CC,ADULTS,CSS WANTAGE,CATERING PROVISIONS,12/12/2023,000009361817814,13.99,AMZNMKTPLACE
OXFORDSHIRE CC,ADULTS,CSS - BANBURY,MATERIALS,12/12/2023,000009361818498,19.96,AMZNMKTPLACE
OXFORDSHIRE CC,CHILDREN'S & EDUCATION,NRPF & HOMELESSNESS,OTHER SERVICES,12/12/2023,000009361818364,300,BKG HOTEL AT BOOKING.C
OXFORDSHIRE CC,CHILDREN'S & EDUCATION,NRPF & HOMELESSNESS,OTHER SERVICES,12/12/2023,000009361818360,470,BKG HOTEL AT BOOKING.C
OXFORDSHIRE CC,ADULTS,CSS WANTAGE,CATERING PROVISIONS,12/12/2023,000009361817820,19.95,AMZNMKTPLACE
OXFORDSHIRE CC,CHILDREN'S & EDUCATION,NRPF & HOMELESSNESS,OTHER SERVICES,12/12/2023,000009361818372,470,BKG HOTEL AT BOOKING.C
OXFORDSHIRE CC,ENVIRONMENT AND ECONOMY,"	FLEET OPERATIONS",ROAD FUND LICENCES AND MOTS,12/12/2023,000009361818250,242.5,DVLA VEHICLE TAX
OXFORDSHIRE CC,CHILDREN'S & EDUCATION,NRPF & HOMELESSNESS,OTHER SERVICES,12/12/2023,000009361818370,500,BKG HOTEL AT BOOKING.C
OXFORDSHIRE CC,ADULTS,CSS WALLINGFORD,MATERIALS,12/12/2023,000009361816816,20,AMZNMKTPLACE
OXFORDSHIRE CC,CHILDREN'S & EDUCATION,THAME E&A HOME,MATERIALS,12/12/2023,000009361817510,5.98,AMZNMKTPLACE
OXFORDSHIRE CC,ADULTS,CSS WALLINGFORD,MATERIALS,12/12/2023,000009361816824,12.99,AMZNMKTPLACE
OXFORDSHIRE CC,CHILDREN'S & EDUCATION,EET SERVICE,MATERIALS,12/12/2023,000009361818042,20.25,AMZNMKTPLACE
OXFORDSHIRE CC,CUSTOMER AND CULTURE,HARD FM,OTHER TRANSPORT ARRANGEMENTS,12/12/2023,000009361816900,1.95,NCP BANBURY MARLBOROUG
OXFORDSHIRE CC,CHILDREN'S & EDUCATION,CHILDREN IN CARE NON-STAFFING - SOUTH,OTHER EXPENSES,12/12/2023,000009361818442,100,ASDA STORES LTD
OXFORDSHIRE CC,CUSTOMER AND CULTURE,LIBRARY COLLECTIONS,MATERIALS,12/12/2023,000009361817688,16.1,HAMPSHIRE COUNTY COUNC
OXFORDSHIRE CC,CUSTOMER AND CULTURE,BLACKBIRD LEYS LIB,SECURITY COSTS,12/12/2023,000009361818510,168.74,B M A VARSITY LTD
OXFORDSHIRE CC,CUSTOMER AND CULTURE,WESTGATE SITE,LICENCES,12/12/2023,000009361817694,349.34,PPL PRS LTD
OXFORDSHIRE CC,CHILDREN'S & EDUCATION,THAME E&A HOME,MATERIALS,12/12/2023,000009361817498,8.99,AMZNMKTPLACE
OXFORDSHIRE CC,CUSTOMER AND CULTURE,MUSEUMS COLLECTIONS,STATIONERY,12/12/2023,000009361818430,5.99,AMZNMKTPLACE
OXFORDSHIRE CC,CUSTOMER AND CULTURE,REFUSE,GENERAL REFUSE COLLECTION AND DISPOSAL,12/12/2023,000009361817872,398.4,ZEROWASTE TERRACYCLE
OXFORDSHIRE CC,CUSTOMER AND CULTURE,HARD FM,OTHER TRANSPORT ARRANGEMENTS,12/12/2023,000009361816904,1.95,NCP BANBURY MARLBOROUG
OXFORDSHIRE CC,RESOURCES,SCHOOLS FM CATERING AREA 2,CATERING PROVISIONS,12/12/2023,000009361818206,7.3,TESCO STORES 4377
OXFORDSHIRE CC,CORPORATE CORE,,STATIONERY,12/12/2023,000009361818170,30.35,LYRECO UK LTD
OXFORDSHIRE CC,CORPORATE CORE,,STATIONERY,12/12/2023,000009361818162,67.17,LYRECO UK LTD
OXFORDSHIRE CC,CHILDREN'S & EDUCATION,FAMILY SOLUTIONS PLUS NON-STAFF � SOUTH,PAYMENTS TO TRANSPORT OPERATORS,12/12/2023,000009361818328,83.75,TRAINLINE
OXFORDSHIRE CC,CHILDREN'S & EDUCATION,CHILDREN IN CARE NON-STAFFING - CENTRL 2,PAYMENTS TO TRANSPORT OPERATORS,12/12/2023,000009361816972,15.07,TRAINLINE
OXFORDSHIRE CC,CHILDREN'S & EDUCATION,FAMILY HELP NORTH,CATERING PROVISIONS,12/12/2023,000009361818184,14.84,WAITROSE 142
OXFORDSHIRE CC,ADULTS,CSS WALLINGFORD,CATERING PROVISIONS,12/12/2023,000009361816830,7.8,WAITROSE 675
OXFORDSHIRE CC,ADULTS,CSS WALLINGFORD,CATERING PROVISIONS,12/12/2023,000009361816830,12.9,WAITROSE 675
OXFORDSHIRE CC,CUSTOMER AND CULTURE,THAME LIBRARY,"NEWSPAPERS, PERIODICALS AND PUBLICATIONS",12/12/2023,000009361818104,5.6,SAINSBURYS S/MKTS
OXFORDSHIRE CC,CUSTOMER AND CULTURE,SCHOOLS FM CATERING AREA 1,CATERING PROVISIONS,12/12/2023,000009361818258,48.44,SAINSBURYS S/MKTS
OXFORDSHIRE CC,CHILDREN'S & EDUCATION,"	BUSINESS DEVELOPMENT",CATERING PROVISIONS,12/12/2023,000009361817536,55.35,MARKS&SPENCER PLC
OXFORDSHIRE CC,CHILDREN'S & EDUCATION,SERVICES/SUPPLIES,PAYMENTS TO VOLUNTARY BODIES,12/12/2023,000009361818344,10,PAYPAL  DOWNSSYNDRO
OXFORDSHIRE CC,CHILDREN'S & EDUCATION,BANBURY CC,CATERING PROVISIONS,12/12/2023,000009361818490,4.35,TESCO STORES 2064
OXFORDSHIRE CC,ADULTS,CSS - ABINGDON,CATERING PROVISIONS,12/12/2023,000009361816852,58.53,TESCO STORES 2008
OXFORDSHIRE CC,CHILDREN'S & EDUCATION,NTS UASC AGENCY,ADMIN FURNITURE,12/12/2023,000009361818212,86.99,VIKING
OXFORDSHIRE CC,CHILDREN'S & EDUCATION,THAME E&A HOME,CATERING PROVISIONS,12/12/2023,000009361817054,228.15,TESCO STORES 2038
OXFORDSHIRE CC,ADULTS,CSS - BANBURY,CATERING PROVISIONS,12/12/2023,000009361818452,211.1,SAINSBURYS.CO.UK
OXFORDSHIRE CC,ADULTS,CSS WALLINGFORD,CATERING PROVISIONS,12/12/2023,000009361816846,1,WAITROSE 675
OXFORDSHIRE CC,CHILDREN'S & EDUCATION,EYNSHAM,CLEANING MATERIALS,12/12/2023,000009361818332,0.99,SPAR EYNSHAM
OXFORDSHIRE CC,CHILDREN'S & EDUCATION,NTS UASC AGENCY,ADMIN FURNITURE,12/12/2023,000009361818220,-28.76,VIKING
OXFORDSHIRE CC,CHILDREN'S & EDUCATION,THAME E&A HOME,CATERING PROVISIONS,12/12/2023,000009361817350,5.6,THAME BP SF CONNECT
OXFORDSHIRE CC,CUSTOMER AND CULTURE,HEADINGTON LIBRARY,MATERIALS,12/12/2023,000009361817648,5.99,AMZNMKTPLACE
OXFORDSHIRE CC,CUSTOMER AND CULTURE,HEADINGTON LIBRARY,MATERIALS,12/12/2023,000009361817654,7.99,AMZNMKTPLACE
OXFORDSHIRE CC,CHILDREN'S & EDUCATION,"	LEAVING CARE NORTH",CLOTHING AND UNIFORMS,12/12/2023,000009361818190,-36,NEXT DIRECTORY
OXFORDSHIRE CC,CHILDREN'S & EDUCATION,"	MALTFIELD HOUSE",MATERIALS,11/12/2023,000009353546480,86.96,AMZNMKTPLACE
OXFORDSHIRE CC,CUSTOMER AND CULTURE,"MARKETING, COMMUNICATIONS & ENGAGEMENT","PUBLICITY, PROMOTIONS AND ADVERTISEMENT",11/12/2023,000009353546376,12.67,SNAP INC SNAP SNAP ADS
OXFORDSHIRE CC,CHILDREN'S & EDUCATION,THAME E&A HOME,MATERIALS,11/12/2023,000009353546032,7.99,TESCO SUBSCRIPTION
OXFORDSHIRE CC,CHILDREN'S & EDUCATION,THAME E&A HOME,DAY ACTIVITIES,11/12/2023,000009353546248,9.75,MARTIN MCCOLL
OXFORDSHIRE CC,CHILDREN'S & EDUCATION,THAME E&A HOME,OTHER TRANSPORT ARRANGEMENTS,11/12/2023,000009353546198,2.1,PARKING-AQUA VALE
OXFORDSHIRE CC,CHILDREN'S & EDUCATION,"	OCCG GRANT",MATERIALS,11/12/2023,000009353546146,20,TIMPSON LTD
OXFORDSHIRE CC,CHILDREN'S & EDUCATION,THAME E&A HOME,RESIDENTIAL ACTIVITIES,11/12/2023,000009353546196,27,WWW.EVERYONEACTIVE.COM
OXFORDSHIRE CC,CHILDREN'S & EDUCATION,EYNSHAM,CATERING PROVISIONS,11/12/2023,000009353546564,3.99,HOME BARGAINS
OXFORDSHIRE CC,CHILDREN'S & EDUCATION,DIDCOT MOVE-ON HOME,CATERING PROVISIONS,11/12/2023,000009353546264,23.45,SAINSBURYS S/MKTS
OXFORDSHIRE CC,CHILDREN'S & EDUCATION,40 THE MOORS,CATERING PROVISIONS,11/12/2023,000009353546368,62.56,HOME BARGAINS
OXFORDSHIRE CC,CHILDREN'S & EDUCATION,EYNSHAM,CATERING PROVISIONS,11/12/2023,000009353546548,3.3,TESCO STORES 2008
OXFORDSHIRE CC,ADULTS,CSS WANTAGE,MATERIALS,11/12/2023,000009353545960,84.95,AMZNMKTPLACE
OXFORDSHIRE CC,CUSTOMER AND CULTURE,BICESTER LIBRARY,CATERING EQUIPMENT,11/12/2023,000009353546456,14.98,AMZNMKTPLACE
OXFORDSHIRE CC,CHILDREN'S & EDUCATION,"	MALTFIELD HOUSE",CATERING PROVISIONS,11/12/2023,000009353546482,15.97,SAINSBURYS S/MKTS
OXFORDSHIRE CC,ADULTS,CSS WITNEY,MATERIALS,11/12/2023,000009353545950,6.74,AMZNMKTPLACE
OXFORDSHIRE CC,CUSTOMER AND CULTURE,HEADINGTON LIBRARY,MATERIALS,11/12/2023,000009353546288,8.99,AMZNMKTPLACE
OXFORDSHIRE CC,CHILDREN'S & EDUCATION,CHILDREN IN CARE COUNCIL,CATERING PROVISIONS,11/12/2023,000009353546012,5.25,SAINSBURYS S/MKTS
OXFORDSHIRE CC,CHILDREN'S & EDUCATION,"	LEAVING CARE NORTH",MATERIALS,11/12/2023,000009353546502,20.99,PANDORA JEWELLERY UK L
OXFORDSHIRE CC,CUSTOMER AND CULTURE,"MARKETING, COMMUNICATIONS & ENGAGEMENT","PUBLICITY, PROMOTIONS AND ADVERTISEMENT",11/12/2023,000009353546374,11.69,SNAP INC SNAP SNAP ADS
OXFORDSHIRE CC,CUSTOMER AND CULTURE,HEADINGTON LIBRARY,MATERIALS,11/12/2023,000009353546290,24.99,AMZNMKTPLACE
OXFORDSHIRE CC,CHILDREN'S & EDUCATION,EYNSHAM,CATERING PROVISIONS,11/12/2023,000009353546422,8.75,MAYFIELDEGGS
OXFORDSHIRE CC,CHILDREN'S & EDUCATION,NTS UASC AGENCY,MATERIALS,11/12/2023,000009353546508,38.97,AMZNMKTPLACE
OXFORDSHIRE CC,CHILDREN'S & EDUCATION,NTS UASC AGENCY,CLOTHING AND UNIFORMS,11/12/2023,000009353546510,12,SHIASHOPPING.NET
OXFORDSHIRE CC,CHILDREN'S & EDUCATION,WITNEY,ENTERTAINMENT EXPENSES,11/12/2023,000009353546516,21.2,TM  TICKETMASTERUK
OXFORDSHIRE CC,CHILDREN'S & EDUCATION,WITNEY,ENTERTAINMENT EXPENSES,11/12/2023,000009353546284,81.15,TM  TICKETMASTERUK
OXFORDSHIRE CC,CHILDREN'S & EDUCATION,CHILDREN IN CARE COUNCIL,CATERING PROVISIONS,11/12/2023,000009353546006,25.55,TESCO PFS 2488
OXFORDSHIRE CC,CHILDREN'S & EDUCATION,"	OCCG GRANT",HARDWARE AND CROCKERY,11/12/2023,000009353546144,50.75,ASDA STORE 4442
OXFORDSHIRE CC,CHILDREN'S & EDUCATION,WITNEY,CATERING PROVISIONS,11/12/2023,000009353546514,28.29,SAINSBURYS S/MKTS
OXFORDSHIRE CC,CHILDREN'S & EDUCATION,THAME E&A HOME,CATERING PROVISIONS,11/12/2023,000009353546194,16.95,SAINSBURYS S/MKTS
OXFORDSHIRE CC,CHILDREN'S & EDUCATION,"	LEAVING CARE NORTH",STAFF SUBSISTENCE,11/12/2023,000009353546494,13.05,ESSO STAFFORD MWSA
OXFORDSHIRE CC,CHILDREN'S & EDUCATION,EYNSHAM,CATERING PROVISIONS,11/12/2023,000009353546554,4.4,CO-OPERATIVE FOOD
OXFORDSHIRE CC,CHILDREN'S & EDUCATION,DIDCOT MOVE-ON HOME,CATERING PROVISIONS,11/12/2023,000009353546182,12.3,SAINSBURYS S/MKTS
OXFORDSHIRE CC,CHILDREN'S & EDUCATION,40 THE MOORS,CATERING PROVISIONS,11/12/2023,000009353546562,9.7,SAINSBURYS S/MKTS
OXFORDSHIRE CC,CHILDREN'S & EDUCATION,"	OCCG GRANT",SUBSCRIPTIONS,11/12/2023,000009353546524,7.99,PUREGYM LIMITED
OXFORDSHIRE CC,CHILDREN'S & EDUCATION,THAME E&A HOME,MATERIALS,11/12/2023,000009353546258,9.29,AMZNMKTPLACE
OXFORDSHIRE CC,CHILDREN'S & EDUCATION,"	OCCG GRANT",SUBSCRIPTIONS,11/12/2023,000009353546522,7.99,PUREGYM LIMITED
OXFORDSHIRE CC,CHILDREN'S & EDUCATION,UASC POST 18,RESIDENTIAL ACTIVITIES,11/12/2023,000009353546388,24.99,BUZZ GYM
OXFORDSHIRE CC,CHILDREN'S & EDUCATION,THAME E&A HOME,HIRED AND CONTRACTED SERVICES,11/12/2023,000009353546192,27.5,THE CUTTING ROOMS
OXFORDSHIRE CC,CHILDREN'S & EDUCATION,CHILDREN IN CARE COUNCIL,CATERING PROVISIONS,11/12/2023,000009353546008,14,SAINSBURYS S/MKTS
OXFORDSHIRE CC,CHILDREN'S & EDUCATION,CHILDREN IN CARE COUNCIL,CATERING PROVISIONS,11/12/2023,000009353546010,38.6,SAINSBURYS S/MKTS
OXFORDSHIRE CC,ADULTS,EDT,CATERING PROVISIONS,11/12/2023,000009353546328,15.5,TESCO STORES 2990
OXFORDSHIRE CC,CUSTOMER AND CULTURE,OPS MGR LIB NETWORK,"PUBLICITY, PROMOTIONS AND ADVERTISEMENT",11/12/2023,000009353546420,253.19,HELLOPRINT UNITED KING
OXFORDSHIRE CC,CUSTOMER AND CULTURE,HARD FM,VEHICLES AND PLANT - REPAIRS AND MAIN,11/12/2023,000009353546246,44.47,HALFORDS 0988
OXFORDSHIRE CC,CUSTOMER AND CULTURE,BICESTER LIBRARY,CATERING EQUIPMENT,11/12/2023,000009353546454,16.49,AMZNMKTPLACE
OXFORDSHIRE CC,CHILDREN'S & EDUCATION,FAMILY SOLUTIONS PLUS NON-STAFF - NORTH,CATERING PROVISIONS,11/12/2023,000009353546608,1.98,HOME BARGAINS BANBURY
OXFORDSHIRE CC,CUSTOMER AND CULTURE,BARTON COMMUNITY LIBRARY,MATERIALS,11/12/2023,000009353546286,12.99,AMZNMKTPLACE
OXFORDSHIRE CC,CHILDREN'S & EDUCATION,FAMILY SOLUTIONS PLUS NON-STAFF - NORTH,CATERING PROVISIONS,11/12/2023,000009353546606,5,TESCO STORES 2064
OXFORDSHIRE CC,CHILDREN'S & EDUCATION,FAMILY HELP NORTH,CATERING PROVISIONS,11/12/2023,000009353546604,6,TESCO STORES 2064
OXFORDSHIRE CC,CUSTOMER AND CULTURE,THAME LIBRARY,"NEWSPAPERS, PERIODICALS AND PUBLICATIONS",11/12/2023,000009353546466,7.6,SAINSBURYS S/MKTS
OXFORDSHIRE CC,CUSTOMER AND CULTURE,BICESTER LIBRARY,"NEWSPAPERS, PERIODICALS AND PUBLICATIONS",11/12/2023,000009353546452,79,BICESTER LOCAL
OXFORDSHIRE CC,CHILDREN'S & EDUCATION,"	LEAVING CARE NORTH",CATERING PROVISIONS,11/12/2023,000009353546500,29.94,ETSY.COM ABLFINE
OXFORDSHIRE CC,CUSTOMER AND CULTURE,"MARKETING, COMMUNICATIONS & ENGAGEMENT","PUBLICITY, PROMOTIONS AND ADVERTISEMENT",11/12/2023,000009353546372,10.57,SNAP INC SNAP SNAP ADS
OXFORDSHIRE CC,CHILDREN'S & EDUCATION,FAMILY SOLUTIONS PLUS NON-STAFF - NORTH,PAYMENTS TO TRANSPORT OPERATORS,11/12/2023,000009353546520,-15,TRAINLINE
OXFORDSHIRE CC,CHILDREN'S & EDUCATION,THAME E&A HOME,MATERIALS,11/12/2023,000009353546610,-99,WWW.ARGOS.CO.UK
OXFORDSHIRE CC,CHILDREN'S & EDUCATION,"	OCCG GRANT",CATERING,11/12/2023,000009353546150,7.76,MCDONALDS
OXFORDSHIRE CC,CHILDREN'S & EDUCATION,"	OCCG GRANT",STAFF AND VOLUNTEER TRAVEL EXPENSES,11/12/2023,000009353546148,2,SIP CARS PARKS (1) LIM
OXFORDSHIRE CC,CHILDREN'S & EDUCATION,THAME E&A HOME,ENTERTAINMENT EXPENSES,11/12/2023,000009353546222,13.25,RUSH HIGH WYCOMBE
OXFORDSHIRE CC,CHILDREN'S & EDUCATION,THAME E&A HOME,VEHICLE FUEL,11/12/2023,000009353546030,11.01,TESCO PFS 4267
OXFORDSHIRE CC,CHILDREN'S & EDUCATION,THAME E&A HOME,ENTERTAINMENT EXPENSES,11/12/2023,000009353546220,61.3,RUSH HIGH WYCOMBE
OXFORDSHIRE CC,CHILDREN'S & EDUCATION,NTS UASC AGENCY,HARDWARE AND CROCKERY,11/12/2023,000009353546544,119.98,WWW.SCREWFIX.COM
OXFORDSHIRE CC,CHILDREN'S & EDUCATION,EYNSHAM,CATERING PROVISIONS,11/12/2023,000009353546546,4.2,CO-OPERATIVE FOOD
OXFORDSHIRE CC,CHILDREN'S & EDUCATION,40 THE MOORS,DRUGS AND MEDICAL SUPPLIES,11/12/2023,000009353546364,177.36,WWW.CARECORNER.CO.UK
OXFORDSHIRE CC,CHILDREN'S & EDUCATION,WITNEY,CATERING PROVISIONS,11/12/2023,000009353546532,3.7,SAINSBURYS S/MKTS
OXFORDSHIRE CC,CUSTOMER AND CULTURE,BUSINESS INTELLECTUAL PROPERTY CENTRE,PRINTING,11/12/2023,000009353546294,500,SUMUP   THE DRONE RULE
OXFORDSHIRE CC,CHILDREN'S & EDUCATION,"	LEAVING CARE CITY 2",CLOTHING AND UNIFORMS,11/12/2023,000009353546630,114.87,SHEIN.COM
OXFORDSHIRE CC,CHILDREN'S & EDUCATION,FAMILY SOLUTIONS PLUS NON-STAFF - NORTH,PAYMENTS TO TRANSPORT OPERATORS,11/12/2023,000009353546602,31.6,WWW.GWR.COM
OXFORDSHIRE CC,CHILDREN'S & EDUCATION,THAME E&A HOME,MATERIALS,11/12/2023,000009353546256,42.98,AMZNMKTPLACE
OXFORDSHIRE CC,CHILDREN'S & EDUCATION,WITNEY,CATERING PROVISIONS,11/12/2023,000009353546234,160.19,SAINSBURYS S/MKTS
OXFORDSHIRE CC,CHILDREN'S & EDUCATION,NRPF & HOMELESSNESS,PAYMENTS TO TRANSPORT OPERATORS,11/12/2023,000009353546534,356.5,WWW.TAXICODE.COM
OXFORDSHIRE CC,CHILDREN'S & EDUCATION,THAME E&A HOME,CATERING PROVISIONS,11/12/2023,000009353546224,13.93,SAINSBURYS SUPERMA
OXFORDSHIRE CC,CHILDREN'S & EDUCATION,CHILDREN IN CARE NON-STAFFING - CENTRL 2,MATERIALS,11/12/2023,000009353545986,146.98,CURRYS ONLINE
OXFORDSHIRE CC,ENVIRONMENT AND PLACE,NAT TRAILS GENERAL,VEHICLE FUEL,11/12/2023,000009353546274,64.73,SAINSBURYS PETROL
OXFORDSHIRE CC,CHILDREN'S & EDUCATION,40 THE MOORS,ROAD FUND LICENCES AND MOTS,11/12/2023,000009353546064,178.5,DVLA VEHICLE TAX
OXFORDSHIRE CC,CHILDREN'S & EDUCATION,CHILDREN IN CARE NON-STAFFING - NORTH,MATERIALS,11/12/2023,000009353545984,29.99,AMZNMKTPLACE
OXFORDSHIRE CC,CHILDREN'S & EDUCATION,WITNEY,SUBSCRIPTIONS,11/12/2023,000009353546530,9.99,PUREGYM LIMITED
OXFORDSHIRE CC,CHILDREN'S & EDUCATION,40 THE MOORS,CATERING PROVISIONS,11/12/2023,000009353546596,20.44,SAINSBURY'S S/MKT
OXFORDSHIRE CC,CHILDREN'S & EDUCATION,40 THE MOORS,CATERING PROVISIONS,11/12/2023,000009353546594,10,SAINSBURY'S S/MKT
OXFORDSHIRE CC,CHILDREN'S & EDUCATION,40 THE MOORS,CATERING PROVISIONS,11/12/2023,000009353546366,13.55,TESCO STORES 2788
OXFORDSHIRE CC,ADULTS,CSS WALLINGFORD,VEHICLE EQUIPMENT AND EXPENSES - OTHER,11/12/2023,000009353545958,31.96,ESSO RECTORY SSTN
OXFORDSHIRE CC,ADULTS,CSS - OXFORD,EDUCATIONAL AND VOCATIONAL TRAINING ,11/12/2023,000009353546034,80,ZETTLE_ DELTAVIOLIN
OXFORDSHIRE CC,CHILDREN'S & EDUCATION,THAME E&A HOME,CATERING PROVISIONS,11/12/2023,000009353546026,15.85,TESCO STORES 2008
OXFORDSHIRE CC,CHILDREN'S & EDUCATION,THAME E&A HOME,CLOTHING AND UNIFORMS,11/12/2023,000009353546252,59.99,HEELYS
OXFORDSHIRE CC,ADULTS,CSS WITNEY,MATERIALS,11/12/2023,000009353546628,6,POUNDLAND LTD - 1912
OXFORDSHIRE CC,CHILDREN'S & EDUCATION,PAUSE PROGRAMME,CATERING,11/12/2023,000009353546260,11.97,MCDONALDS
OXFORDSHIRE CC,CHILDREN'S & EDUCATION,"	LEAVING CARE CITY 2",PAYMENT TO GOVERNMENT DEPARTMENTS,11/12/2023,000009353546632,34,DVLA DRIVER ONLINE
OXFORDSHIRE CC,CHILDREN'S & EDUCATION,UASC 16&17,PAYMENTS TO TRANSPORT OPERATORS,11/12/2023,000009353546600,128.38,TRAINLINE
OXFORDSHIRE CC,CHILDREN'S & EDUCATION,FAMILY SOLUTIONS PLUS NON-STAFF � SOUTH,PAYMENTS TO TRANSPORT OPERATORS,11/12/2023,000009353546582,212.04,TRAINLINE
OXFORDSHIRE CC,CHILDREN'S & EDUCATION,THAME E&A HOME,MATERIALS,11/12/2023,000009353546254,8.59,AMZNMKTPLACE
OXFORDSHIRE CC,ENVIRONMENT AND PLACE,NAT TRAILS GENERAL,ENTERTAINMENT EXPENSES,11/12/2023,000009353546652,36,SUMUP   HERMITAGE RIVE
OXFORDSHIRE CC,CHILDREN'S & EDUCATION,FAMILY SOLUTIONS PLUS NON-STAFF � SOUTH,HIRE OF ACCOMMODATION AND FACILITIES,11/12/2023,000009353546584,57.1,TRAVELODGE
OXFORDSHIRE CC,CHILDREN'S & EDUCATION,HOUSE PROJECT,OTHER TRANSPORT ARRANGEMENTS,11/12/2023,000009353546490,5.8,WESTGATE OXFORD CAR PA
OXFORDSHIRE CC,CHILDREN'S & EDUCATION,"	LEAVING CARE NORTH",VEHICLE FUEL,11/12/2023,000009353546644,55.86,SHELL SWAN CLOSE ROAD
OXFORDSHIRE CC,CHILDREN'S & EDUCATION,OXFORDSHIRE,CATERING PROVISIONS,11/12/2023,000009353546316,7.85,SAINSBURYS S/MKTS
OXFORDSHIRE CC,CUSTOMER AND CULTURE,REACTIVE MAINTENANCE,FURNITURE,11/12/2023,000009353546268,"1,947.40",SP EQUIP2CLEAN
OXFORDSHIRE CC,CHILDREN'S & EDUCATION,FAMILY SOLUTIONS PLUS NON-STAFF - NORTH,PAYMENTS TO TRANSPORT OPERATORS,11/12/2023,000009353546646,41,WWW.TAXICODE.COM
OXFORDSHIRE CC,CHILDREN'S & EDUCATION,"	RIVERSIDE CENTRE",VEHICLE FUEL,11/12/2023,000009353546318,95.44,SAINSBURYS PETROL
OXFORDSHIRE CC,CHILDREN'S & EDUCATION,PAUSE PROGRAMME,CATERING,11/12/2023,000009353546668,16.4,COSTA COFFEE
OXFORDSHIRE CC,CUSTOMER AND CULTURE,DIDOCT LIBRARY,"NEWSPAPERS, PERIODICALS AND PUBLICATIONS",11/12/2023,000009353546230,95.6,PPOINT_ AMIN NEWSAGENT
OXFORDSHIRE CC,ADULTS,CSS - BANBURY,CATERING PROVISIONS,11/12/2023,000009353546622,22,TESCO STORES 2064
OXFORDSHIRE CC,CHILDREN'S & EDUCATION,"	OCCG GRANT",MATERIALS,11/12/2023,000009353546588,130,WWW.ARGOS.CO.UK
OXFORDSHIRE CC,CHILDREN'S & EDUCATION,"	MALTFIELD HOUSE",MATERIALS,11/12/2023,000009353546476,38.97,AMZNMKTPLACE
OXFORDSHIRE CC,RESOURCES,ICT OPERATIONS & MAI,PAYMENTS TO TRANSPORT OPERATORS,11/12/2023,000009353546512,43.2,THAMESLINK WEBTIS
OXFORDSHIRE CC,ADULTS,CSS WANTAGE,ENTERTAINMENT EXPENSES,11/12/2023,000009353546338,23.8,WWW.BETTER.ORG.UK
OXFORDSHIRE CC,ADULTS,CSS - BANBURY,CATERING PROVISIONS,11/12/2023,000009353546624,13.43,HOME BARGAINS BANBURY
OXFORDSHIRE CC,CHILDREN'S & EDUCATION,FAMILY SOLUTIONS PLUS NON-STAFF - NORTH,HIRE OF ACCOMMODATION AND FACILITIES,11/12/2023,000009353546536,211.09,TRAVELODGE
OXFORDSHIRE CC,ADULTS,CSS WANTAGE,ENTERTAINMENT EXPENSES,11/12/2023,000009353546336,9.9,WWW.BETTER.ORG.UK
OXFORDSHIRE CC,CHILDREN'S & EDUCATION,"	LEAVING CARE CITY 1",CATERING PROVISIONS,11/12/2023,000009353546172,3.4,TESCO STORES 2990
OXFORDSHIRE CC,CUSTOMER AND CULTURE,COUNTY HALL,CATERING PROVISIONS,11/12/2023,000009353546634,44.99,AMZNMKTPLACE
OXFORDSHIRE CC,CHILDREN'S & EDUCATION,"	LEAVING CARE CITY 1",OTHER TRANSPORT ARRANGEMENTS,11/12/2023,000009353546170,6.2,UNION STREET CAR PARK
OXFORDSHIRE CC,CHILDREN'S & EDUCATION,"	MALTFIELD HOUSE",MATERIALS,11/12/2023,000009353546478,9,WWW.ARGOS.CO.UK
OXFORDSHIRE CC,ADULTS,CSS - BANBURY,CATERING PROVISIONS,11/12/2023,000009353546620,56.6,POUNDSTRETCHER - 0322
OXFORDSHIRE CC,CHILDREN'S & EDUCATION,DIDCOT MOVE-ON HOME,DOMESTIC SUPPLIES,11/12/2023,000009353546180,3.8,SAINSBURYS S/MKTS
OXFORDSHIRE CC,CHILDREN'S & EDUCATION,DIDCOT MOVE-ON HOME,CATERING PROVISIONS,11/12/2023,000009353546178,6.35,SAINSBURYS S/MKTS
OXFORDSHIRE CC,CHILDREN'S & EDUCATION,"	LEAVING CARE NORTH",OTHER TRANSPORT ARRANGEMENTS,11/12/2023,000009353546642,3.8,WESTGATE OXFORD CAR PA
OXFORDSHIRE CC,CHILDREN'S & EDUCATION,HOUSE PROJECT,MATERIALS,11/12/2023,000009353546492,18,TIMPSON LTD
OXFORDSHIRE CC,CHILDREN'S & EDUCATION,"	OCCG GRANT",HARDWARE AND CROCKERY,11/12/2023,000009353546142,62,ASDA STORE 4442
OXFORDSHIRE CC,CHILDREN'S & EDUCATION,CHILDREN IN CARE NON-STAFFING - CENTRL 1,REGISTRATION AND INSPECTION FEES,11/12/2023,000009353545982,30,SKATERS
OXFORDSHIRE CC,ADULTS,CSS WALLINGFORD,MATERIALS,11/12/2023,000009353545956,5.75,AMZNMKTPLACE
OXFORDSHIRE CC,CUSTOMER AND CULTURE,"MARKETING, COMMUNICATIONS & ENGAGEMENT",HIRED AND CONTRACTED SERVICES,11/12/2023,000009353546370,917.58,THE TEKK GROUP LIMITED
OXFORDSHIRE CC,CHILDREN'S & EDUCATION,EET SERVICE,MATERIALS,11/12/2023,000009353546436,26.4,AMZNMKTPLACE
OXFORDSHIRE CC,CHILDREN'S & EDUCATION,"	OCCG GRANT",MATERIALS,11/12/2023,000009353546586,20,WWW.ARGOS.CO.UK
OXFORDSHIRE CC,ADULTS,CSS - OXFORD,CATERING PROVISIONS,11/12/2023,000009353546038,96.84,ALDI STORES 775-142
OXFORDSHIRE CC,CUSTOMER AND CULTURE,WALLINGFORD LIBRARY,CATERING PROVISIONS,11/12/2023,000009353546496,1.55,WAITROSE 675
OXFORDSHIRE CC,CHILDREN'S & EDUCATION,PAUSE PROGRAMME,CATERING,11/12/2023,000009353546670,16.5,WRAP N SHAKE
OXFORDSHIRE CC,CUSTOMER AND CULTURE,SCHOOLS FM CATERING AREA 1,CATERING PROVISIONS,11/12/2023,000009353546228,16.22,WM MORRISONS STORE
OXFORDSHIRE CC,ADULTS,CSS - OXFORD,MATERIALS,11/12/2023,000009353546036,76.39,ALDI STORES 775-142
OXFORDSHIRE CC,CUSTOMER AND CULTURE,HISTORY SERVICE,HIRED AND CONTRACTED SERVICES,11/12/2023,000009353546320,996,R3 POLYGON UK LTD
OXFORDSHIRE CC,CUSTOMER AND CULTURE,THAME LIBRARY,"NEWSPAPERS, PERIODICALS AND PUBLICATIONS",11/12/2023,000009353546464,5.6,SAINSBURYS S/MKTS
OXFORDSHIRE CC,CORPORATE CORE,,STATIONERY,11/12/2023,000009353546488,31.17,LYRECO UK LTD
OXFORDSHIRE CC,CORPORATE CORE,,STATIONERY,11/12/2023,000009353546484,437.47,LYRECO UK LTD
OXFORDSHIRE CC,CORPORATE CORE,,STATIONERY,11/12/2023,000009353546486,24.17,LYRECO UK LTD
OXFORDSHIRE CC,CHILDREN'S & EDUCATION,FSP NON-STAFFING - CENTRAL,PAYMENTS TO TRANSPORT OPERATORS,11/12/2023,000009353545974,41.7,WWW.GWR.COM
OXFORDSHIRE CC,CHILDREN'S & EDUCATION,FAMILY SOLUTIONS PLUS NON-STAFF - NORTH,PAYMENTS TO TRANSPORT OPERATORS,11/12/2023,000009353546518,16.19,TRAINLINE
OXFORDSHIRE CC,ADULTS,CSS BICESTER,CATERING PROVISIONS,11/12/2023,000009353545968,20.41,SAINSBURYS S/MKTS
OXFORDSHIRE CC,CHILDREN'S & EDUCATION,40 THE MOORS,CATERING PROVISIONS,11/12/2023,000009353546598,179.41,SAINSBURYS.CO.UK
OXFORDSHIRE CC,CHILDREN'S & EDUCATION,EYNSHAM,CATERING PROVISIONS,11/12/2023,000009353545954,108.78,TESCO STORES 2008
OXFORDSHIRE CC,CHILDREN'S & EDUCATION,THAME E&A HOME,CATERING PROVISIONS,11/12/2023,000009353546028,169.29,TESCO STORES 2038
OXFORDSHIRE CC,ADULTS,CSS WITNEY,CATERING PROVISIONS,11/12/2023,000009353546334,157.3,SAINSBURYS.CO.UK
OXFORDSHIRE CC,CHILDREN'S & EDUCATION,"	LEAVING CARE SOUTH",VEHICLE FUEL,11/12/2023,000009353546238,83,ESSO ERMONT WAY SSTN
OXFORDSHIRE CC,CHILDREN'S & EDUCATION,EET SERVICE,MATERIALS,11/12/2023,000009353546438,22.8,AMZNMKTPLACE
OXFORDSHIRE CC,CHILDREN'S & EDUCATION,EET SERVICE,MATERIALS,11/12/2023,000009353546434,24.6,AMZNMKTPLACE
OXFORDSHIRE CC,CHILDREN'S & EDUCATION,NTS UASC AGENCY,OTHER TRANSPORT ARRANGEMENTS,11/12/2023,000009353546550,71.3,GOGREENT
OXFORDSHIRE CC,ADULTS,CSS - BANBURY,MATERIALS,11/12/2023,000009353546626,5,AMZNMKTPLACE
OXFORDSHIRE CC,CHILDREN'S & EDUCATION,FAMILY SOLUTIONS PLUS NON-STAFF � SOUTH,MATERIALS,11/12/2023,000009353546662,12.99,AMZNMKTPLACE
OXFORDSHIRE CC,RESOURCES,ICT OPERATIONS & MAI,PURCHASE OF IT EQUIPMENT,11/12/2023,000009353546590,43.59,AMZNMKTPLACE
OXFORDSHIRE CC,CHILDREN'S & EDUCATION,EET SERVICE,MATERIALS,11/12/2023,000009353546428,25.15,AMZNMKTPLACE
OXFORDSHIRE CC,CHILDREN'S & EDUCATION,EET SERVICE,MATERIALS,11/12/2023,000009353546442,14.54,AMZNMKTPLACE
OXFORDSHIRE CC,CHILDREN'S & EDUCATION,EET SERVICE,MATERIALS,11/12/2023,000009353546444,14.54,AMZNMKTPLACE
OXFORDSHIRE CC,CHILDREN'S & EDUCATION,EET SERVICE,MATERIALS,11/12/2023,000009353546440,14.54,AMZNMKTPLACE
OXFORDSHIRE CC,CHILDREN'S & EDUCATION,EET SERVICE,MATERIALS,11/12/2023,000009353546430,25.15,AMZNMKTPLACE
OXFORDSHIRE CC,CHILDREN'S & EDUCATION,EET SERVICE,MATERIALS,11/12/2023,000009353546450,14.54,AMZNMKTPLACE
OXFORDSHIRE CC,CHILDREN'S & EDUCATION,EET SERVICE,MATERIALS,11/12/2023,000009353546448,14.54,AMZNMKTPLACE
OXFORDSHIRE CC,CHILDREN'S & EDUCATION,EET SERVICE,MATERIALS,11/12/2023,000009353546446,14.54,AMZNMKTPLACE
OXFORDSHIRE CC,CHILDREN'S & EDUCATION,EET SERVICE,MATERIALS,11/12/2023,000009353546432,14.54,AMZNMKTPLACE
OXFORDSHIRE CC,CHILDREN'S & EDUCATION,40 THE MOORS,OTHER TRANSPORT ARRANGEMENTS,11/12/2023,000009353546592,20,STGCOACH/CTYLINK
OXFORDSHIRE CC,CHILDREN'S & EDUCATION,NTS UASC AGENCY,OTHER TRANSPORT ARRANGEMENTS,11/12/2023,000009353546552,6.6,GOGREENT
OXFORDSHIRE CC,CUSTOMER AND CULTURE,SCHOOLS FM CATERING AREA 1,MATERIALS,08/12/2023,000009345117162,53.96,AMZNMKTPLACE
OXFORDSHIRE CC,CHILDREN'S & EDUCATION,FAMILY SOLUTIONS PLUS NON-STAFF - NORTH,MATERIALS,08/12/2023,000009345118508,27.77,AMZNMKTPLACE
OXFORDSHIRE CC,CUSTOMER AND CULTURE,"MARKETING, COMMUNICATIONS & ENGAGEMENT","PUBLICITY, PROMOTIONS AND ADVERTISEMENT",08/12/2023,000009345117942,11,SNAP INC SNAP SNAP ADS
OXFORDSHIRE CC,CUSTOMER AND CULTURE,SAMUELSON HOUSE,CATERING PROVISIONS,08/12/2023,000009345116900,53.55,MILK AND MORE (RECUR
OXFORDSHIRE CC,ADULTS,CSS WITNEY,CATERING PROVISIONS,08/12/2023,000009345117810,35.7,MILK AND MORE (RECUR
OXFORDSHIRE CC,CUSTOMER AND CULTURE,HOLTON SITE,CATERING PROVISIONS,08/12/2023,000009345116560,17.5,MILK AND MORE (RECUR
OXFORDSHIRE CC,ENVIRONMENT AND PLACE,FLEET OPERATIONS,CATERING PROVISIONS,08/12/2023,000009345116932,20,MILK AND MORE (RECUR
OXFORDSHIRE CC,CUSTOMER AND CULTURE,MUSEUMS COLLECTIONS,CATERING PROVISIONS,08/12/2023,000009345117628,4.62,MILK AND MORE (RECUR
OXFORDSHIRE CC,CHILDREN'S & EDUCATION,EET SERVICE,MATERIALS,08/12/2023,000009345118166,60.16,AMZNMKTPLACE
OXFORDSHIRE CC,CHILDREN'S & EDUCATION,C&I BASE CHERWELL,DISABILITY AIDS AND EQUIPMENT,08/12/2023,000009345117592,65.99,AMAZON.CO.UK IL0PG9HB5
OXFORDSHIRE CC,CHILDREN'S & EDUCATION,"	OCCG GRANT",CATERING PROVISIONS,08/12/2023,000009345119066,20.69,TESCO STORES 2994
OXFORDSHIRE CC,CHILDREN'S & EDUCATION,EET SERVICE,MATERIALS,08/12/2023,000009345118174,76.45,AMZNMKTPLACE
OXFORDSHIRE CC,CHILDREN'S & EDUCATION,"	OCCG GRANT",CATERING PROVISIONS,08/12/2023,000009345119062,14.81,TESCO STORES 2994
OXFORDSHIRE CC,CHILDREN'S & EDUCATION,"	LEAVING CARE NORTH",CATERING,08/12/2023,000009345116840,17.7,MCDONALDS
OXFORDSHIRE CC,CHILDREN'S & EDUCATION,THAME E&A HOME,MATERIALS,08/12/2023,000009345116508,13.99,AMZNMKTPLACE
OXFORDSHIRE CC,CHILDREN'S & EDUCATION,"	LEAVING CARE SOUTH",OTHER TRANSPORT ARRANGEMENTS,08/12/2023,000009345117204,8.9,M6 TOLL
OXFORDSHIRE CC,CHILDREN'S & EDUCATION,EET SERVICE,EDUCATIONAL AND VOCATIONAL TRAINING ,08/12/2023,000009345117666,99,HTTPS://WWW.CITB.CO.UK
OXFORDSHIRE CC,CHILDREN'S & EDUCATION,40 THE MOORS,CATERING PROVISIONS,08/12/2023,000009345117926,42.56,OXFORD PEARTREE KFC
OXFORDSHIRE CC,ADULTS,CSS - BANBURY,CATERING PROVISIONS,08/12/2023,000009345118878,44.26,SAINSBURY'S S/MKT
OXFORDSHIRE CC,CUSTOMER AND CULTURE,RFID PROJECT,MATERIALS,08/12/2023,000009345118562,10.99,AMZNMKTPLACE
OXFORDSHIRE CC,CHILDREN'S & EDUCATION,DIDCOT MOVE-ON HOME,CATERING PROVISIONS,08/12/2023,000009345116982,7.7,SAINSBURYS S/MKTS
OXFORDSHIRE CC,CHILDREN'S & EDUCATION,"	OCCG GRANT",CATERING,08/12/2023,000009345119080,19.97,DOMINOS PIZZA 29048
OXFORDSHIRE CC,ADULTS,CSS WITNEY,MATERIALS,08/12/2023,000009345117778,11.48,AMZNMKTPLACE
OXFORDSHIRE CC,CHILDREN'S & EDUCATION,DIDCOT MOVE-ON HOME,MATERIALS,08/12/2023,000009345116978,2,THE WORKS
OXFORDSHIRE CC,CHILDREN'S & EDUCATION,PAUSE PROGRAMME,CATERING,08/12/2023,000009345117256,6.98,MCDONALDS
OXFORDSHIRE CC,CUSTOMER AND CULTURE,SCHOOLS FM CATERING AREA 1,MATERIALS,08/12/2023,000009345117142,68.97,AMZNMKTPLACE
OXFORDSHIRE CC,CHILDREN'S & EDUCATION,FAMILY SOLUTIONS PLUS NON-STAFF - NORTH,MATERIALS,08/12/2023,000009345118500,37.49,AMZNMKTPLACE
OXFORDSHIRE CC,ADULTS,CSS WITNEY,MATERIALS,08/12/2023,000009345117776,16,AMZNMKTPLACE
OXFORDSHIRE CC,ADULTS,CSS WITNEY,MATERIALS,08/12/2023,000009345117764,9.99,AMZNMKTPLACE
OXFORDSHIRE CC,CUSTOMER AND CULTURE,SCHOOLS FM CATERING AREA 1,MATERIALS,08/12/2023,000009345117158,63.47,AMZNMKTPLACE
OXFORDSHIRE CC,CUSTOMER AND CULTURE,SCHOOLS FM CATERING AREA 1,MATERIALS,08/12/2023,000009345117150,39.9,AMZNMKTPLACE
OXFORDSHIRE CC,ADULTS,CSS WITNEY,MATERIALS,08/12/2023,000009345117770,9.87,AMZNMKTPLACE
OXFORDSHIRE CC,CHILDREN'S & EDUCATION,UASC 16&17,MATERIALS,08/12/2023,000009345116422,64.99,SPORTSDIRECT 218
OXFORDSHIRE CC,CHILDREN'S & EDUCATION,OTFC TEAM,OTHER TRANSPORT ARRANGEMENTS,08/12/2023,000009345118570,2,"THE ORACLE CAR PARK, R"
OXFORDSHIRE CC,CUSTOMER AND CULTURE,HARD FM,PREMISES REPAIRS,08/12/2023,000009345116324,54.89,WICKES OXFORD
OXFORDSHIRE CC,ADULTS,CSS BICESTER,MATERIALS,08/12/2023,000009345116406,13.98,AMAZON.CO.UK MZ7C45AF5
OXFORDSHIRE CC,CHILDREN'S & EDUCATION,EET SERVICE,MATERIALS,08/12/2023,000009345118286,25.15,AMZNMKTPLACE
OXFORDSHIRE CC,CHILDREN'S & EDUCATION,PAUSE PROGRAMME,CATERING,08/12/2023,000009345119098,10.98,"KFC OXFORD, TEMPLARS S"
OXFORDSHIRE CC,ADULTS,LEADERSHIP TEAM,PAYMENTS TO TRANSPORT OPERATORS,08/12/2023,000009345118892,66.43,TRAINLINE
OXFORDSHIRE CC,CHILDREN'S & EDUCATION,OTFC TEAM,CATERING PROVISIONS,08/12/2023,000009345118576,3.1,MARKS&SPENCER PLC
OXFORDSHIRE CC,CHILDREN'S & EDUCATION,PAUSE PROGRAMME,MATERIALS,08/12/2023,000009345119092,3,POUNDLAND LTD - 1586
OXFORDSHIRE CC,CHILDREN'S & EDUCATION,"	FPT CITY",OTHER EXPENSES,08/12/2023,000009345118648,31.74,BUNCHES
OXFORDSHIRE CC,ADULTS,CSS BICESTER,MATERIALS,08/12/2023,000009345116342,9.99,AMZNMKTPLACE
OXFORDSHIRE CC,ADULTS,CSS BICESTER,MATERIALS,08/12/2023,000009345116358,5.99,AMZNMKTPLACE
OXFORDSHIRE CC,ADULTS,CSS BICESTER,MATERIALS,08/12/2023,000009345116394,11.98,AMZNMKTPLACE
OXFORDSHIRE CC,ADULTS,CSS BICESTER,MATERIALS,08/12/2023,000009345116398,4.1,AMZNMKTPLACE
OXFORDSHIRE CC,ADULTS,CSS BICESTER,MATERIALS,08/12/2023,000009345116370,7.94,AMZNMKTPLACE
OXFORDSHIRE CC,ADULTS,CSS BICESTER,MATERIALS,08/12/2023,000009345116352,5.99,AMZNMKTPLACE
OXFORDSHIRE CC,ADULTS,CSS BICESTER,MATERIALS,08/12/2023,000009345116374,9.49,AMZNMKTPLACE
OXFORDSHIRE CC,ADULTS,CSS BICESTER,MATERIALS,08/12/2023,000009345116382,19.78,AMZNMKTPLACE
OXFORDSHIRE CC,ADULTS,CSS BICESTER,MATERIALS,08/12/2023,000009345116364,9.99,AMZNMKTPLACE
OXFORDSHIRE CC,ADULTS,CSS WANTAGE,HOSPITALITY EXPENSES,08/12/2023,000009345117816,5,LORD NELSON
OXFORDSHIRE CC,CUSTOMER AND CULTURE,SCHOOLS FM CATERING AREA 2,MATERIALS,08/12/2023,000009345117384,5.99,AMZNMKTPLACE
OXFORDSHIRE CC,ADULTS,CSS BICESTER,CATERING PROVISIONS,08/12/2023,000009345116548,3.35,ALDI 49 775
OXFORDSHIRE CC,CHILDREN'S & EDUCATION,"	OCCG GRANT",CATERING,08/12/2023,000009345119072,6.25,COSTA COFFEE 43011711
OXFORDSHIRE CC,CHILDREN'S & EDUCATION,EET SERVICE,MATERIALS,08/12/2023,000009345118294,20.12,AMZNMKTPLACE
OXFORDSHIRE CC,CHILDREN'S & EDUCATION,"	LEAVING CARE SOUTH",OTHER TRANSPORT ARRANGEMENTS,08/12/2023,000009345117212,8.9,M6 TOLL
OXFORDSHIRE CC,CHILDREN'S & EDUCATION,HOUSE PROJECT,OTHER TRANSPORT ARRANGEMENTS,08/12/2023,000009345118486,5.8,WESTGATE OXFORD CAR PA
OXFORDSHIRE CC,ADULTS,CSS WITNEY,MATERIALS,08/12/2023,000009345116180,16.78,AMZNMKTPLACE
OXFORDSHIRE CC,ADULTS,CSS WITNEY,DRUGS AND MEDICAL SUPPLIES,08/12/2023,000009345117454,10.15,SUPERDRUG STORES PLC
OXFORDSHIRE CC,ADULTS,CSS WITNEY,MATERIALS,08/12/2023,000009345118902,14,POUNDLAND LTD - 1912
OXFORDSHIRE CC,CHILDREN'S & EDUCATION,"	LAC PUPIL PREMIUM",MATERIALS,08/12/2023,000009345118754,310,VOUCHER EXPRESS
OXFORDSHIRE CC,ADULTS,CSS WITNEY,MATERIALS,08/12/2023,000009345117792,19,POUNDLAND LTD - 1912
OXFORDSHIRE CC,CHILDREN'S & EDUCATION,"	LAC PUPIL PREMIUM",MATERIALS,08/12/2023,000009345118758,300,VOUCHER EXPRESS
OXFORDSHIRE CC,CHILDREN'S & EDUCATION,EET SERVICE,MATERIALS,08/12/2023,000009345118282,25.15,AMZNMKTPLACE
OXFORDSHIRE CC,CHILDREN'S & EDUCATION,THAME E&A HOME,MATERIALS,08/12/2023,000009345117410,26,ARGOS LTD
OXFORDSHIRE CC,CHILDREN'S & EDUCATION,EET SERVICE,MATERIALS,08/12/2023,000009345118276,22.8,AMZNMKTPLACE
OXFORDSHIRE CC,CHILDREN'S & EDUCATION,UASC 16&17,CATERING PROVISIONS,08/12/2023,000009345116434,12.28,TESCO STORES 2994
OXFORDSHIRE CC,CUSTOMER AND CULTURE,CENTRAL LIBRARY,MATERIALS,08/12/2023,000009345118090,4.98,AMZNMKTPLACE
OXFORDSHIRE CC,ADULTS,CSS WITNEY,MATERIALS,08/12/2023,000009345116172,10.99,AMZNMKTPLACE
OXFORDSHIRE CC,CHILDREN'S & EDUCATION,FAMILY SOLUTIONS PLUS NON-STAFF � SOUTH,HIRE OF ACCOMMODATION AND FACILITIES,08/12/2023,000009345118614,73.42,TRAVELODGE
OXFORDSHIRE CC,CHILDREN'S & EDUCATION,THAME E&A HOME,CATERING PROVISIONS,08/12/2023,000009345117402,31.75,TESCO STORES 2008
OXFORDSHIRE CC,ADULTS,CSS WITNEY,CATERING PROVISIONS,08/12/2023,000009345117784,117.5,POUNDSTRETCHER 700
OXFORDSHIRE CC,CHILDREN'S & EDUCATION,UASC 16&17,DRUGS AND MEDICAL SUPPLIES,08/12/2023,000009345116442,92.68,"BOOTS,OXFORD"
OXFORDSHIRE CC,CUSTOMER AND CULTURE,LIBRARY COLLECTIONS,"BOOKS, DVDS AND CDS",08/12/2023,000009345116924,395.24,OVERDRIVE DIST
OXFORDSHIRE CC,CHILDREN'S & EDUCATION,"	LEAVING CARE CITY 1",CATERING,08/12/2023,000009345116948,5.8,VILLAGE CAFE
OXFORDSHIRE CC,CHILDREN'S & EDUCATION,"	LEAVING CARE CITY 1",OTHER TRANSPORT ARRANGEMENTS,08/12/2023,000009345116942,3.4,WANDSWORTH PARKING
OXFORDSHIRE CC,CHILDREN'S & EDUCATION,EYNSHAM,MATERIALS,08/12/2023,000009345116250,11.94,AMZNMKTPLACE
OXFORDSHIRE CC,CHILDREN'S & EDUCATION,EYNSHAM,MATERIALS,08/12/2023,000009345116238,3.95,AMZNMKTPLACE
OXFORDSHIRE CC,ADULTS,CSS WITNEY,MATERIALS,08/12/2023,000009345116156,2.99,AMZNMKTPLACE
OXFORDSHIRE CC,ENVIRONMENT AND PLACE,MAINTENANCE STAFF,EQUIPMENT,08/12/2023,000009345116498,78.98,WWW.SCREWFIX.COM
OXFORDSHIRE CC,CUSTOMER AND CULTURE,LIBRARY COLLECTIONS,"BOOKS, DVDS AND CDS",08/12/2023,000009345116916,"1,595.54",OVERDRIVE DIST
OXFORDSHIRE CC,CUSTOMER AND CULTURE,LIBRARY COLLECTIONS,"BOOKS, DVDS AND CDS",08/12/2023,000009345116910,"2,287.87",OVERDRIVE DIST
OXFORDSHIRE CC,CHILDREN'S & EDUCATION,CHILDREN IN CARE NON-STAFFING - CENTRL 1,PAYMENTS TO TRANSPORT OPERATORS,08/12/2023,000009345116542,50.48,TRAINLINE
OXFORDSHIRE CC,CHILDREN'S & EDUCATION,THAME E&A HOME,CATERING,08/12/2023,000009345117416,14.16,MCDONALDS
OXFORDSHIRE CC,CHILDREN'S & EDUCATION,PAUSE PROGRAMME,CATERING,08/12/2023,000009345117262,7.27,MCDONALDS
OXFORDSHIRE CC,ADULTS,CSS WITNEY,MATERIALS,08/12/2023,000009345116164,5.92,AMZNMKTPLACE
OXFORDSHIRE CC,CHILDREN'S & EDUCATION,EYNSHAM,MATERIALS,08/12/2023,000009345116244,22.78,AMZNMKTPLACE
OXFORDSHIRE CC,ADULTS,CSS - BANBURY,MATERIALS,08/12/2023,000009345118954,15.09,HALFORDS 0853
OXFORDSHIRE CC,CUSTOMER AND CULTURE,CENTRAL LIBRARY,CATERING PROVISIONS,08/12/2023,000009345118084,14.78,AMZNMKTPLACE
OXFORDSHIRE CC,CHILDREN'S & EDUCATION,EYNSHAM,MATERIALS,08/12/2023,000009345116232,7.32,AMZNMKTPLACE
OXFORDSHIRE CC,CHILDREN'S & EDUCATION,EYNSHAM,MATERIALS,08/12/2023,000009345116230,27.98,AMZNMKTPLACE
OXFORDSHIRE CC,CUSTOMER AND CULTURE,SCHOOLS FM CATERING AREA 4,CATERING PROVISIONS,08/12/2023,000009345117116,6.9,TESCO STORES 2008
OXFORDSHIRE CC,ENVIRONMENT AND PLACE,TREE MAINT OPS,ADHOC SITE ANDGROUNDS MAINTENANCE COSTS,08/12/2023,000009345117294,26.99,WWW.SCREWFIX.COM
OXFORDSHIRE CC,CHILDREN'S & EDUCATION,FSP NON-STAFFING - CENTRAL,OTHER TRANSPORT ARRANGEMENTS,08/12/2023,000009345118798,85.5,OXFORD BUS TICKETS
OXFORDSHIRE CC,CHILDREN'S & EDUCATION,UASC POST 18,CATERING,08/12/2023,000009345116890,3.4,GAILS - HOVE
OXFORDSHIRE CC,CHILDREN'S & EDUCATION,OXFORDSHIRE,MATERIALS,08/12/2023,000009345116208,4,SAINSBURYS S/MKTS
OXFORDSHIRE CC,CHILDREN'S & EDUCATION,DOWNS & COMPLEX,EDUCATIONAL AND VOCATIONAL TRAINING ,08/12/2023,000009345118982,5,WP DOWNSYNDROMEBRADFOR
OXFORDSHIRE CC,ADULTS,CSS - OXFORD,MATERIALS,08/12/2023,000009345116676,7.97,PETS AT HOME LTD
OXFORDSHIRE CC,CHILDREN'S & EDUCATION,OXFORDSHIRE,MATERIALS,08/12/2023,000009345116192,11,POUNDLAND LTD - 1586
OXFORDSHIRE CC,CHILDREN'S & EDUCATION,"	LAC PUPIL PREMIUM","SUPPLIES, STATIONERY AND MATERIALS",08/12/2023,000009345118746,11.97,GROUP CARDS
OXFORDSHIRE CC,ADULTS,CSS BICESTER,MATERIALS,08/12/2023,000009345116414,3.57,AMZNMKTPLACE
OXFORDSHIRE CC,RESOURCES,ICT OPERATIONS & MAI,PURCHASE OF IT EQUIPMENT,08/12/2023,000009345118824,26.29,AMZNMKTPLACE
OXFORDSHIRE CC,CHILDREN'S & EDUCATION,OXFORDSHIRE,MATERIALS,08/12/2023,000009345116202,15,ASDA STORE 4442
OXFORDSHIRE CC,ADULTS,COUNTY PRINT FINSHRS,MATERIALS,08/12/2023,000009345116332,64.8,TOOLSTATION UK
OXFORDSHIRE CC,ENVIRONMENT AND PLACE,SUBSIDENCE MONITORING DESIGN,OTHER SERVICES,08/12/2023,000009345116490,540,SOIL INSTRUMENTS LTD
OXFORDSHIRE CC,ADULTS,CSS WANTAGE,ENTERTAINMENT EXPENSES,08/12/2023,000009345118998,10.95,HOLLYWOOD BOWL
OXFORDSHIRE CC,ADULTS,CSS WANTAGE,ENTERTAINMENT EXPENSES,08/12/2023,000009345118990,10.95,HOLLYWOOD BOWL
OXFORDSHIRE CC,ADULTS,CSS WITNEY,CATERING PROVISIONS,08/12/2023,000009345118910,13.24,CO-OP GROUP 070582
OXFORDSHIRE CC,CHILDREN'S & EDUCATION,EET SERVICE,MATERIALS,08/12/2023,000009345118250,14.06,AMZNMKTPLACE
OXFORDSHIRE CC,CUSTOMER AND CULTURE,RFID PROJECT,MATERIALS,08/12/2023,000009345118556,27.45,AMZNMKTPLACE
OXFORDSHIRE CC,ADULTS,CSS WITNEY,MATERIALS,08/12/2023,000009345118898,40.5,POUNDLAND LTD - 1912
OXFORDSHIRE CC,CHILDREN'S & EDUCATION,EET SERVICE,MATERIALS,08/12/2023,000009345118258,14.06,AMZNMKTPLACE
OXFORDSHIRE CC,CUSTOMER AND CULTURE,HARD FM,CAR LEASING - PRIVATE RENTALS,08/12/2023,000009345116970,200,ENTERPRISE RENT-A-CAR
OXFORDSHIRE CC,CUSTOMER AND CULTURE,HARD FM,CAR LEASING - PRIVATE RENTALS,08/12/2023,000009345116964,459.94,ENTERPRISE RENT-A-CAR
OXFORDSHIRE CC,CHILDREN'S & EDUCATION,EET SERVICE,MATERIALS,08/12/2023,000009345118238,14.06,AMZNMKTPLACE
OXFORDSHIRE CC,CHILDREN'S & EDUCATION,"	LAC PUPIL PREMIUM","SUPPLIES, STATIONERY AND MATERIALS",08/12/2023,000009345118740,11.97,GROUP CARDS
OXFORDSHIRE CC,CHILDREN'S & EDUCATION,"	LEAVING CARE CITY 1",DRUGS AND MEDICAL SUPPLIES,08/12/2023,000009345116450,70,PEACHCROFT DENTAL PRAC
OXFORDSHIRE CC,CHILDREN'S & EDUCATION,THAME E&A HOME,MATERIALS,08/12/2023,000009345117274,4.45,AMZNMKTPLACE
OXFORDSHIRE CC,CHILDREN'S & EDUCATION,CHILDREN IN CARE NON-STAFFING - CENTRL 1,PAYMENTS TO TRANSPORT OPERATORS,08/12/2023,000009345116530,121.76,TRAINLINE
OXFORDSHIRE CC,CHILDREN'S & EDUCATION,EET SERVICE,MATERIALS,08/12/2023,000009345118230,14.06,AMZNMKTPLACE
OXFORDSHIRE CC,CUSTOMER AND CULTURE,SCHOOLS FM CATERING AREA 4,CATERING PROVISIONS,08/12/2023,000009345117122,25.96,BOOKER LTD - 38584104
OXFORDSHIRE CC,CHILDREN'S & EDUCATION,CHILDREN IN CARE NON-STAFFING - CENTRL 1,PAYMENTS TO TRANSPORT OPERATORS,08/12/2023,000009345116538,30.97,TRAINLINE
OXFORDSHIRE CC,CUSTOMER AND CULTURE,SCHOOLS FM CATERING AREA 4,CATERING PROVISIONS,08/12/2023,000009345116520,33.2,CO OP GROUP FOOD
OXFORDSHIRE CC,CHILDREN'S & EDUCATION,"	LEAVING CARE SOUTH",CLOTHING AND UNIFORMS,08/12/2023,000009345117130,139.99,FOOTASYLUM LIMITED
OXFORDSHIRE CC,RESOURCES,ICT OPERATIONS & MAI,PAYMENTS TO TRANSPORT OPERATORS,08/12/2023,000009345118830,59.8,WWW.GWR.COM
OXFORDSHIRE CC,CORPORATE CORE,,STATIONERY,08/12/2023,000009345118476,106,LYRECO UK LTD
OXFORDSHIRE CC,CORPORATE CORE,,STATIONERY,08/12/2023,000009345118420,30.78,LYRECO UK LTD
OXFORDSHIRE CC,CORPORATE CORE,,STATIONERY,08/12/2023,000009345118468,33.44,LYRECO UK LTD
OXFORDSHIRE CC,CORPORATE CORE,,STATIONERY,08/12/2023,000009345118446,16.13,LYRECO UK LTD
OXFORDSHIRE CC,CORPORATE CORE,,STATIONERY,08/12/2023,000009345118428,18.43,LYRECO UK LTD
OXFORDSHIRE CC,CORPORATE CORE,,STATIONERY,08/12/2023,000009345118434,191.68,LYRECO UK LTD
OXFORDSHIRE CC,CORPORATE CORE,,STATIONERY,08/12/2023,000009345118462,70.04,LYRECO UK LTD
OXFORDSHIRE CC,ADULTS,THAME E&A HOME,CATERING PROVISIONS,08/12/2023,000009345118124,15.4,TESCO STORES 4377
OXFORDSHIRE CC,CHILDREN'S & EDUCATION,"	LEAVING CARE CITY 2",MATERIALS,08/12/2023,000009345117466,387.93,EBAY O 20-10888-05500
OXFORDSHIRE CC,ENVIRONMENT AND PLACE,TREE MAINT OPS,ADHOC SITE ANDGROUNDS MAINTENANCE COSTS,08/12/2023,000009345117288,5.99,SCREWFIX DIR LTD
OXFORDSHIRE CC,ADULTS,CSS - BANBURY,MATERIALS,08/12/2023,000009345118868,5.99,AMZNMKTPLACE
OXFORDSHIRE CC,CHILDREN'S & EDUCATION,"	LEAVING CARE CITY 2",MATERIALS,08/12/2023,000009345117472,209,EBAY O 26-10883-84858
OXFORDSHIRE CC,CHILDREN'S & EDUCATION,FSP NON-STAFFING - CENTRAL,HARDWARE AND CROCKERY,08/12/2023,000009345118962,22,HOMEBASE.CO.UK
OXFORDSHIRE CC,CUSTOMER AND CULTURE,THAME LIBRARY,CATERING PROVISIONS,08/12/2023,000009345118368,5.6,SAINSBURYS S/MKTS
OXFORDSHIRE CC,CHILDREN'S & EDUCATION,FSP NON-STAFFING - CENTRAL,MATERIALS,08/12/2023,000009345118966,97.95,WWW.ARGOS.CO.UK
OXFORDSHIRE CC,ENVIRONMENT AND PLACE,TREE MAINT OPS,ADHOC SITE ANDGROUNDS MAINTENANCE COSTS,08/12/2023,000009345117302,27.55,WWW.SCREWFIX.COM
OXFORDSHIRE CC,ADULTS,CSS - BANBURY,MATERIALS,08/12/2023,000009345118860,2.99,AMZNMKTPLACE
OXFORDSHIRE CC,ADULTS,CSS - BANBURY,MATERIALS,08/12/2023,000009345118852,2.99,AMZNMKTPLACE
OXFORDSHIRE CC,ENVIRONMENT AND PLACE,NAT TRAILS GENERAL,CATERING PROVISIONS,08/12/2023,000009345117426,10,CO OPERATIVE FOOD
OXFORDSHIRE CC,CHILDREN'S & EDUCATION,EET SERVICE,MATERIALS,08/12/2023,000009345118160,29.24,AMZNMKTPLACE
OXFORDSHIRE CC,CHILDREN'S & EDUCATION,EET SERVICE,MATERIALS,08/12/2023,000009345118270,22.44,AMZNMKTPLACE
OXFORDSHIRE CC,CHILDREN'S & EDUCATION,EET SERVICE,MATERIALS,08/12/2023,000009345118266,22.44,AMZNMKTPLACE
OXFORDSHIRE CC,CHILDREN'S & EDUCATION,EET SERVICE,MATERIALS,08/12/2023,000009345118216,29.24,AMZNMKTPLACE
OXFORDSHIRE CC,CHILDREN'S & EDUCATION,EET SERVICE,MATERIALS,08/12/2023,000009345118244,44.4,AMZNMKTPLACE
OXFORDSHIRE CC,CHILDREN'S & EDUCATION,EET SERVICE,MATERIALS,08/12/2023,000009345118222,25.29,AMZNMKTPLACE
OXFORDSHIRE CC,CHILDREN'S & EDUCATION,EET SERVICE,MATERIALS,08/12/2023,000009345118194,29.24,AMZNMKTPLACE
OXFORDSHIRE CC,CHILDREN'S & EDUCATION,EET SERVICE,MATERIALS,08/12/2023,000009345118204,27.42,AMZNMKTPLACE
OXFORDSHIRE CC,CHILDREN'S & EDUCATION,EET SERVICE,MATERIALS,08/12/2023,000009345118188,29.24,AMZNMKTPLACE
OXFORDSHIRE CC,CHILDREN'S & EDUCATION,EET SERVICE,MATERIALS,08/12/2023,000009345118210,22.41,AMZNMKTPLACE
OXFORDSHIRE CC,CHILDREN'S & EDUCATION,EET SERVICE,MATERIALS,08/12/2023,000009345118180,22.41,AMZNMKTPLACE
OXFORDSHIRE CC,CHILDREN'S & EDUCATION,40 THE MOORS,DOMESTIC SUPPLIES,08/12/2023,000009345116710,23.56,AMZNMKTPLACE
OXFORDSHIRE CC,ADULTS,UASC 16&17,RESIDENTIAL ACTIVITIES,08/12/2023,000009345117050,25,RESULTS HEALTH CLUBS (
OXFORDSHIRE CC,ADULTS,CSS - BANBURY,MATERIALS,08/12/2023,000009345118876,0.3,ARGOS BANBURY INSI
OXFORDSHIRE CC,ADULTS,CSS WANTAGE,VEHICLES AND PLANT - REPAIRS AND MAIN,08/12/2023,000009345116220,0.5,SAINSBURY - WANTAGE -
OXFORDSHIRE CC,CHILDREN'S & EDUCATION,UASC 16&17,CATERING PROVISIONS,08/12/2023,000009345116430,0.9,TESCO STORES 2990
OXFORDSHIRE CC,CHILDREN'S & EDUCATION,THAME E&A HOME,VEHICLE FUEL,08/12/2023,000009345116654,4.4,THAME BP SF CONNECT
OXFORDSHIRE CC,CHILDREN'S & EDUCATION,"	LEAVING CARE SOUTH",VEHICLE FUEL,08/12/2023,000009345116770,10,BP BROADWAY MOTORS
OXFORDSHIRE CC,CHILDREN'S & EDUCATION,"	LEAVING CARE CITY 2",CLOTHING AND UNIFORMS,08/12/2023,000009345117350,75,PRIMARK 440
OXFORDSHIRE CC,ADULTS,CSS WITNEY,MATERIALS,08/12/2023,000009345117796,11.98,AMZNMKTPLACE
OXFORDSHIRE CC,ADULTS,CSS WITNEY,MATERIALS,08/12/2023,000009345117804,23.99,AMZNMKTPLACE
OXFORDSHIRE CC,CHILDREN'S & EDUCATION,DISABILITIES TEAM S,OTHER COMMUNICATIONS,08/12/2023,000009345116594,159,TVLICENSING.CO.UK
OXFORDSHIRE CC,CHILDREN'S & EDUCATION,CHILDREN IN CARE COUNCIL,STATIONERY,08/12/2023,000009345116580,8,PRIMARK 440
OXFORDSHIRE CC,CHILDREN'S & EDUCATION,PAUSE PROGRAMME,CATERING,08/12/2023,000009345119086,3.91,MCDONALDS
OXFORDSHIRE CC,CHILDREN'S & EDUCATION,DIDCOT MOVE-ON HOME,MANAGEMENT CONSULTANT FEES,08/12/2023,000009345117340,159,TVLICENSING.CO.UK
OXFORDSHIRE CC,CUSTOMER AND CULTURE,SCHOOLS FM CATERING AREA 4,CATERING PROVISIONS,08/12/2023,000009345117110,11.97,ALDI STORES
OXFORDSHIRE CC,ADULTS,CSS - OXFORD,CATERING PROVISIONS,08/12/2023,000009345116672,92.86,ALDI STORES 775-142
OXFORDSHIRE CC,ADULTS,CSS - OXFORD,CATERING PROVISIONS,08/12/2023,000009345116670,1.58,ALDI STORES 775-142
OXFORDSHIRE CC,CHILDREN'S & EDUCATION,THAME E&A HOME,MATERIALS,07/12/2023,000009338807026,8.99,AMZNMKTPLACE
OXFORDSHIRE CC,ADULTS,CSS BICESTER,MATERIALS,07/12/2023,000009338806966,19.9,AMZNMKTPLACE
OXFORDSHIRE CC,CUSTOMER AND CULTURE,CAMBRIDGE TERRACE,OTHER PREMISES RELATED COSTS,07/12/2023,000009338807768,15.99,AMZNMKTPLACE
OXFORDSHIRE CC,ADULTS,CSS BICESTER,MATERIALS,07/12/2023,000009338806974,15.98,AMZNMKTPLACE
OXFORDSHIRE CC,CUSTOMER AND CULTURE,"MARKETING, COMMUNICATIONS & ENGAGEMENT","PUBLICITY, PROMOTIONS AND ADVERTISEMENT",07/12/2023,000009338808164,10.88,SNAP INC SNAP SNAP ADS
OXFORDSHIRE CC,CHILDREN'S & EDUCATION,EYNSHAM,MATERIALS,07/12/2023,000009338806820,31.98,AMZNMKTPLACE
